Workbook

Sheet Cover and Checklist
M2: Skills checklist
N4: Reviewing basic concepts
G5: Creating Simulations in Excel: Intermediate | N5: Modeling additional distributions
N6: Applying the HDR PRNG to create a time series
N7: Building a risk register
N8: Using more advanced data table techniques
N9: Computing information value for your decision
N10: Quantifying risk tolerance
N11: Markov example
N12: Examples of more advanced models
F13: Hubbard Decision Research
F14: 2S410 Canterbury Ct
F15: Glen Ellyn, IL 60137
F16: www.hubbardresearch.com

Sheet Deterministic Cash Flow
A1: Deterministic Cash Flow Example
B3: Input Variables | D3: Point Est.
B4: Percent reduction in labor cost | D4: 0.03
B5: Current total labor cost | D5: 75000000
B6: Initial development costs (2020) | D6: 5000000
B7: Cost of money | D7: 0.095
B9: Cash Flow
C10: 2020 | D10: 2021 | E10: 2022 | F10: 2023 | G10: 2024
B11: Total costs | C11: =D6 -> 5000000
B12: Total benefits | D12: =$D5*$D4 -> 2250000 | E12: =$D5*$D4 -> 2250000 | F12: =$D5*$D4 -> 2250000 | G12: =$D5*$D4 -> 2250000
B13: Net benefit | C13: =C12-C11 -> -5000000 | D13: =D12-D11 -> 2250000 | E13: =E12-E11 -> 2250000 | F13: =F12-F11 -> 2250000 | G13: =G12-G11 -> 2250000
B15: Results
B16: Net Present Value | C16: =NPV(D7, C13:G13) -> 2018340.203

Sheet Probabalistic Cash Flow HDR
A1: Probabalistic Cash Flow Example | K1: Data Table | N1: Histogram
A2: Trial ID: | B2: 1 | C2: Insert scroll bar. | K2: Build a data table with 500 scenarios. | N2: Enter the logic for a histogram below.
B4: Input Variables | D4: Simulated Value | E4: Lower Bound | F4: Upper Bound | G4: Variable ID | H4: HDR PRNG | K4: Trial # | L4: NPV | N4: Bin | O4: Cumulative | P4: Frequency
B5: Percent reduction in labor cost | D5: =H5*(F5-E5)+E5 -> 0.01982756792 | E5: 0.01 | F5: 0.06 | G5: 1 | H5: =((MOD((MOD(MOD(999999999999989,MOD($B$2*2499997+G5*1800451,7450589)*4658+7450581)*383,99991)*7440893+MOD(MOD(999999999999989,MOD($B$2*2246527+G5*2399993,7450987)*7580+7560584)*17669,7440893))*1343,4294967296))+0.5)/2^32 -> 0.1965513584 | L5: =C17 -> -628233.9357 | N5: =-10000000 -> -10000000 | O5: =COUNTIF($L$6:$L$505, "<"&N5)/500 -> 0 | P5: =O5 -> 0
B6: Current total labor cost | D6: =H6*(F6-E6)+E6 -> 52128743.03 | E6: 50000000 | F6: 90000000 | G6: 2 | H6: =((MOD((MOD(MOD(999999999999989,MOD($B$2*2499997+G6*1800451,7450589)*4658+7450581)*383,99991)*7440893+MOD(MOD(999999999999989,MOD($B$2*2246527+G6*2399993,7450987)*7580+7560584)*17669,7440893))*1343,4294967296))+0.5)/2^32 -> 0.05321857578 | K6: 1 | L6: -628233.9357 | N6: =N5+1000000 -> -9000000 | O6: =COUNTIF($L$6:$L$505, "<"&N6)/500 -> 0 | P6: =O6-O5 -> 0
B7: Initial development costs (2020) | D7: 4125207.065 | E7: 3000000 | F7: 8000000 | G7: 3 | H7: =((MOD((MOD(MOD(999999999999989,MOD($B$2*2499997+G7*1800451,7450589)*4658+7450581)*383,99991)*7440893+MOD(MOD(999999999999989,MOD($B$2*2246527+G7*2399993,7450987)*7580+7560584)*17669,7440893))*1343,4294967296))+0.5)/2^32 -> 0.2250414131 | K7: 2 | L7: -3396093.307 | N7: =N6+1000000 -> -8000000 | O7: 0 | P7: =O7-O6 -> 0 | T7: Insert histogram here.
B8: Cost of money | D8: 0.07668285681 | E8: 0.05 | F8: 0.08 | G8: 4 | H8: 0.8894285603 | K8: 3 | L8: 444392.1956 | N8: -7000000 | O8: 0 | P8: 0
K9: 4 | L9: 6095219.698 | N9: -6000000 | O9: 0 | P9: 0
B10: Cash Flow | K10: 5 | L10: 2371661.22 | N10: -5000000 | O10: 0.002 | P10: 0.002
C11: 2020 | D11: 2021 | E11: 2022 | F11: 2023 | G11: 2024 | K11: 6 | L11: -1652466.393 | N11: -4000000 | O11: 0.03 | P11: 0.028
B12: Total costs | C12: =D7 -> 4125207.065 | K12: 7 | L12: -3757061.388 | N12: -3000000 | O12: 0.074 | P12: 0.044
B13: Total benefits | D13: =$D6*$D5 -> 1033586.193 | E13: =$D6*$D5 -> 1033586.193 | F13: =$D6*$D5 -> 1033586.193 | G13: =$D6*$D5 -> 1033586.193 | K13: 8 | L13: 3000193.426 | N13: -2000000 | O13: 0.122 | P13: 0.048
B14: Net benefit | C14: =C13-C12 -> -4125207.065 | D14: =D13-D12 -> 1033586.193 | E14: =E13-E12 -> 1033586.193 | F14: =F13-F12 -> 1033586.193 | G14: =G13-G12 -> 1033586.193 | K14: 9 | L14: 10948827.84 | N14: -1000000 | O14: 0.188 | P14: 0.066
K15: 10 | L15: -2634065.199 | N15: 0 | O15: 0.272 | P15: 0.084
B16: Results | K16: 11 | L16: 4928917.096 | N16: 1000000 | O16: 0.37 | P16: 0.098 | T16: Average NPV | U16: =AVERAGE(L6:L505) -> 2562769.073
B17: Net Present Value | C17: =NPV(D8, C14:G14) -> -628233.9357 | K17: 12 | L17: 6681065.447 | N17: 2000000 | O17: 0.466 | P17: 0.096 | T17: P(NPV<0) | U17: =COUNTIF(L6:L505, "<0")/500 -> 0.272
K18: 13 | L18: -2904756.14 | N18: 3000000 | O18: 0.56 | P18: 0.094
K19: 14 | L19: 3074881.333 | N19: 4000000 | O19: 0.65 | P19: 0.09
K20: 15 | L20: -202257.2462 | N20: 5000000 | O20: 0.736 | P20: 0.086
K21: 16 | L21: 5462299.345 | N21: 6000000 | O21: 0.808 | P21: 0.072
K22: 17 | L22: 5262767.809 | N22: 7000000 | O22: 0.868 | P22: 0.06
K23: 18 | L23: 3765450.808 | N23: 8000000 | O23: 0.902 | P23: 0.034
K24: 19 | L24: 7417095.81 | N24: 9000000 | O24: 0.936 | P24: 0.034
K25: 20 | L25: 5453563.509 | N25: 10000000 | O25: 0.974 | P25: 0.038
K26: 21 | L26: 685469.1734 | N26: 11000000 | O26: 0.99 | P26: 0.016
K27: 22 | L27: -672148.4556 | N27: 12000000 | O27: 0.998 | P27: 0.008
K28: 23 | L28: -4760564.109 | N28: 13000000 | O28: 1 | P28: 0.002
K29: 24 | L29: 12373739.42 | N29: 14000000 | O29: 1 | P29: 0
K30: 25 | L30: 6905497.756 | N30: 15000000 | O30: 1 | P30: 0
K31: 26 | L31: 246078.6163 | N31: 16000000 | O31: 1 | P31: 0
K32: 27 | L32: 4264464.003 | N32: 17000000 | O32: 1 | P32: 0
K33: 28 | L33: 3681404.808 | N33: 18000000 | O33: 1 | P33: 0
K34: 29 | L34: 2388818.464 | N34: 19000000 | O34: 1 | P34: 0
K35: 30 | L35: -3373571.225 | N35: 20000000 | O35: 1 | P35: 0
K36: 31 | L36: 5669512.508 | N36: 21000000 | O36: 1 | P36: 0
K37: 32 | L37: 6514017.367 | N37: 22000000 | O37: 1 | P37: 0
K38: 33 | L38: -2020479.358
K39: 34 | L39: -277068.4968
K40: 35 | L40: -4005103.986
K41: 36 | L41: -4582564.927
K42: 37 | L42: 747078.8739
K43: 38 | L43: 2779822.167
K44: 39 | L44: 3820311.303
K45: 40 | L45: 1765225.374
K46: 41 | L46: 4571437.511
K47: 42 | L47: 220374.9529
K48: 43 | L48: 4030571.423
K49: 44 | L49: 7234549.203
K50: 45 | L50: 10305099.07
K51: 46 | L51: -875562.6026
K52: 47 | L52: -789388.0651
K53: 48 | L53: 9759484.707
K54: 49 | L54: 1830186.259
K55: 50 | L55: 656104.9045
K56: 51 | L56: 963293.9546
K57: 52 | L57: -918359.1282
K58: 53 | L58: 981043.4159
K59: 54 | L59: 2460326.628
K60: 55 | L60: 1674617.659
K61: 56 | L61: 8333292.536
K62: 57 | L62: 6283271.551
K63: 58 | L63: -1365688.032
K64: 59 | L64: 3628458.6
K65: 60 | L65: 789833.7283
K66: 61 | L66: 1813934.672
K67: 62 | L67: -1056087.705
K68: 63 | L68: 1397728.788
K69: 64 | L69: 7669454.676
K70: 65 | L70: 8325274.102
K71: 66 | L71: 590004.4993
K72: 67 | L72: 4572147.084
K73: 68 | L73: 3776495.54
K74: 69 | L74: 2220031.409
K75: 70 | L75: 1298043.643
K76: 71 | L76: -161079.2168
K77: 72 | L77: 1411127.393
K78: 73 | L78: -2810483.269
K79: 74 | L79: -693641.3357
K80: 75 | L80: 3642091.643
K81: 76 | L81: -3845722.579
K82: 77 | L82: 938621.707
K83: 78 | L83: 2135219.976
K84: 79 | L84: 2156952.106
K85: 80 | L85: 9122608.042
K86: 81 | L86: 6669479.452
K87: 82 | L87: 3686798.116
K88: 83 | L88: 369234.6206
K89: 84 | L89: 3024398.662
K90: 85 | L90: 2481779.789
K91: 86 | L91: 2779232.418
K92: 87 | L92: 2958010.715
K93: 88 | L93: -720349.0977
K94: 89 | L94: 5249060.202
K95: 90 | L95: -3148697.906
K96: 91 | L96: 9955721.222
K97: 92 | L97: -493644.9153
K98: 93 | L98: 4646499.421
K99: 94 | L99: -3015658.401
K100: 95 | L100: 9059330.609
K101: 96 | L101: -273435.0161
K102: 97 | L102: -1018599.388
K103: 98 | L103: 8743926.79
K104: 99 | L104: 8996119.344
K105: 100 | L105: 484777.9189
K106: 101 | L106: 169539.5588
K107: 102 | L107: 10465310.19
K108: 103 | L108: 165705.2201
K109: 104 | L109: 3672590.888
K110: 105 | L110: 2552516.414
K111: 106 | L111: 8788052.285
K112: 107 | L112: 8601059.171
K113: 108 | L113: 1487946.823
K114: 109 | L114: -2888635.357
K115: 110 | L115: 3486469.786
K116: 111 | L116: -275433.8382
K117: 112 | L117: 1579228.525
K118: 113 | L118: -1985836.84
K119: 114 | L119: 6375184.989
K120: 115 | L120: -1211613.319
K121: 116 | L121: 4464254.386
K122: 117 | L122: -338412.6882
K123: 118 | L123: 3582961.02
K124: 119 | L124: 7278479.533
K125: 120 | L125: 5181251.477
K126: 121 | L126: 2836637.685
K127: 122 | L127: 9560065.459
K128: 123 | L128: 2193499.287
K129: 124 | L129: -3974401.471
K130: 125 | L130: 1724079.252
K131: 126 | L131: 4752877.175
K132: 127 | L132: -1306921.431
K133: 128 | L133: 4982502.92
K134: 129 | L134: 6963366.253
K135: 130 | L135: 6714981.093
K136: 131 | L136: 2370490.451
K137: 132 | L137: 7947102.131
K138: 133 | L138: -4188317.554
K139: 134 | L139: 10871818.53
K140: 135 | L140: -3748773.829
K141: 136 | L141: 8472136.807
K142: 137 | L142: 10325865.86
K143: 138 | L143: 4762808.34
K144: 139 | L144: 2959003.009
K145: 140 | L145: -2111660.526
K146: 141 | L146: 2023426.339
K147: 142 | L147: 1282907.989
K148: 143 | L148: 7476326.615
K149: 144 | L149: 84035.24917
K150: 145 | L150: 3026460.803
K151: 146 | L151: -1902587.804
K152: 147 | L152: -2872323.069
K153: 148 | L153: 365494.535
K154: 149 | L154: 9706844.616
K155: 150 | L155: 6149186.566
K156: 151 | L156: 725072.7644
K157: 152 | L157: 2776253.127
K158: 153 | L158: 9697876.371
K159: 154 | L159: 4350080.977
K160: 155 | L160: 2719908.605
K161: 156 | L161: -963355.6763
K162: 157 | L162: 5184735.91
K163: 158 | L163: -1075751.572
K164: 159 | L164: -1424461.229
K165: 160 | L165: 2231051.86
K166: 161 | L166: 1169793.395
K167: 162 | L167: -2874306.948
K168: 163 | L168: 6274720.665
K169: 164 | L169: -2549466.815
K170: 165 | L170: 3951978.093
K171: 166 | L171: -1708093.663
K172: 167 | L172: 2713131.549
K173: 168 | L173: -2525263.555
K174: 169 | L174: 3035916.407
K175: 170 | L175: -960569.3467
K176: 171 | L176: 2792398.182
K177: 172 | L177: -794985.4741
K178: 173 | L178: -2122154.256
K179: 174 | L179: 356011.8371
K180: 175 | L180: 9687382.578
K181: 176 | L181: 4764157.097
K182: 177 | L182: 5143232.551
K183: 178 | L183: 4090283.947
K184: 179 | L184: 3226984.184
K185: 180 | L185: 9949833.443
K186: 181 | L186: 5557219.651
K187: 182 | L187: -1420047.412
K188: 183 | L188: -35252.44089
K189: 184 | L189: 5384199.723
K190: 185 | L190: 324001.2243
K191: 186 | L191: -4920720.209
K192: 187 | L192: 3619116.355
K193: 188 | L193: 11107668.37
K194: 189 | L194: 6663841.416
K195: 190 | L195: -3080605.425
K196: 191 | L196: 6601744.64
K197: 192 | L197: 2116806.029
K198: 193 | L198: 7657971.558
K199: 194 | L199: 2911527.882
K200: 195 | L200: 5097043.311
K201: 196 | L201: 1470704.993
... 304 more rows

Sheet Workspace
A2: Trial ID | B2: 1
A4: Modeling additional distributions
A5: Variable | B5: Simulated value | C5: Lower bound | D5: Mode or P | E5: Upper bound | F5: Variable ID | G5: PRNG | H5: Shape | I5: Shape notes
A6: Percent reduction in labor cost | C6: 0.05 | D6: 0.1 | E6: 0.3 | F6: 1 | I6: Won't be outside our range. Our best guess is 10%.
A7: Current total labor cost | C7: 10000000 | E7: 20000000 | F7: 2 | I7: Could be outside our range about 10% of the time. We think the middle of the range is most likely and the actual value is just as likely to be above the mean as below.
A8: Change in labor cost | C8: -0.05 | E8: 0.1 | F8: 3 | I8: Could be outside our range about 10% of the time. We think the middle of the range is most likely and the actual value is just as likely to be above the mean as below.
A9: Initial development costs (2020) | C9: 3000000 | E9: 10000000 | F9: 4 | I9: Won't be 0 or negative, but could be outside our range about 10% of the time.
A10: Cost of money | C10: 0.03 | E10: 0.05 | F10: 5 | I10: Could be outside our range about 10% of the time. We think the middle of the range is most likely and the actual value is just as likely to be above the mean as below.
A11: Project cancellation | D11: 0.1 | F11: 6 | I11: Only two possible outcomes.
A13: Applying the HDR PRNG to create a time series
B14: 2021 | C14: 2022 | D14: 2023 | E14: 2024 | F14: 2025 | H14: Initial State | J14: Time increment | K14: 1 | L14: 2 | M14: 3 | N14: 4 | O14: 5 | P14: 6 | Q14: 7 | R14: 8 | S14: 9 | T14: 10 | U14: 11 | V14: 12 | W14: 13 | X14: 14 | Y14: 15 | Z14: 16 | AA14: 17 | AB14: 18 | AC14: 19 | AD14: 20 | AE14: 21 | AF14: 22 | AG14: 23 | AH14: 24 | AI14: 25 | AJ14: 26 | AK14: 27 | AL14: 28 | AM14: 29 | AN14: 30 | AO14: 31 | AP14: 32 | AQ14: 33 | AR14: 34 | AS14: 35 | AT14: 36 | AU14: 37 | AV14: 38 | AW14: 39 | AX14: 40 | AY14: 41 | AZ14: 42 | BA14: 43 | BB14: 44 | BC14: 45 | BD14: 46 | BE14: 47 | BF14: 48 | BG14: 49 | BH14: 50 | BI14: 51 | BJ14: 52 | BK14: 53 | BL14: 54 | BM14: 55 | BN14: 56 | BO14: 57 | BP14: 58 | BQ14: 59 | BR14: 60 | BS14: 61 | BT14: 62 | BU14: 63 | BV14: 64 | BW14: 65 | BX14: 66 | BY14: 67 | BZ14: 68 | CA14: 69 | CB14: 70 | CC14: 71 | CD14: 72 | CE14: 73 | CF14: 74 | CG14: 75 | CH14: 76 | CI14: 77 | CJ14: 78 | CK14: 79 | CL14: 80 | CM14: 81 | CN14: 82 | CO14: 83 | CP14: 84 | CQ14: 85 | CR14: 86 | CS14: 87 | CT14: 88 | CU14: 89 | CV14: 90 | CW14: 91 | CX14: 92 | CY14: 93 | CZ14: 94 | DA14: 95 | DB14: 96 | DC14: 97 | DD14: 98 | DE14: 99 | DF14: 100 | DG14: 101 | DH14: 102 | DI14: 103 | DJ14: 104 | DK14: 105 | DL14: 106 | DM14: 107 | DN14: 108 | DO14: 109 | DP14: 110 | DQ14: 111 | DR14: 112 | DS14: 113 | DT14: 114 | DU14: 115 | DV14: 116 | DW14: 117 | DX14: 118 | DY14: 119 | DZ14: 120 | EA14: 121 | EB14: 122 | EC14: 123 | ED14: 124 | EE14: 125 | EF14: 126 | EG14: 127 | EH14: 128 | EI14: 129 | EJ14: 130 | EK14: 131 | EL14: 132 | EM14: 133 | EN14: 134 | EO14: 135 | EP14: 136 | EQ14: 137 | ER14: 138 | ES14: 139 | ET14: 140 | EU14: 141 | EV14: 142 | EW14: 143 | EX14: 144 | EY14: 145 | EZ14: 146 | FA14: 147 | FB14: 148 | FC14: 149 | FD14: 150 | FE14: 151 | FF14: 152 | FG14: 153 | FH14: 154 | FI14: 155 | FJ14: 156 | FK14: 157 | FL14: 158 | FM14: 159 | FN14: 160 | FO14: 161 | FP14: 162 | FQ14: 163 | FR14: 164 | FS14: 165 | FT14: 166 | FU14: 167 | FV14: 168 | FW14: 169 | FX14: 170 | FY14: 171 | FZ14: 172 | GA14: 173 | GB14: 174 | GC14: 175 | GD14: 176 | GE14: 177 | GF14: 178 | GG14: 179 | GH14: 180 | GI14: 181 | GJ14: 182 | GK14: 183 | GL14: 184 | GM14: 185 | GN14: 186 | GO14: 187 | GP14: 188 | GQ14: 189 | GR14: 190 | GS14: 191 | GT14: 192 | GU14: 193 | GV14: 194 | GW14: 195 | GX14: 196 | GY14: 197 | GZ14: 198 | HA14: 199 | HB14: 200 | HC14: 201 | HD14: 202 | HE14: 203 | HF14: 204 | HG14: 205 | HH14: 206 | HI14: 207 | HJ14: 208 | HK14: 209 | HL14: 210 | HM14: 211 | HN14: 212 | HO14: 213 | HP14: 214 | HQ14: 215 | HR14: 216 | HS14: 217 | HT14: 218 | HU14: 219 | HV14: 220 | HW14: 221 | HX14: 222 | HY14: 223 | HZ14: 224 | IA14: 225 | IB14: 226 | IC14: 227 | ID14: 228 | IE14: 229 | IF14: 230 | IG14: 231 | IH14: 232 | II14: 233 | IJ14: 234 | IK14: 235 | IL14: 236 | IM14: 237 | IN14: 238 | IO14: 239 | IP14: 240 | IQ14: 241 | IR14: 242 | IS14: 243 | IT14: 244 | IU14: 245 | IV14: 246 | IW14: 247 | IX14: 248 | IY14: 249 | IZ14: 250 | JA14: 251 | JB14: 252 | JC14: 253 | JD14: 254 | JE14: 255 | JF14: 256 | JG14: 257 | JH14: 258 | JI14: 259 | JJ14: 260 | JK14: 261 | JL14: 262 | JM14: 263 | JN14: 264 | JO14: 265 | JP14: 266 | JQ14: 267 | JR14: 268 | JS14: 269 | JT14: 270 | JU14: 271 | JV14: 272 | JW14: 273 | JX14: 274 | JY14: 275 | JZ14: 276 | KA14: 277 | KB14: 278 | KC14: 279 | KD14: 280 | KE14: 281 | KF14: 282 | KG14: 283 | KH14: 284 | KI14: 285 | KJ14: 286 | KK14: 287 | KL14: 288 | KM14: 289 | KN14: 290 | KO14: 291 | KP14: 292 | KQ14: 293 | KR14: 294 | KS14: 295 | KT14: 296 | KU14: 297 | KV14: 298 | KW14: 299 | KX14: 300 | KY14: 301 | KZ14: 302 | LA14: 303 | LB14: 304 | LC14: 305 | LD14: 306 | LE14: 307 | LF14: 308 | LG14: 309 | LH14: 310 | LI14: 311 | LJ14: 312 | LK14: 313 | LL14: 314 | LM14: 315 | LN14: 316 | LO14: 317 | LP14: 318 | LQ14: 319 | LR14: 320 | LS14: 321 | LT14: 322 | LU14: 323 | LV14: 324 | LW14: 325 | LX14: 326 | LY14: 327 | LZ14: 328 | MA14: 329 | MB14: 330 | MC14: 331 | MD14: 332 | ME14: 333 | MF14: 334 | MG14: 335 | MH14: 336 | MI14: 337 | MJ14: 338 | MK14: 339 | ML14: 340 | MM14: 341 | MN14: 342 | MO14: 343 | MP14: 344 | MQ14: 345 | MR14: 346 | MS14: 347 | MT14: 348 | MU14: 349 | MV14: 350 | MW14: 351 | MX14: 352 | MY14: 353 | MZ14: 354 | NA14: 355 | NB14: 356 | NC14: 357 | ND14: 358 | NE14: 359 | NF14: 360 | NG14: 361 | NH14: 362 | NI14: 363 | NJ14: 364 | NK14: 365 | NL14: 366 | NM14: 367 | NN14: 368 | NO14: 369 | NP14: 370 | NQ14: 371 | NR14: 372 | NS14: 373 | NT14: 374 | NU14: 375 | NV14: 376 | NW14: 377 | NX14: 378 | NY14: 379 | NZ14: 380 | OA14: 381 | OB14: 382 | OC14: 383 | OD14: 384 | OE14: 385 | OF14: 386 | OG14: 387 | OH14: 388 | OI14: 389 | OJ14: 390 | OK14: 391 | OL14: 392 | OM14: 393 | ON14: 394 | OO14: 395 | OP14: 396 | OQ14: 397 | OR14: 398 | OS14: 399 | OT14: 400 | OU14: 401 | OV14: 402 | OW14: 403 | OX14: 404 | OY14: 405 | OZ14: 406 | PA14: 407 | PB14: 408 | PC14: 409 | PD14: 410 | PE14: 411 | PF14: 412 | PG14: 413 | PH14: 414 | PI14: 415 | PJ14: 416 | PK14: 417 | PL14: 418 | PM14: 419 | PN14: 420 | PO14: 421 | PP14: 422 | PQ14: 423 | PR14: 424 | PS14: 425 | PT14: 426 | PU14: 427 | PV14: 428 | PW14: 429 | PX14: 430 | PY14: 431 | PZ14: 432 | QA14: 433 | QB14: 434 | QC14: 435 | QD14: 436 | QE14: 437 | QF14: 438 | QG14: 439 | QH14: 440 | QI14: 441 | QJ14: 442 | QK14: 443 | QL14: 444 | QM14: 445 | QN14: 446 | QO14: 447 | QP14: 448 | QQ14: 449 | QR14: 450 | QS14: 451 | QT14: 452 | QU14: 453 | QV14: 454 | QW14: 455 | QX14: 456 | QY14: 457 | QZ14: 458 | RA14: 459 | RB14: 460 | RC14: 461 | RD14: 462 | RE14: 463 | RF14: 464 | RG14: 465 | RH14: 466 | RI14: 467 | RJ14: 468 | RK14: 469 | RL14: 470 | RM14: 471 | RN14: 472 | RO14: 473 | RP14: 474 | RQ14: 475 | RR14: 476 | RS14: 477 | RT14: 478 | RU14: 479 | RV14: 480 | RW14: 481 | RX14: 482 | RY14: 483 | RZ14: 484 | SA14: 485 | SB14: 486 | SC14: 487 | SD14: 488 | SE14: 489 | SF14: 490 | SG14: 491 | SH14: 492 | SI14: 493 | SJ14: 494 | SK14: 495 | SL14: 496 | SM14: 497 | SN14: 498 | SO14: 499 | SP14: 500 | SQ14: 501 | SR14: 502 | SS14: 503 | ST14: 504 | SU14: 505 | SV14: 506 | SW14: 507 | SX14: 508 | SY14: 509 | SZ14: 510 | TA14: 511 | TB14: 512 | TC14: 513 | TD14: 514 | TE14: 515 | TF14: 516 | TG14: 517 | TH14: 518 | TI14: 519 | TJ14: 520 | TK14: 521 | TL14: 522 | TM14: 523 | TN14: 524 | TO14: 525 | TP14: 526 | TQ14: 527 | TR14: 528 | TS14: 529 | TT14: 530 | TU14: 531 | TV14: 532 | TW14: 533 | TX14: 534 | TY14: 535 | TZ14: 536 | UA14: 537 | UB14: 538 | UC14: 539 | UD14: 540 | UE14: 541 | UF14: 542 | UG14: 543 | UH14: 544 | UI14: 545 | UJ14: 546 | UK14: 547 | UL14: 548 | UM14: 549 | UN14: 550 | UO14: 551 | UP14: 552 | UQ14: 553 | UR14: 554 | US14: 555 | UT14: 556 | UU14: 557 | UV14: 558 | UW14: 559 | UX14: 560 | UY14: 561 | UZ14: 562 | VA14: 563 | VB14: 564 | VC14: 565 | VD14: 566 | VE14: 567 | VF14: 568 | VG14: 569 | VH14: 570 | VI14: 571 | VJ14: 572 | VK14: 573 | VL14: 574 | VM14: 575 | VN14: 576 | VO14: 577 | VP14: 578 | VQ14: 579 | VR14: 580 | VS14: 581 | VT14: 582 | VU14: 583 | VV14: 584 | VW14: 585 | VX14: 586 | VY14: 587 | VZ14: 588 | WA14: 589 | WB14: 590 | WC14: 591 | WD14: 592 | WE14: 593 | WF14: 594 | WG14: 595 | WH14: 596 | WI14: 597 | WJ14: 598 | WK14: 599 | WL14: 600 | WM14: 601 | WN14: 602 | WO14: 603 | WP14: 604 | WQ14: 605 | WR14: 606 | WS14: 607 | WT14: 608 | WU14: 609 | WV14: 610 | WW14: 611 | WX14: 612 | WY14: 613 | WZ14: 614 | XA14: 615 | XB14: 616 | XC14: 617 | XD14: 618 | XE14: 619 | XF14: 620 | XG14: 621 | XH14: 622 | XI14: 623 | XJ14: 624 | XK14: 625 | XL14: 626 | XM14: 627 | XN14: 628 | XO14: 629 | XP14: 630 | XQ14: 631 | XR14: 632 | XS14: 633 | XT14: 634 | XU14: 635 | XV14: 636 | XW14: 637 | XX14: 638 | XY14: 639 | XZ14: 640 | YA14: 641 | YB14: 642 | YC14: 643 | YD14: 644 | YE14: 645 | YF14: 646 | YG14: 647 | YH14: 648 | YI14: 649 | YJ14: 650 | YK14: 651 | YL14: 652 | YM14: 653 | YN14: 654 | YO14: 655 | YP14: 656 | YQ14: 657 | YR14: 658 | YS14: 659 | YT14: 660 | YU14: 661 | YV14: 662 | YW14: 663 | YX14: 664 | YY14: 665 | YZ14: 666 | ZA14: 667 | ZB14: 668 | ZC14: 669 | ZD14: 670 | ZE14: 671 | ZF14: 672 | ZG14: 673 | ZH14: 674 | ZI14: 675 | ZJ14: 676 | ZK14: 677 | ZL14: 678 | ZM14: 679 | ZN14: 680 | ZO14: 681 | ZP14: 682 | ZQ14: 683 | ZR14: 684 | ZS14: 685 | ZT14: 686 | ZU14: 687 | ZV14: 688 | ZW14: 689 | ZX14: 690 | ZY14: 691 | ZZ14: 692 | AAA14: 693 | AAB14: 694 | AAC14: 695 | AAD14: 696 | AAE14: 697 | AAF14: 698 | AAG14: 699 | AAH14: 700 | AAI14: 701 | AAJ14: 702 | AAK14: 703 | AAL14: 704 | AAM14: 705 | AAN14: 706 | AAO14: 707 | AAP14: 708 | AAQ14: 709 | AAR14: 710 | AAS14: 711 | AAT14: 712 | AAU14: 713 | AAV14: 714 | AAW14: 715 | AAX14: 716 | AAY14: 717 | AAZ14: 718 | ABA14: 719 | ABB14: 720 | ABC14: 721 | ABD14: 722 | ABE14: 723 | ABF14: 724 | ABG14: 725 | ABH14: 726 | ABI14: 727 | ABJ14: 728 | ABK14: 729 | ABL14: 730 | ABM14: 731 | ABN14: 732 | ABO14: 733 | ABP14: 734 | ABQ14: 735 | ABR14: 736 | ABS14: 737 | ABT14: 738 | ABU14: 739 | ABV14: 740 | ABW14: 741 | ABX14: 742 | ABY14: 743 | ABZ14: 744 | ACA14: 745 | ACB14: 746 | ACC14: 747 | ACD14: 748 | ACE14: 749 | ACF14: 750 | ACG14: 751 | ACH14: 752 | ACI14: 753 | ACJ14: 754 | ACK14: 755 | ACL14: 756 | ACM14: 757 | ACN14: 758 | ACO14: 759 | ACP14: 760 | ACQ14: 761 | ACR14: 762 | ACS14: 763 | ACT14: 764 | ACU14: 765 | ACV14: 766 | ACW14: 767 | ACX14: 768 | ACY14: 769 | ACZ14: 770 | ADA14: 771 | ADB14: 772 | ADC14: 773 | ADD14: 774 | ADE14: 775 | ADF14: 776 | ADG14: 777 | ADH14: 778 | ADI14: 779 | ADJ14: 780 | ADK14: 781 | ADL14: 782 | ADM14: 783 | ADN14: 784 | ADO14: 785 | ADP14: 786 | ADQ14: 787 | ADR14: 788 | ADS14: 789 | ADT14: 790 | ADU14: 791 | ADV14: 792 | ADW14: 793 | ADX14: 794 | ADY14: 795 | ADZ14: 796 | AEA14: 797 | AEB14: 798 | AEC14: 799 | AED14: 800 | AEE14: 801 | AEF14: 802 | AEG14: 803 | AEH14: 804 | AEI14: 805 | AEJ14: 806 | AEK14: 807 | AEL14: 808 | AEM14: 809 | AEN14: 810 | AEO14: 811 | AEP14: 812 | AEQ14: 813 | AER14: 814 | AES14: 815 | AET14: 816 | AEU14: 817 | AEV14: 818 | AEW14: 819 | AEX14: 820 | AEY14: 821 | AEZ14: 822 | AFA14: 823 | AFB14: 824 | AFC14: 825 | AFD14: 826 | AFE14: 827 | AFF14: 828 | AFG14: 829 | AFH14: 830 | AFI14: 831 | AFJ14: 832 | AFK14: 833 | AFL14: 834 | AFM14: 835 | AFN14: 836 | AFO14: 837 | AFP14: 838 | AFQ14: 839 | AFR14: 840 | AFS14: 841 | AFT14: 842 | AFU14: 843 | AFV14: 844 | AFW14: 845 | AFX14: 846 | AFY14: 847 | AFZ14: 848 | AGA14: 849 | AGB14: 850 | AGC14: 851 | AGD14: 852 | AGE14: 853 | AGF14: 854 | AGG14: 855 | AGH14: 856 | AGI14: 857 | AGJ14: 858 | AGK14: 859 | AGL14: 860 | AGM14: 861 | AGN14: 862 | AGO14: 863 | AGP14: 864 | AGQ14: 865 | AGR14: 866 | AGS14: 867 | AGT14: 868 | AGU14: 869 | AGV14: 870 | AGW14: 871 | AGX14: 872 | AGY14: 873 | AGZ14: 874 | AHA14: 875 | AHB14: 876 | AHC14: 877 | AHD14: 878 | AHE14: 879 | AHF14: 880 | AHG14: 881 | AHH14: 882 | AHI14: 883 | AHJ14: 884 | AHK14: 885 | AHL14: 886 | AHM14: 887 | AHN14: 888 | AHO14: 889 | AHP14: 890 | AHQ14: 891 | AHR14: 892 | AHS14: 893 | AHT14: 894 | AHU14: 895 | AHV14: 896 | AHW14: 897 | AHX14: 898 | AHY14: 899 | AHZ14: 900 | AIA14: 901 | AIB14: 902 | AIC14: 903 | AID14: 904 | AIE14: 905 | AIF14: 906 | AIG14: 907 | AIH14: 908 | AII14: 909 | AIJ14: 910 | AIK14: 911 | AIL14: 912 | AIM14: 913 | AIN14: 914 | AIO14: 915 | AIP14: 916 | AIQ14: 917 | AIR14: 918 | AIS14: 919 | AIT14: 920 | AIU14: 921 | AIV14: 922 | AIW14: 923 | AIX14: 924 | AIY14: 925 | AIZ14: 926 | AJA14: 927 | AJB14: 928 | AJC14: 929 | AJD14: 930 | AJE14: 931 | AJF14: 932 | AJG14: 933 | AJH14: 934 | AJI14: 935 | AJJ14: 936 | AJK14: 937 | AJL14: 938 | AJM14: 939 | AJN14: 940 | AJO14: 941 | AJP14: 942 | AJQ14: 943 | AJR14: 944 | AJS14: 945 | AJT14: 946 | AJU14: 947 | AJV14: 948 | AJW14: 949 | AJX14: 950 | AJY14: 951 | AJZ14: 952 | AKA14: 953 | AKB14: 954 | AKC14: 955 | AKD14: 956 | AKE14: 957 | AKF14: 958 | AKG14: 959 | AKH14: 960 | AKI14: 961 | AKJ14: 962 | AKK14: 963 | AKL14: 964 | AKM14: 965 | AKN14: 966 | AKO14: 967 | AKP14: 968 | AKQ14: 969 | AKR14: 970 | AKS14: 971 | AKT14: 972 | AKU14: 973 | AKV14: 974 | AKW14: 975 | AKX14: 976 | AKY14: 977 | AKZ14: 978 | ALA14: 979 | ALB14: 980 | ALC14: 981 | ALD14: 982 | ALE14: 983 | ALF14: 984 | ALG14: 985 | ALH14: 986 | ALI14: 987 | ALJ14: 988 | ALK14: 989 | ALL14: 990 | ALM14: 991 | ALN14: 992 | ALO14: 993 | ALP14: 994 | ALQ14: 995 | ALR14: 996 | ALS14: 997 | ALT14: 998 | ALU14: 999 | ALV14: 1000
A15: Costs | H15: 100 | J15: HDR PRNG | K15: =((MOD((MOD(MOD(999999999999989,MOD($B$2*2499997+0*1800451+K14*2000371,7450589)*4658+7450581)*383,99991)*7440893+MOD(MOD(999999999999989,MOD($B$2*2246527+0*2399993+K14*2100869,7450987)*7580+7560584)*17669,7440893))*1343,4294967296))+0.5)/2^32 -> 0.2335495752 | L15: =((MOD((MOD(MOD(999999999999989,MOD($B$2*2499997+0*1800451+L14*2000371,7450589)*4658+7450581)*383,99991)*7440893+MOD(MOD(999999999999989,MOD($B$2*2246527+0*2399993+L14*2100869,7450987)*7580+7560584)*17669,7440893))*1343,4294967296))+0.5)/2^32 -> 0.1887539619 | M15: 0.6756348488 | N15: 0.3981063463 | O15: 0.5716641993 | P15: 0.9628222588 | Q15: 0.1085783605 | R15: 0.7189936932 | S15: 0.4266793079 | T15: 0.09035107575 | U15: 0.008074903977 | V15: 0.4784763226 | W15: 0.4792171005 | X15: 0.3698410742 | Y15: 0.9993703339 | Z15: 0.6057777508 | AA15: 0.4721388096 | AB15: 0.1171887851 | AC15: 0.2294424282 | AD15: 0.0171103013 | AE15: 0.01747464377 | AF15: 0.2097674151 | AG15: 0.3879051764 | AH15: 0.9302421493 | AI15: 0.6333996049 | AJ15: 0.5293447349 | AK15: 0.5828065589 | AL15: 0.04849114001 | AM15: 0.05422720115 | AN15: 0.4184692519 | AO15: 0.1212327756 | AP15: 0.6236984384 | AQ15: 0.443006629 | AR15: 0.6492728438 | AS15: 0.7763917252 | AT15: 0.3719388113 | AU15: 0.2951488373 | AV15: 0.4587968666 | AW15: 0.9769808544 | AX15: 0.2483060061 | AY15: 0.4638275906 | AZ15: 0.9175376856 | BA15: 0.4006816972 | BB15: 0.1639775193 | BC15: 0.6396041802 | BD15: 0.6519991081 | BE15: 0.3387194284 | BF15: 0.8538562098 | BG15: 0.37442125 | BH15: 0.7720484616 | BI15: 0.1188571273 | BJ15: 0.9594702268 | BK15: 0.49097851 | BL15: 0.8231111033 | BM15: 0.3564910275 | BN15: 0.3490061912 | BO15: 0.7496302564 | BP15: 0.157546773 | BQ15: 0.5161837443 | BR15: 0.1692540903 | BS15: 0.2576882112 | BT15: 0.5577777737 | BU15: 0.5482818749 | BV15: 0.1049885986 | BW15: 0.5803190292 | BX15: =((MOD((MOD(MOD(999999999999989,MOD($B$2*2499997+0*1800451+BX14*2000371,7450589)*4658+7450581)*383,99991)*7440893+MOD(MOD(999999999999989,MOD($B$2*2246527+0*2399993+BX14*2100869,7450987)*7580+7560584)*17669,7440893))*1343,4294967296))+0.5)/2^32 -> 0.04336870846 | BY15: 0.4674893798 | BZ15: 0.4333464942 | CA15: 0.3964363491 | CB15: 0.8631253088 | CC15: 0.1411458409 | CD15: 0.9780726832 | CE15: 0.6429580786 | CF15: 0.4546553564 | CG15: 0.8608163177 | CH15: 0.4288160909 | CI15: 0.4852907247 | CJ15: 0.917733325 | CK15: 0.08661886386 | CL15: 0.3538904045 | CM15: 0.7457559864 | CN15: 0.2074006536 | CO15: 0.4945784387 | CP15: 0.1222242726 | CQ15: 0.2698252731 | CR15: 0.2836721946 | CS15: 0.5487440742 | CT15: 0.5613308361 | CU15: 0.6147550006 | CV15: 0.7455616811 | CW15: 0.5130596679 | CX15: 0.3181855186 | CY15: 0.9958330215 | CZ15: 0.1684400885 | DA15: 0.9232629194 | DB15: 0.9741067594 | DC15: 0.5943089711 | DD15: 0.4286099534 | DE15: 0.8312128457 | DF15: 0.1265800312 | DG15: 0.8043589381 | DH15: 0.6767496351 | DI15: 0.5015485425 | DJ15: 0.6411939136 | DK15: 0.6898346135 | DL15: 0.3883291971 | DM15: 0.2682748836 | DN15: 0.3893683009 | DO15: 0.3440658407 | DP15: 0.09758490382 | DQ15: 0.4076268411 | DR15: 0.7539159764 | DS15: 0.396421065 | DT15: 0.6727961799 | DU15: 0.3797602687 | DV15: 0.01345824066 | DW15: 0.5283902931 | DX15: 0.1293108478 | DY15: 0.03188598051 | DZ15: 0.7950920382 | EA15: 0.2136822502 | EB15: 0.9128805728 | EC15: 0.1747815764 | ED15: 0.7989645592 | EE15: 0.7282773986 | EF15: 0.2803011028 | EG15: 0.2185868787 | EH15: 0.3682124863 | EI15: 0.2104240131 | EJ15: =((MOD((MOD(MOD(999999999999989,MOD($B$2*2499997+0*1800451+EJ14*2000371,7450589)*4658+7450581)*383,99991)*7440893+MOD(MOD(999999999999989,MOD($B$2*2246527+0*2399993+EJ14*2100869,7450987)*7580+7560584)*17669,7440893))*1343,4294967296))+0.5)/2^32 -> 0.2015168275 | EK15: 0.03297042183 | EL15: 0.2031646216 | EM15: 0.8579956262 | EN15: 0.02457979496 | EO15: 0.6296712273 | EP15: 0.2651707105 | EQ15: 0.005910531268 | ER15: 0.8925953187 | ES15: 0.02947060193 | ET15: 0.02171495825 | EU15: 0.3923657733 | EV15: 0.2160192899 | EW15: 0.2359683624 | EX15: 0.5995866294 | EY15: 0.287581941 | EZ15: 0.1856736011 | FA15: 0.01279232523 | FB15: 0.8934018911 | FC15: 0.3528093226 | FD15: 0.4242345263 | FE15: 0.8136724409 | FF15: 0.356942424 | FG15: 0.1241696706 | FH15: 0.6423946813 | FI15: 0.03641648905 | FJ15: 0.2801353246 | FK15: 0.09236896958 | FL15: 0.01752033865 | FM15: 0.5715201405 | FN15: 0.2492511036 | FO15: 0.4786292646 | FP15: 0.6770324615 | FQ15: 0.7956237557 | FR15: 0.8468749098 | FS15: 0.4039853365 | FT15: 0.9952316553 | FU15: 0.300808367 | FV15: 0.2713257311 | FW15: 0.5775048741 | FX15: 0.4682565461 | FY15: 0.8172064113 | FZ15: 0.3160486153 | GA15: 0.2926713122 | GB15: 0.7123865791 | GC15: 0.6804242159 | GD15: 0.08745632076 | GE15: 0.4577600668 | GF15: 0.5139915921 | GG15: 0.2193363252 | GH15: 0.7733140088 | GI15: 0.5669916031 | GJ15: 0.8091033172 | GK15: 0.3086659483 | GL15: 0.01903889037 | GM15: 0.4011447561 | GN15: 0.7061255391 | GO15: 0.507494581 | GP15: 0.84492401 | GQ15: 0.6648007206 | GR15: 0.4291255964 | GS15: 0.5668647351 | GT15: 0.7332738204 | GU15: 0.9790207316 | GV15: =((MOD((MOD(MOD(999999999999989,MOD($B$2*2499997+0*1800451+GV14*2000371,7450589)*4658+7450581)*383,99991)*7440893+MOD(MOD(999999999999989,MOD($B$2*2246527+0*2399993+GV14*2100869,7450987)*7580+7560584)*17669,7440893))*1343,4294967296))+0.5)/2^32 -> 0.5042669767 | GW15: 0.2868716413 | GX15: 0.2984526331 | GY15: 0.1403517789 | GZ15: 0.2182363711 | HA15: 0.3643546052 | HB15: 0.4231888097 | HC15: 0.1849318711 | HD15: 0.07226655178 | HE15: 0.8460278906 | HF15: 0.5389682559 | HG15: 0.0325534438 | HH15: 0.08548037231 | HI15: 0.4662982974 | HJ15: 0.9295377858 | HK15: 0.7604695648 | HL15: 0.0178817691 | HM15: 0.4147838162 | HN15: 0.8363381474 | HO15: 0.8592439297 | HP15: 0.3797152486 | HQ15: 0.5414547516 | HR15: 0.1869647849 | HS15: 0.4560453779 | HT15: 0.8272366546 | HU15: 0.3714694862 | HV15: 0.3534918799 | HW15: 0.127219668 | HX15: 0.5436508647 | HY15: 0.2966251533 | HZ15: 0.5959402969 | IA15: 0.1031137976 | IB15: 0.9788572117 | IC15: 0.8947557289 | ID15: 0.5898830673 | IE15: 0.203523652 | IF15: 0.6591843503 | IG15: 0.2662288019 | IH15: 0.1020731829 | II15: 0.1064398946 | IJ15: 0.6681977949 | IK15: 0.7648404277 | IL15: 0.9443759819 | IM15: 0.8049817554 | IN15: 0.7510190498 | IO15: 0.2533767849 | IP15: 0.7354996708 | IQ15: 0.4835751752 | IR15: 0.8313957861 | IS15: 0.05959716218 | IT15: 0.8658775009 | IU15: 0.9312680833 | IV15: 0.4406621767 | IW15: 0.8030556458 | IX15: 0.523824762 | IY15: 0.362686172 | IZ15: 0.9959512259 | JA15: 0.6379384833 | JB15: 0.4220672381 | JC15: 0.9656056924 | JD15: 0.4897414109 | JE15: 0.1745657999 | JF15: 0.5755473921 | JG15: 0.02279486845 | JH15: =((MOD((MOD(MOD(999999999999989,MOD($B$2*2499997+0*1800451+JH14*2000371,7450589)*4658+7450581)*383,99991)*7440893+MOD(MOD(999999999999989,MOD($B$2*2246527+0*2399993+JH14*2100869,7450987)*7580+7560584)*17669,7440893))*1343,4294967296))+0.5)/2^32 -> 0.6053632234 | JI15: 0.972150325 | JJ15: 0.1205448405 | JK15: 0.6681922892 | JL15: 0.8375073472 | JM15: 0.2443975509 | JN15: 0.632565997 | JO15: 0.3336932728 | JP15: 0.7185818137 | JQ15: 0.0752464534 | JR15: 0.9299027935 | JS15: 0.9309292381 | JT15: 0.7056406358 | JU15: 0.9773962531 | JV15: 0.3137303969 | JW15: 0.9625361426 | JX15: 0.9450042638 | JY15: 0.1588425502 | JZ15: 0.9337300059 | KA15: 0.2103895525 | KB15: 0.406596372 | KC15: 0.7519754005 | KD15: 0.4471979825 | KE15: 0.4827689036 | KF15: 0.4227720223 | KG15: 0.7893010081 | KH15: 0.1926978669 | KI15: 0.5975941472 | KJ15: 0.1238233467 | KK15: 0.02807602694 | KL15: 0.3270594514 | KM15: 0.574272046 | KN15: 0.01738247543 | KO15: 0.4658043039 | KP15: 0.5702038511 | KQ15: 0.2470870783 | KR15: 0.5292828715 | KS15: 0.6913103469 | KT15: 0.2088772933 | KU15: 0.8588134596 | KV15: 0.6028047352 | KW15: 0.5896604372 | KX15: 0.9856219675 | KY15: 0.2296181776 | KZ15: 0.9372049303 | LA15: 0.2758840582 | LB15: 0.741799262 | LC15: 0.4509201118 | LD15: 0.7021669586 | LE15: 0.0324524882 | LF15: 0.8816722952 | LG15: 0.1870071184 | LH15: 0.829840267 | LI15: 0.8092475819 | LJ15: 0.9285196814 | LK15: 0.7738143251 | LL15: 0.1019189804 | LM15: 0.9602465959 | LN15: 0.9408357051 | LO15: 0.7221992085 | LP15: 0.07236003841 | LQ15: 0.8024789629 | LR15: 0.1907413037 | LS15: 0.3518028994 | LT15: =((MOD((MOD(MOD(999999999999989,MOD($B$2*2499997+0*1800451+LT14*2000371,7450589)*4658+7450581)*383,99991)*7440893+MOD(MOD(999999999999989,MOD($B$2*2246527+0*2399993+LT14*2100869,7450987)*7580+7560584)*17669,7440893))*1343,4294967296))+0.5)/2^32 -> 0.5709058529 | LU15: 0.6870414087 | LV15: 0.6945040791 | LW15: 0.8881041288 | LX15: 0.0635163089 | LY15: 0.7808827275 | LZ15: 0.3568787783 | MA15: 0.7422668488 | MB15: 0.000686148298 | MC15: 0.255071723 | MD15: 0.005396834691 | ME15: 0.8495896669 | MF15: 0.4137548347 | MG15: 0.0001520962687 | MH15: 0.1934532038 | MI15: 0.4245261523 | MJ15: 0.5995864166 | MK15: 0.5355115641 | ML15: 0.8775312834 | MM15: 0.9451040443 | MN15: 0.332147282 | MO15: 0.1162156527 | MP15: 0.5814118428 | MQ15: 0.1154460026 | MR15: 0.5827566792 | MS15: 0.4084376945 | MT15: 0.6011212446 | MU15: 0.9926819968 | MV15: 0.1388084675 | MW15: 0.135721784 | MX15: 0.5875323851 | MY15: 0.02447472385 | MZ15: 0.08236030128 | NA15: 0.03485637705 | NB15: 0.4925721757 | NC15: 0.1362775877 | ND15: 0.7157809712 | NE15: 0.9312936423 | NF15: 0.1177032461 | NG15: 0.373176267 | NH15: 0.3475400867 | NI15: 0.2800049462 | NJ15: 0.6237091502 | NK15: 0.09770972386 | NL15: 0.8635143474 | NM15: 0.293037312 | NN15: 0.03554225864 | NO15: 0.737670458 | NP15: 0.7185036094 | NQ15: 0.9759468668 | NR15: 0.5140882585 | NS15: 0.6453237707 | NT15: 0.1602053469 | NU15: 0.5932618472 | NV15: 0.4796394667 | NW15: 0.9215108411 | NX15: 0.4807022425 | NY15: 0.7841148562 | NZ15: 0.2411299321 | OA15: 0.3285930866 | OB15: 0.6708754447 | OC15: 0.3360942908 | OD15: 0.6381134313 | OE15: 0.2172994328 | OF15: =((MOD((MOD(MOD(999999999999989,MOD($B$2*2499997+0*1800451+OF14*2000371,7450589)*4658+7450581)*383,99991)*7440893+MOD(MOD(999999999999989,MOD($B$2*2246527+0*2399993+OF14*2100869,7450987)*7580+7560584)*17669,7440893))*1343,4294967296))+0.5)/2^32 -> 0.06957163138 | OG15: 0.7894918461 | OH15: 0.9884281581 | OI15: 0.7350051183 | OJ15: 0.2230510492 | OK15: 0.8799654093 | OL15: 0.190749585 | OM15: 0.08513971407 | ON15: 0.5519038503 | OO15: 0.3639650556 | OP15: 0.4991191797 | OQ15: 0.7802830633 | OR15: 0.5822991451 | OS15: 0.708213041 | OT15: 0.3936595806 | OU15: 0.5606215895 | OV15: 0.9676817328 | OW15: 0.3876074465 | OX15: 0.3412170891 | OY15: 0.005796730868 | OZ15: 0.7328969688 | PA15: 0.4227610818 | PB15: 0.8632287931 | PC15: 0.5442335891 | PD15: 0.1274295495 | PE15: 0.08164347766 | PF15: 0.8785593767 | PG15: 0.7313350845 | PH15: 0.9600366092 | PI15: 0.09637886717 | PJ15: 0.1477304547 | PK15: 0.1046756863 | PL15: 0.1909370042 | PM15: 0.9739423752 | PN15: 0.4988075314 | PO15: 0.5853035174 | PP15: 0.2007585644 | PQ15: 0.2232615597 | PR15: 0.3455196078 | PS15: 0.8395459444 | PT15: 0.3384086251 | PU15: 0.2272639588 | PV15: 0.6510013175 | PW15: 0.9364726938 | PX15: 0.603676855 | PY15: 0.6996799562 | PZ15: 0.7507471923 | QA15: 0.4333212933 | QB15: 0.6342039941 | QC15: 0.4132630593 | QD15: 0.7267955801 | QE15: 0.2999801073 | QF15: 0.5863231382 | QG15: 0.2083654316 | QH15: 0.001310560969 | QI15: 0.2714157627 | QJ15: 0.2951043911 | QK15: 0.3987662931 | QL15: 0.8183508081 | QM15: 0.1157754768 | QN15: 0.02212516929 | QO15: 0.117015289 | QP15: 0.5265953474 | QQ15: 0.5021197152 | QR15: =((MOD((MOD(MOD(999999999999989,MOD($B$2*2499997+0*1800451+QR14*2000371,7450589)*4658+7450581)*383,99991)*7440893+MOD(MOD(999999999999989,MOD($B$2*2246527+0*2399993+QR14*2100869,7450987)*7580+7560584)*17669,7440893))*1343,4294967296))+0.5)/2^32 -> 0.02880548278 | QS15: 0.8987692968 | QT15: 0.1318508961 | QU15: 0.8051609084 | QV15: 0.3353965319 | QW15: 0.7641017901 | QX15: 0.3838179716 | QY15: 0.9769544998 | QZ15: 0.6427039691 | RA15: 0.3499927203 | RB15: 0.06511511828 | RC15: 0.2307042266 | RD15: 0.5762970446 | RE15: 0.341519094 | RF15: 0.3855296251 | RG15: 0.2310479452 | RH15: 0.5283342962 | RI15: 0.8964538794 | RJ15: 0.1121936737 | RK15: 0.1254538352 | RL15: 0.8400635532 | RM15: 0.5560523075 | RN15: 0.754842156 | RO15: 0.1840953123 | RP15: 0.1448741424 | RQ15: 0.6790627219 | RR15: 0.9213247061 | RS15: 0.98431232 | RT15: 0.3557266757 | RU15: 0.5873122184 | RV15: 0.5823108131 | RW15: 0.7671027934 | RX15: 0.4501125537 | RY15: 0.9201552422 | RZ15: 0.1919225986 | SA15: 0.8326088745 | SB15: 0.474466262 | SC15: 0.2652907163 | SD15: 0.2506760597 | SE15: 0.3554531288 | SF15: 0.3579846659 | SG15: 0.2708766708 | SH15: 0.8510828026 | SI15: 0.05645949545 | SJ15: 0.2119894045 | SK15: 0.07361796487 | SL15: 0.8202561579 | SM15: 0.8328307698 | SN15: 0.5589504516 | SO15: 0.4668144324 | SP15: 0.7038724971 | SQ15: 0.4948935074 | SR15: 0.8707751421 | SS15: 0.1335209069 | ST15: 0.4637274289 | SU15: 0.5289942519 | SV15: 0.07843738806 | SW15: 0.5165231264 | SX15: 0.0109955956 | SY15: 0.3231603025 | SZ15: 0.5920139224 | TA15: 0.5916173282 | TB15: 0.7781714423 | TC15: 0.3835865051 | TD15: =((MOD((MOD(MOD(999999999999989,MOD($B$2*2499997+0*1800451+TD14*2000371,7450589)*4658+7450581)*383,99991)*7440893+MOD(MOD(999999999999989,MOD($B$2*2246527+0*2399993+TD14*2100869,7450987)*7580+7560584)*17669,7440893))*1343,4294967296))+0.5)/2^32 -> 0.6447507046 | TE15: 0.7171468955 | TF15: 0.7361254647 | TG15: 0.08801668568 | TH15: 0.06088543648 | TI15: 0.6546350879 | TJ15: 0.7387054783 | TK15: 0.3621112123 | TL15: 0.2418310313 | TM15: 0.9304163201 | TN15: 0.418109377 | TO15: 0.8209641796 | TP15: 0.7060509893 | TQ15: 0.4400838754 | TR15: 0.3525947068 | TS15: 0.0382078971 | TT15: 0.3117869346 | TU15: 0.480933074 | TV15: 0.6030689835 | TW15: 0.09328900103 | TX15: 0.9164221693 | TY15: 0.9387544311 | TZ15: 0.5721497553 | UA15: 0.9888220296 | UB15: 0.6983494257 | UC15: 0.9663904178 | UD15: 0.02666277636 | UE15: 0.4360287582 | UF15: 0.4232764194 | UG15: 0.2915010353 | UH15: 0.4606713495 | UI15: 0.5122452496 | UJ15: 0.3561352828 | UK15: 0.08784895914 | UL15: 0.2293328479 | UM15: 0.7165410394 | UN15: 0.8599237603 | UO15: 0.966967936 | UP15: 0.5338247007 | UQ15: 0.473075973 | UR15: 0.7006254717 | US15: 0.5577437211 | UT15: 0.8446054134 | UU15: 0.2691784665 | UV15: 0.9192498162 | UW15: 0.8781481368 | UX15: 0.7336061808 | UY15: 0.7227709127 | UZ15: 0.6766247951 | VA15: 0.8149379514 | VB15: 0.9414601944 | VC15: 0.4911096507 | VD15: 0.1221071937 | VE15: 0.07981082972 | VF15: 0.8977072333 | VG15: 0.6037527266 | VH15: 0.5390851441 | VI15: 0.3893917584 | VJ15: 0.7468122771 | VK15: 0.7958382816 | VL15: 0.6063637162 | VM15: 0.7705501531 | VN15: 0.167343693 | VO15: 0.3491271198 | VP15: =((MOD((MOD(MOD(999999999999989,MOD($B$2*2499997+0*1800451+VP14*2000371,7450589)*4658+7450581)*383,99991)*7440893+MOD(MOD(999999999999989,MOD($B$2*2246527+0*2399993+VP14*2100869,7450987)*7580+7560584)*17669,7440893))*1343,4294967296))+0.5)/2^32 -> 0.6884078319 | VQ15: 0.7173801147 | VR15: 0.6571181469 | VS15: 0.5035787019 | VT15: 0.3834354704 | VU15: 0.2198273941 | VV15: 0.2882177514 | VW15: 0.2237466067 | VX15: 0.5053769628 | VY15: 0.2241781406 | VZ15: 0.778418321 | WA15: 0.7156630581 | WB15: 0.678270745 | WC15: 0.6001299488 | WD15: 0.6044427323 | WE15: 0.07012393966 | WF15: 0.3672205036 | WG15: 0.4283633902 | WH15: 0.06531001173 | WI15: 0.8562112193 | WJ15: 0.7490924742 | WK15: 0.8114337077 | WL15: 0.872020071 | WM15: 0.9605308565 | WN15: 0.5133594567 | WO15: 0.2412038614 | WP15: 0.9666302156 | WQ15: 0.293112079 | WR15: 0.9322770721 | WS15: 0.3593307011 | WT15: 0.5018593461 | WU15: 0.9227282753 | WV15: 0.4260228878 | WW15: 0.7863065909 | WX15: 0.3642872925 | WY15: 0.1702894223 | WZ15: 0.9635641108 | XA15: 0.9993516287 | XB15: 0.600173758 | XC15: 0.9736877132 | XD15: 0.5385471099 | XE15: 0.8938267956 | XF15: 0.4252340159 | XG15: 0.5705050844 | XH15: 0.05739106622 | XI15: 0.9761800993 | XJ15: 0.3262231775 | XK15: 0.390110165 | XL15: 0.9922168999 | XM15: 0.633416724 | XN15: 0.8745413342 | XO15: 0.9407915069 | XP15: 0.7795872811 | XQ15: 0.1147576234 | XR15: 0.9263762078 | XS15: 0.856797638 | XT15: 0.7303038266 | XU15: 0.3533943001 | XV15: 0.8366178245 | XW15: 0.2397497437 | XX15: 0.704078701 | XY15: 0.3414289883 | XZ15: 0.02454160934 | YA15: 0.3124130828 | YB15: =((MOD((MOD(MOD(999999999999989,MOD($B$2*2499997+0*1800451+YB14*2000371,7450589)*4658+7450581)*383,99991)*7440893+MOD(MOD(999999999999989,MOD($B$2*2246527+0*2399993+YB14*2100869,7450987)*7580+7560584)*17669,7440893))*1343,4294967296))+0.5)/2^32 -> 0.6763196845 | YC15: 0.1199809787 | YD15: 0.787162701 | YE15: 0.04274604504 | YF15: 0.2939488046 | YG15: 0.9260711303 | YH15: 0.01364641229 | YI15: 0.3806178168 | YJ15: 0.3572676074 | YK15: 0.3440408508 | YL15: 0.8374094832 | YM15: 0.695526932 | YN15: 0.2787369705 | YO15: 0.3929164597 | YP15: 0.7628899809 | YQ15: 0.7017142168 | YR15: 0.8267149833 | YS15: 0.7720655462 | YT15: 0.4818747538 | YU15: 0.5846443084 | YV15: 0.1541610718 | YW15: 0.03894817096 | YX15: 0.007808244438 | YY15: 0.3743119877 | YZ15: 0.5427547219 | ZA15: 0.9752114447 | ZB15: 0.04776802601 | ZC15: 0.8379397964 | ZD15: 0.9661465959 | ZE15: 0.3638333982 | ZF15: 0.9898191922 | ZG15: 0.7850606445 | ZH15: 0.6646394456 | ZI15: 0.531487374 | ZJ15: 0.9184500807 | ZK15: 0.5486056138 | ZL15: 0.313173408 | ZM15: 0.4550398852 | ZN15: 0.6051365488 | ZO15: 0.4528629129 | ZP15: 0.673294851 | ZQ15: 0.5660108608 | ZR15: 0.2000470316 | ZS15: 0.1990992118 | ZT15: 0.2227934786 | ZU15: 0.2458738881 | ZV15: 0.7970970209 | ZW15: 0.01049302064 | ZX15: 0.004592435551 | ZY15: 0.7275001911 | ZZ15: 0.639516858 | AAA15: 0.08144409291 | AAB15: 0.9681939759 | AAC15: 0.417786152 | AAD15: 0.3450283686 | AAE15: 0.6939913308 | AAF15: 0.215055135 | AAG15: 0.9446682938 | AAH15: 0.4854019781 | AAI15: 0.7368713067 | AAJ15: 0.685863946 | AAK15: 0.1250018497 | AAL15: 0.3316075375 | AAM15: 0.9521440732 | AAN15: =((MOD((MOD(MOD(999999999999989,MOD($B$2*2499997+0*1800451+AAN14*2000371,7450589)*4658+7450581)*383,99991)*7440893+MOD(MOD(999999999999989,MOD($B$2*2246527+0*2399993+AAN14*2100869,7450987)*7580+7560584)*17669,7440893))*1343,4294967296))+0.5)/2^32 -> 0.369158123 | AAO15: 0.004887317424 | AAP15: 0.09098745778 | AAQ15: 0.6291202578 | AAR15: 0.5065654333 | AAS15: 0.2864118504 | AAT15: 0.8852420443 | AAU15: 0.19988863 | AAV15: 0.5880016532 | AAW15: 0.7591919777 | AAX15: 0.9005751646 | AAY15: 0.9059169792 | AAZ15: 0.06131573638 | ABA15: 0.9166938 | ABB15: 0.2936673773 | ABC15: 0.7491902543 | ABD15: 0.310515762 | ABE15: 0.6070916742 | ABF15: 0.4488513736 | ABG15: 0.6708857886 | ABH15: 0.7969372132 | ABI15: 0.5128239876 | ABJ15: 0.7640054215 | ABK15: 0.7933691432 | ABL15: 0.1812542024 | ABM15: 0.2126490975 | ABN15: 0.3632980132 | ABO15: 0.8100993432 | ABP15: 0.1932756979 | ABQ15: 0.9730412761 | ABR15: 0.3544636072 | ABS15: 0.675649627 | ABT15: 0.7843244775 | ABU15: 0.6054533148 | ABV15: 0.02542317926 | ABW15: 0.01901653677 | ABX15: 0.728172701 | ABY15: 0.1847743873 | ABZ15: 0.4230387235 | ACA15: 0.9559572645 | ACB15: 0.6298169057 | ACC15: 0.1044962379 | ACD15: 0.4166799885 | ACE15: 0.2514400174 | ACF15: 0.6473487733 | ACG15: 0.6957570325 | ACH15: 0.597695273 | ACI15: 0.8423134523 | ACJ15: 0.2557210455 | ACK15: 0.1053271148 | ACL15: 0.4613725656 | ACM15: 0.3084562653 | ACN15: 0.4756188415 | ACO15: 0.3522954172 | ACP15: 0.4996809029 | ACQ15: 0.8488269249 | ACR15: 0.7555531637 | ACS15: 0.445310356 | ACT15: 0.9717387721 | ACU15: 0.02593399014 | ACV15: 0.4739302575 | ACW15: 0.9459256526 | ACX15: 0.0811355199 | ACY15: 0.931580983 | ACZ15: =((MOD((MOD(MOD(999999999999989,MOD($B$2*2499997+0*1800451+ACZ14*2000371,7450589)*4658+7450581)*383,99991)*7440893+MOD(MOD(999999999999989,MOD($B$2*2246527+0*2399993+ACZ14*2100869,7450987)*7580+7560584)*17669,7440893))*1343,4294967296))+0.5)/2^32 -> 0.5348656148 | ADA15: 0.8660774323 | ADB15: 0.639999587 | ADC15: 0.5113714066 | ADD15: 0.2813131587 | ADE15: 0.2369904608 | ADF15: 0.685490975 | ADG15: 0.5726881075 | ADH15: 0.09896226006 | ADI15: 0.2616835333 | ADJ15: 0.6944830011 | ADK15: 0.6909004854 | ADL15: 0.08839075232 | ADM15: 0.2070727526 | ADN15: 0.4521864551 | ADO15: 0.6642069494 | ADP15: 0.6139842205 | ADQ15: 0.1750754659 | ADR15: 0.2099062736 | ADS15: 0.53092661 | ADT15: 0.1853255486 | ADU15: 0.9405110524 | ADV15: 0.6260265958 | ADW15: 0.5340295931 | ADX15: 0.01372065407 | ADY15: 0.3820374332 | ADZ15: 0.1813017045 | AEA15: 0.3507432152 | AEB15: 0.880766526 | AEC15: 0.7653602181 | AED15: 0.2618213868 | AEE15: 0.5213108145 | AEF15: 0.9285693694 | AEG15: 0.5270803518 | AEH15: 0.2566353605 | AEI15: 0.2199662136 | AEJ15: 0.6261512603 | AEK15: 0.1296440089 | AEL15: 0.6590861779 | AEM15: 0.5042408275 | AEN15: 0.6163536377 | AEO15: 0.8320795133 | AEP15: 0.3773552348 | AEQ15: 0.265659761 | AER15: 0.7328827445 | AES15: 0.292818589 | AET15: 0.8995995257 | AEU15: 0.489961146 | AEV15: 0.9479009885 | AEW15: 0.6934582834 | AEX15: 0.9398695376 | AEY15: 0.8946667922 | AEZ15: 0.2944458941 | AFA15: 0.6682209711 | AFB15: 0.9228577301 | AFC15: 0.5589085479 | AFD15: 0.5405143596 | AFE15: 0.8298734649 | AFF15: 0.4959040483 | AFG15: 0.09511662892 | AFH15: 0.1782502186 | AFI15: 0.4741316693 | AFJ15: 0.8769385795 | AFK15: 0.5311013901 | AFL15: =((MOD((MOD(MOD(999999999999989,MOD($B$2*2499997+0*1800451+AFL14*2000371,7450589)*4658+7450581)*383,99991)*7440893+MOD(MOD(999999999999989,MOD($B$2*2246527+0*2399993+AFL14*2100869,7450987)*7580+7560584)*17669,7440893))*1343,4294967296))+0.5)/2^32 -> 0.8468470533 | AFM15: 0.6245261106 | AFN15: 0.8159553722 | AFO15: 0.05633784214 | AFP15: 0.2747880147 | AFQ15: 0.781179581 | AFR15: 0.4243840439 | AFS15: 0.125240988 | AFT15: 0.08940026921 | AFU15: 0.261156781 | AFV15: 0.4246530459 | AFW15: 0.607505808 | AFX15: 0.4955103257 | AFY15: 0.09600081027 | AFZ15: 0.8727428116 | AGA15: 0.6811146768 | AGB15: 0.6881134581 | AGC15: 0.1955550861 | AGD15: 0.9810197538 | AGE15: 0.6930281845 | AGF15: 0.4957519433 | AGG15: 0.387667945 | AGH15: 0.02490828454 | AGI15: 0.2521024322 | AGJ15: 0.2924775645 | AGK15: 0.849377555 | AGL15: 0.6266458483 | AGM15: 0.7536807813 | AGN15: 0.3401301292 | AGO15: 0.4627573515 | AGP15: 0.2531110899 | AGQ15: 0.6600499613 | AGR15: 0.03541081271 | AGS15: 0.3410432293 | AGT15: 0.5168601809 | AGU15: 0.7925397059 | AGV15: 0.3250404635 | AGW15: 0.03735185426 | AGX15: 0.354931519 | AGY15: 0.2947253991 | AGZ15: 0.8836024363 | AHA15: 0.3035837499 | AHB15: 0.1130467538 | AHC15: 0.3778958108 | AHD15: 0.7487066387 | AHE15: 0.6968199826 | AHF15: 0.2961697489 | AHG15: 0.463898826 | AHH15: 0.5712782209 | AHI15: 0.9482952267 | AHJ15: 0.7908657367 | AHK15: 0.9724858863 | AHL15: 0.6752538822 | AHM15: 0.4419331712 | AHN15: 0.1992226803 | AHO15: 0.7622945342 | AHP15: 0.5398957416 | AHQ15: 0.1989847432 | AHR15: 0.132888306 | AHS15: 0.3783087753 | AHT15: 0.09167557291 | AHU15: 0.2609204814 | AHV15: 0.5087530428 | AHW15: 0.9953735276 | AHX15: =((MOD((MOD(MOD(999999999999989,MOD($B$2*2499997+0*1800451+AHX14*2000371,7450589)*4658+7450581)*383,99991)*7440893+MOD(MOD(999999999999989,MOD($B$2*2246527+0*2399993+AHX14*2100869,7450987)*7580+7560584)*17669,7440893))*1343,4294967296))+0.5)/2^32 -> 0.4482145474 | AHY15: 0.03821990394 | AHZ15: 0.9419965787 | AIA15: 0.9563296117 | AIB15: 0.07545651856 | AIC15: 0.8747303422 | AID15: 0.5747542909 | AIE15: 0.006430006004 | AIF15: 0.1557983157 | AIG15: 0.2147967963 | AIH15: 0.4552280632 | AII15: 0.6446822094 | AIJ15: 0.613816389 | AIK15: 0.8621556285 | AIL15: 0.5097227873 | AIM15: 0.4580205012 | AIN15: 0.4047645173 | AIO15: 0.6743930507 | AIP15: 0.3449739375 | AIQ15: 0.8650444747 | AIR15: 0.8515396392 | AIS15: 0.7257058962 | AIT15: 0.4366316478 | AIU15: 0.3989225969 | AIV15: 0.3662109025 | AIW15: 0.2469971982 | AIX15: 0.3658540113 | AIY15: 0.2746034813 | AIZ15: 0.8445320545 | AJA15: 0.5740746165 | AJB15: 0.4118745482 | AJC15: 0.4911531584 | AJD15: 0.1509673692 | AJE15: 0.5169129191 | AJF15: 0.5987204722 | AJG15: 0.1934532906 | AJH15: 0.691861184 | AJI15: 0.76343379 | AJJ15: 0.9897555542 | AJK15: 0.6281048154 | AJL15: 0.08528974571 | AJM15: 0.151367057 | AJN15: 0.3188324183 | AJO15: 0.996301666 | AJP15: 0.02851596719 | AJQ15: 0.8467403775 | AJR15: 0.4040439866 | AJS15: 0.1704769098 | AJT15: 0.7835398944 | AJU15: 0.5725028123 | AJV15: 0.4595937632 | AJW15: 0.2107045829 | AJX15: 0.6071736311 | AJY15: 0.9401808392 | AJZ15: 0.9106253061 | AKA15: 0.07181621774 | AKB15: 0.2484548487 | AKC15: 0.8281654004 | AKD15: 0.6741931204 | AKE15: 0.004686811357 | AKF15: 0.2355333901 | AKG15: 0.3801777501 | AKH15: 0.6971523488 | AKI15: 0.7261543545 | AKJ15: =((MOD((MOD(MOD(999999999999989,MOD($B$2*2499997+0*1800451+AKJ14*2000371,7450589)*4658+7450581)*383,99991)*7440893+MOD(MOD(999999999999989,MOD($B$2*2246527+0*2399993+AKJ14*2100869,7450987)*7580+7560584)*17669,7440893))*1343,4294967296))+0.5)/2^32 -> 0.3248985355 | AKK15: 0.196255115 | AKL15: 0.7044827425 | AKM15: 0.3753041673 | AKN15: 0.4492993708 | AKO15: 0.8071910882 | AKP15: 0.4593434181 | AKQ15: 0.8132875456 | AKR15: 0.7081887451 | AKS15: 0.736193346 | AKT15: 0.197235234 | AKU15: 0.2633479574 | AKV15: 0.5010578021 | AKW15: 0.4777270859 | AKX15: 0.3987458205 | AKY15: 0.2409073504 | AKZ15: 0.6900652823 | ALA15: 0.5435344198 | ALB15: 0.7738515747 | ALC15: 0.8280607254 | ALD15: 0.256873388 | ALE15: 0.8046333998 | ALF15: 0.03433972073 | ALG15: 0.2950148449 | ALH15: 0.4071780328 | ALI15: 0.3935885987 | ALJ15: 0.1975130757 | ALK15: 0.725716933 | ALL15: 0.0701561399 | ALM15: 0.2491683647 | ALN15: 0.7991231856 | ALO15: 0.05726219725 | ALP15: 0.6485908417 | ALQ15: 0.2574947473 | ALR15: 0.5067067539 | ALS15: 0.8179904163 | ALT15: 0.4151113936 | ALU15: 0.2150744466 | ALV15: 0.7927398951
A16: Initial dev costs | J16: Delta | K16: =_xlfn.NORM.INV(K15, 0.001, 0.015) -> -0.009908105203 | L16: =_xlfn.NORM.INV(L15, 0.001, 0.015) -> -0.01223745993 | M16: 0.007832901771 | N16: -0.002873774867 | O16: 0.00370919022 | P16: =_xlfn.NORM.INV(P15, 0.001, 0.015) -> 0.02776629642 | Q16: -0.01751185922 | R16: 0.009697820342 | S16: -0.001772521919 | T16: -0.01907894357 | U16: -0.03508268462 | V16: 0.0001903291165 | W16: 0.0002182211624 | X16: -0.003984114415 | Y16: 0.04937634467 | Z16: 0.005024965935 | AA16: -4.841771757e-05 | AB16: -0.01683736726 | AC16: -0.01011026511 | AD16: -0.03076193964 | AE16: -0.03063418226 | AF16: -0.01110842799 | AG16: -0.00327174587 | AH16: 0.02316395368 | AI16: 0.006113063152 | AJ16: 0.002104341968 | AK16: 0.004136178964 | AL16: -0.02389494401 | AM16: -0.02307768604 | AN16: -0.002087165854 | AO16: -0.01653269491 | AP16: 0.005728132025 | AQ16: -0.001150259711 | AR16: 0.006750370562 | AS16: 0.01240095449 | AT16: -0.00390084064 | AU16: -0.007076070669 | AV16: -0.0005519786508 | AW16: 0.03092563112 | AX16: -0.009197452287 | AY16: -0.0003619306994 | AZ16: 0.02183046871 | BA16: -0.002773745111 | BB16: -0.01367361816 | BC16: 0.006361014774 | BD16: 0.00686084931 | BE16: -0.005239408539 | BF16: 0.01679674819 | BG16: -0.003802489918 | BH16: 0.01218414909 | BI16: -0.0167107894 | BJ16: 0.02716856724 | BK16: 0.0006607682565 | BL16: 0.01490929774 | BM16: -0.004517810935 | BN16: -0.004820074006 | BO16: 0.0110999001 | BP16: -0.01406887393 | BQ16: 0.001608666458 | BR16: -0.0133567557 | BS16: -0.008757334594 | BT16: 0.003180061659 | BU16: 0.00281982517 | BV16: -0.01780442214 | BW16: 0.004040645489 | BX16: =_xlfn.NORM.INV(BX15, 0.001, 0.015) -> -0.02469297188 | BY16: -0.0002237367127 | BZ16: -0.001517908208 | CA16: -0.002938731498 | CB16: 0.01741703342 | CC16: -0.01512778264 | CD16: 0.0312321636 | CE16: 0.006495653735 | CF16: -0.0007086202091 | CG16: 0.0172599132 | CH16: -0.001690836646 | CI16: 0.0004468143492 | CJ16: 0.02184977907 | CK16: -0.01942810644 | CL16: -0.004622572873 | CM16: 0.01091790723 | CN16: -0.01123210303 | CO16: 0.0007961461421 | CP16: -0.01645909196 | CQ16: -0.008200122777 | CR16: -0.007579503724 | CS16: 0.00283733321 | CT16: 0.003315163391 | CU16: 0.005376010242 | CV16: 0.01090881834 | CW16: 0.001491123726 | CX16: -0.006091681229 | CY16: 0.04057347842 | CZ16: -0.0134052177 | DA16: 0.02241050377 | DB16: 0.03017356652 | DC16: 0.004579651988 | DD16: -0.001698713389 | DE16: 0.0153845366 | DF16: -0.01614061222 | DG16: 0.01385941814 | DH16: 0.007879432453 | DI16: 0.001058224453 | DJ16: 0.006424778556 | DK16: 0.008430724158 | DL16: -0.003255145765 | DM16: -0.008270581894 | DN16: -0.003214487576 | DO16: -0.005020877086 | DP16: -0.01843154254 | DQ16: -0.002504808449 | DR16: 0.01130296922 | DS16: -0.002939326334 | DT16: 0.007714712008 | DU16: -0.00359165703 | DV16: -0.03219090314 | DW16: 0.002068361262 | DX16: -0.01594482251 | DY16: -0.02680656165 | DZ16: 0.01336326413 | EA16: -0.01090564425 | EB16: 0.02138063333 | EC16: -0.01303155452 | ED16: 0.01356892696 | EE16: 0.0101141718 | EF16: -0.007729208906 | EG16: -0.01065461897 | EH16: -0.004048870355 | EI16: -0.01107426319 | EJ16: =_xlfn.NORM.INV(EJ15, 0.001, 0.015) -> -0.01154323317 | EK16: -0.02658238379 | EL16: -0.01145556005 | EM16: 0.0170703614 | EN16: -0.02850807395 | EO16: 0.005964740654 | EP16: -0.008412273732 | EQ16: -0.03676162129 | ER16: 0.01960673517 | ES16: -0.02732947465 | ET16: -0.02929327449 | EU16: -0.003097374237 | EV16: -0.01078561988 | EW16: -0.009789971694 | EX16: 0.004784159338 | EY16: -0.007406940342 | EZ16: -0.01240929042 | FA16: -0.0324868831 | FB16: 0.01967236956 | FC16: -0.00466620306 | FD16: -0.001866082518 | FE16: 0.0143726643 | FF16: -0.004499654676 | FG16: -0.01631588557 | FH16: 0.006473006034 | FI16: -0.02590813857 | FJ16: -0.007736593227 | FK16: -0.01889460908 | FL16: -0.0306183202 | FM16: 0.003703684803 | FN16: -0.009152724549 | FO16: 0.0001960879726 | FP16: 0.007891248015 | FQ16: 0.01339136458 | FR16: 0.01634682955 | FS16: -0.002645672373 | FT16: 0.03988286041 | FU16: -0.006831154693 | FV16: -0.008132125616 | FW16: 0.003932716265 | FX16: -0.000194797811 | FY16: 0.014571552 | FZ16: -0.006181656057 | GA16: -0.007183962909 | GB16: 0.00940555546 | GC16: 0.008033280673 | GD16: -0.01934879713 | GE16: -0.0005911762847 | GF16: 0.0015261837 | GG16: -0.01061654891 | GH16: 0.01224707935 | GI16: 0.00353080177 | GJ16: 0.01411895101 | GK16: -0.006494529514 | GL16: -0.03011024714 | GM16: -0.002755777256 | GN16: 0.009131515178 | GO16: 0.001281808508 | GP16: 0.01622354777 | GQ16: 0.007384016086 | GR16: -0.001679011493 | GS16: 0.003525963357 | GT16: 0.01034116923 | GU16: 0.0315089674 | GV16: =_xlfn.NORM.INV(GV15, 0.001, 0.015) -> 0.001160438927 | GW16: -0.007438207381 | GX16: -0.006932841745 | GY16: -0.01518110306 | GZ16: -0.01067244969 | HA16: -0.004202646204 | HB16: -0.001906135446 | HC16: -0.01245092937 | HD16: -0.02088674434 | HE16: 0.01629317759 | HF16: 0.002467521721 | HG16: -0.02666785216 | HH16: -0.01953684909 | HI16: -0.0002686755667 | HJ16: 0.0230853589 | HK16: 0.0116172076 | HL16: -0.03049408597 | HM16: -0.002228841924 | HN16: 0.01569278197 | HO16: 0.01715392982 | HP16: -0.003593430988 | HQ16: 0.002561490438 | HR16: -0.01233705183 | HS16: -0.0006560264306 | HT16: 0.01514952303 | HU16: -0.003919458215 | HV16: -0.004638650932 | HW16: -0.01609449122 | HX16: 0.002644535997 | HY16: -0.00701197794 | HZ16: 0.004642792483 | IA16: -0.01796010163 | IB16: 0.03146047926 | IC16: 0.01978334809 | ID16: 0.004408662895 | IE16: -0.01143651378 | IF16: 0.007153571402 | IG16: -0.008363882748 | IH16: -0.01804740058 | II16: -0.01768528616 | IJ16: 0.007524132428 | IK16: 0.01182939819 | IL16: 0.02488912812 | IM16: 0.01389326789 | IN16: 0.01116550062 | IO16: -0.008958517496 | IP16: 0.01044298384 | IQ16: 0.0003822614749 | IR16: 0.01539543432 | IS16: -0.0223724633 | IT16: 0.01760669768 | IU16: 0.0232795305 | IV16: -0.001239358598 | IW16: 0.01378879596 | IX16: 0.001896330466 | IY16: -0.004269319052 | IZ16: 0.04071962691 | JA16: 0.006294307861 | JB16: -0.001949116808 | JC16: 0.02829708394 | JD16: 0.0006142404412 | JE16: -0.01304412549 | JF16: 0.003857732168 | JG16: -0.0289875814 | JH16: =_xlfn.NORM.INV(JH15, 0.001, 0.015) -> 0.005008810942 | JI16: 0.02970070854 | JJ16: -0.0165840123 | JK16: 0.007523904879 | JL16: 0.01576397281 | JM16: -0.009383397439 | JN16: 0.006079857614 | JO16: -0.005446063655 | JP16: 0.009679505235 | JQ16: -0.02056688915 | JR16: 0.02312601161 | JS16: 0.02324121168 | JT16: 0.009110405351 | JU16: 0.03104078005 | JV16: -0.006279558407 | JW16: 0.02771359857 | JX16: 0.02497347205 | JY16: -0.01398839381 | JZ16: 0.02356241084 | KA16: -0.01107605472 | KB16: -0.002544638086 | KC16: 0.01121078767 | KD16: -0.0009911577027 | KE16: 0.0003519191256 | KF16: -0.001922104951 | KG16: 0.0130599738 | KH16: -0.01201996161 | KI16: 0.004706870752 | KJ16: -0.01634126391 | KK16: -0.02764780538 | KL16: -0.005720712778 | KM16: 0.003808916751 | KN16: -0.03066628471 | KO16: -0.000287316976 | KP16: 0.00365339766 | KQ16: -0.009255273594 | KR16: 0.002102009643 | KS16: 0.008493519758 | KT16: -0.0111548443 | KU16: 0.0171250552 | KV16: 0.004909203438 | KW16: 0.004400073742 | KX16: 0.03380221821 | KY16: -0.01010157326 | KZ16: 0.0239758854 | LA16: -0.007926691028 | LB16: 0.01073353571 | LC16: -0.0008500553605 | LD16: 0.008959647365 | LE16: -0.02668868078 | LF16: 0.01875082005 | LG16: -0.01233468861 | LH16: 0.01530301331 | LI16: 0.01412690421 | LJ16: 0.0229728165 | LK16: 0.01227201258 | LL16: -0.01806039189 | LM16: 0.02730332319 | LN16: 0.02442741516 | LO16: 0.009840807507 | LP16: -0.02087655781 | LQ16: 0.01375763729 | LR16: -0.01212751709 | LS16: -0.004706863311 | LT16: =_xlfn.NORM.INV(LT15, 0.001, 0.015) -> 0.00368021299 | LU16: 0.00831222181 | LV16: 0.008629872671 | LW16: 0.01924760908 | LX16: -0.02188862965 | LY16: 0.0126276685 | LZ16: -0.00450221417 | MA16: 0.01075524685 | MB16: -0.04700623067 | MC16: -0.008879215241 | MD16: -0.03723963129 | ME16: 0.01652012657 | MF16: -0.002268449134 | MG16: -0.05317554874 | MH16: -0.01197861824 | MI16: -0.001854916347 | MJ16: 0.004784151077 | MK16: 0.002336982539 | ML16: 0.01844101034 | MM16: 0.02498693707 | MN16: -0.005509873524 | MO16: -0.01691178947 | MP16: 0.004082599533 | MQ16: -0.01697096375 | MR16: 0.004134262096 | MS16: -0.002473484762 | MT16: 0.004843755671 | MU16: 0.03761893949 | MV16: -0.01528532395 | MW16: -0.01549616379 | MX16: 0.004318028504 | MY16: -0.02853547593 | MZ16: -0.01984053348 | NA16: -0.02620658787 | NB16: 0.0007207019455 | NC16: -0.01545795874 | ND16: 0.009555300372 | NE16: 0.02328242678 | NF16: -0.01679819968 | NG16: -0.003851788315 | NH16: -0.004879554199 | NI16: -0.007742402208 | NJ16: 0.005728555299 | NK16: -0.01842068657 | NL16: 0.01744368412 | NM16: -0.007167997662 | NN16: -0.02607405728 | NO16: 0.01054270054 | NP16: 0.009676029174 | NQ16: 0.03064642749 | NR16: 0.001529820553 | NS16: 0.006590888486 | NT16: -0.01390421406 | NU16: 0.004539156505 | NV16: 0.0002341230353 | NW16: 0.02222961451 | NX16: 0.0002741322345 | NY16: 0.01279248883 | NZ16: -0.009540087623 | OA16: -0.005657021062 | OB16: 0.007634977249 | OC16: -0.005347193305 | OD16: 0.00630130914 | OE16: -0.01072019399 | OF16: =_xlfn.NORM.INV(OF15, 0.001, 0.015) -> -0.02118483455 | OG16: 0.01306988961 | OH16: 0.03506581629 | OI16: 0.01042032461 | OJ16: -0.01042894209 | OK16: 0.01862220837 | OL16: -0.01212706043 | OM16: -0.0195695976 | ON16: 0.002957093388 | OO16: -0.004218203891 | OP16: 0.000966881636 | OQ16: 0.0125972434 | OR16: 0.004116681551 | OS16: 0.009222577553 | OT16: -0.003046901768 | OU16: 0.003288180324 | OV16: 0.0287164555 | OW16: -0.003283404906 | OX16: -0.00513715611 | OY16: -0.03686424222 | OZ16: 0.01032397397 | PA16: -0.001922524188 | PB16: 0.01742411745 | PC16: 0.002666579957 | PD16: -0.01607939289 | PE16: -0.01991152255 | PF16: 0.01851723056 | PG16: 0.01025283727 | PH16: 0.02726666589 | PI16: -0.01853696362 | PJ16: -0.01469325326 | PK16: -0.01783026484 | PL16: -0.01211672878 | PM16: 0.0301327079 | PN16: 0.0009551638018 | PO16: 0.004232202662 | PP16: -0.01158372182 | PQ16: -0.01041836417 | PR16: -0.004961677473 | PS16: 0.01588890196 | PT16: -0.005252152813 | PU16: -0.010218315 | PV16: 0.006820378405 | PW16: 0.02388730518 | PX16: 0.004943137375 | PY16: 0.008852203832 | PZ16: 0.01115264398 | QA16: -0.001518869196 | QB16: 0.006145128571 | QC16: -0.002287386419 | QD16: 0.01004725151 | QE16: -0.006866865904 | QF16: 0.004271451366 | QG16: -0.01118158862 | QH16: -0.04413494649 | QI16: -0.008128051573 | QJ16: -0.007078002537 | QK16: -0.002848125488 | QL16: 0.01463647041 | QM16: -0.01694559805 | QN16: -0.02917567521 | QO16: -0.01685060354 | QP16: 0.002000711576 | QQ16: 0.001079700446 | QR16: =_xlfn.NORM.INV(QR15, 0.001, 0.015) -> -0.02747969803 | QS16: 0.02011855319 | QT16: -0.01576526655 | QU16: 0.01390301691 | QV16: -0.005375897378 | QW16: 0.0117933885 | QX16: -0.003432028854 | QY16: 0.03091838483 | QZ16: 0.006485437378 | RA16: -0.004780101803 | RB16: -0.02169791894 | RC16: -0.01004794418 | RD16: 0.003886440121 | RE16: -0.005124811647 | RF16: -0.003364844457 | RG16: -0.01003100077 | RH16: 0.002066250473 | RI16: 0.01992402146 | RJ16: -0.01722416405 | RK16: -0.01622221277 | RL16: 0.01592078677 | RM16: 0.003114516907 | RN16: 0.01134710209 | RO16: -0.01249801653 | RP16: -0.01488010961 | RQ16: 0.007976191865 | RR16: 0.02221057805 | RS16: 0.03328419011 | RT16: -0.004548573478 | RU16: 0.004309545867 | RV16: 0.004117129838 | RW16: 0.01194008275 | RX16: -0.0008806547809 | RY16: 0.02209174841 | RZ16: -0.01206249903 | SA16: 0.01546789086 | SB16: 3.928974521e-05 | SC16: -0.008406780443 | SD16: -0.009085457071 | SE16: -0.00455958847 | SF16: -0.00445776389 | SG16: -0.008152456216 | SH16: 0.01661633014 | SI16: -0.02277812611 | SJ16: -0.01099306256 | SK16: -0.02074046145 | SL16: 0.01474512604 | SM16: 0.01548118099 | SN16: 0.003224631503 | SO16: -0.0002492007152 | SP16: 0.009033566517 | SQ16: 0.0008079935776 | SR16: 0.01795094369 | SS16: -0.01564851067 | ST16: -0.0003657123181 | SU16: 0.002091128673 | SV16: -0.02023491531 | SW16: 0.001621437762 | SX16: -0.03335779983 | SY16: -0.005883194502 | SZ16: 0.00449092908 | TA16: 0.004475609839 | TB16: 0.0124904837 | TC16: -0.003441120983 | TD16: =_xlfn.NORM.INV(TD15, 0.001, 0.015) -> 0.00656779824 | TE16: 0.009615799213 | TF16: 0.01047168716 | TG16: -0.01929604518 | TH16: -0.02221074781 | TI16: 0.006967972489 | TJ16: 0.01059039356 | TK16: -0.004292319293 | TL16: -0.009506371769 | TM16: 0.02318348224 | TN16: -0.002100987889 | TO16: 0.01478568631 | TP16: 0.009128268673 | TQ16: -0.001261348471 | TR16: -0.004674870198 | TS16: -0.02557808118 | TT16: -0.00636187363 | TU16: 0.0002828214148 | TV16: 0.004919483147 | TW16: -0.01881155286 | TX16: 0.02172101682 | TY16: 0.02416601996 | TZ16: 0.003727749139 | UA16: 0.03526398027 | UB16: 0.00879488757 | UC16: 0.02845308764 | UD16: -0.02798412739 | UE16: -0.001415683417 | UF16: -0.001902779036 | UG16: -0.00723507386 | UH16: -0.0004811379633 | UI16: 0.001460486652 | UJ16: -0.004532125548 | UK16: -0.01931180838 | UL16: -0.01011568639 | UM16: 0.009588947697 | UN16: 0.01719965308 | UO16: 0.02856982464 | UP16: 0.002273316858 | UQ16: -1.309761338e-05 | UR16: 0.008893004261 | US16: 0.003178767713 | UT16: 0.01620351247 | UU16: -0.008229492833 | UV16: 0.02200064874 | UW16: 0.01848668809 | UX16: 0.0103563446 | UY16: 0.009866393549 | UZ16: 0.0078742184 | VA16: 0.01444361403 | VB16: 0.02450725149 | VC16: 0.000665700314 | VD16: -0.01646776132 | VE16: -0.02009517724 | VF16: 0.02002892564 | VG16: 0.004946090469 | VH16: 0.002471937798 | VI16: -0.003213570088 | VJ16: 0.01096738051 | VK16: 0.01340271426 | VL16: 0.005047810189 | VM16: 0.01210989813 | VN16: -0.01347073081 | VO16: -0.004815172005 | VP16: =_xlfn.NORM.INV(VP15, 0.001, 0.015) -> 0.008370135149 | VQ16: 0.009626142839 | VR16: 0.007069160213 | VS16: 0.001134558934 | VT16: -0.003447054586 | VU16: -0.01059164434 | VV16: -0.007378983238 | VW16: -0.01039401269 | VX16: 0.001202176827 | VY16: -0.01037237301 | VZ16: 0.01250293532 | WA16: 0.009550084356 | WB16: 0.007943029958 | WC16: 0.004805252109 | WD16: 0.004972954092 | WE16: -0.02112302868 | WF16: -0.004088359669 | WG16: -0.001708135819 | WH16: -0.02167492098 | WI16: 0.01695176215 | WJ16: 0.01107454948 | WK16: 0.01424787885 | WL16: 0.01803988195 | WM16: 0.02735319809 | WN16: 0.001502401795 | WO16: -0.009536529853 | WP16: 0.02850135722 | WQ16: -0.007164737394 | WR16: 0.02339450325 | WS16: -0.004403725618 | WT16: 0.001069910594 | WU16: 0.02235497607 | WV16: -0.001797632056 | WW16: 0.01290506935 | WX16: -0.004205334114 | WY16: -0.01329533236 | WZ16: 0.02790449381 | XA16: 0.04925049527 | XB16: 0.004806953199 | XC16: 0.03006983388 | XD16: 0.002451611735 | XE16: 0.01970709017 | XF16: -0.001827819271 | XG16: 0.003664903237 | XH16: -0.02265587311 | XI16: 0.03070851186 | XJ16: -0.005755494195 | XK16: -0.003185478773 | XL16: 0.03728396232 | XM16: 0.006113745329 | XN16: 0.01822186168 | XO16: 0.02442178984 | XP16: 0.01256200125 | XQ16: -0.01702412749 | XR16: 0.02273983514 | XS16: 0.01699062776 | XT16: 0.01020598209 | XU16: -0.004642588673 | XV16: 0.01570978094 | XW16: -0.00960661704 | XX16: 0.009042516726 | XY16: -0.005128494287 | XZ16: -0.02851802116 | YA16: -0.006335329067 | YB16: =_xlfn.NORM.INV(YB15, 0.001, 0.015) -> 0.007861478687 | YC16: -0.01662622827 | YD16: 0.01294922668 | YE16: -0.02479507919 | YF16: -0.007128277646 | YG16: 0.0227070988 | YH16: -0.03210956074 | YI16: -0.003557878726 | YJ16: -0.004486580005 | YK16: -0.005021895533 | YL16: 0.01575800126 | YM16: 0.008673675354 | YN16: -0.007798965204 | YO16: -0.003075885878 | YP16: 0.01173444529 | YQ16: 0.008940057738 | YR16: 0.01511894692 | YS16: 0.01218499733 | YT16: 0.0003182665566 | YU16: 0.004206839236 | YV16: -0.014281235 | YW16: -0.0254453689 | YX16: -0.03526635951 | YY16: -0.003806814364 | YZ16: 0.0026106426 | ZA16: 0.03045392074 | ZB16: -0.02400336717 | ZC16: 0.01579038839 | ZD16: 0.02840429781 | ZE16: -0.004223463241 | ZF16: 0.03579425218 | ZG16: 0.01284098832 | ZH16: 0.007377378033 | ZI16: 0.002185139006 | ZJ16: 0.02192082251 | ZK16: 0.002832088089 | ZL16: -0.006303127125 | ZM16: -0.0006940688442 | ZN16: 0.004999978931 | ZO16: -0.0007764714058 | ZP16: 0.007735444124 | ZQ16: 0.003493405644 | ZR16: -0.01162179879 | ZS16: -0.01167264712 | ZT16: -0.01044189246 | ZU16: -0.009312974437 | ZV16: 0.01346945263 | ZW16: -0.03362353261 | ZX16: -0.03807642937 | ZY16: 0.01007904985 | ZZ16: 0.006357515119 | AAA16: -0.01993135166 | AAB16: 0.02882333824 | AAC16: -0.002113404524 | AAD16: -0.004981671048 | AAE16: 0.008607939208 | AAF16: -0.01083504457 | AAG16: 0.02492827554 | AAH16: 0.0004510002396 | AAI16: 0.0105059421 | AAJ16: 0.008262404528 | AAK16: -0.01625510592 | AAL16: -0.005532178878 | AAM16: 0.02599011755 | AAN16: =_xlfn.NORM.INV(AAN15, 0.001, 0.015) -> -0.004011258553 | AAO16: -0.03775552263 | AAP16: -0.01902048342 | AAQ16: 0.005942863418 | AAR16: 0.001246867657 | AAS16: -0.007458466706 | AAT16: 0.01902410178 | AAU16: -0.01163028657 | AAV16: 0.00433611212 | AAW16: 0.01155558611 | AAX16: 0.02027253693 | AAY16: 0.02074035758 | AAZ16: -0.02215732922 | ABA16: 0.02174756694 | ABB16: -0.007140535279 | ABC16: 0.01107915661 | ABD16: -0.006415834089 | ABE16: 0.005076203212 | ABF16: -0.0009284582262 | ABG16: 0.00763540615 | ABH16: 0.01346096596 | ABI16: 0.001482257618 | ABJ16: 0.01178869498 | ABK16: 0.0132725082 | ABL16: -0.01265893642 | ABM16: -0.01095894782 | ABN16: -0.004244857029 | ABO16: 0.01417393661 | ABP16: -0.01198832516 | ABQ16: 0.02991248798 | ABR16: -0.004599458923 | ABS16: 0.007833518177 | ABT16: 0.01280322745 | ABU16: 0.005012321597 | ABV16: -0.0282916128 | ABW16: -0.03011747174 | ABX16: 0.01010943761 | ABY16: -0.01245978349 | ABZ16: -0.001911885723 | ACA16: 0.0265837672 | ACB16: 0.005970526842 | ACC16: -0.01784511032 | ACD16: -0.002155913809 | ACE16: -0.009049476584 | ACF16: 0.006672587492 | ACG16: 0.008683538192 | ACH16: 0.004710791045 | ACI16: 0.01606017173 | ACJ16: -0.00884890806 | ACK16: -0.01777652757 | ACL16: -0.0004546460941 | ACM16: -0.006503462916 | ACN16: 8.271107899e-05 | ACO16: -0.004686960002 | ACP16: 0.0009880021325 | ACQ16: 0.01647122818 | ACR16: 0.01138104278 | ACS16: -0.001062782412 | ACT16: 0.02960478359 | ACU16: -0.02816341781 | ACV16: 1.909402827e-05 | ACW16: 0.02509855226 | ACX16: -0.019962112 | ACY16: 0.02331504482 | ACZ16: =_xlfn.NORM.INV(ACZ15, 0.001, 0.015) -> 0.002312600306 | ADA16: 0.01762057937 | ADB16: 0.006376865339 | ADC16: 0.001427616253 | ADD16: -0.007684174282 | ADE16: -0.009740253309 | ADF16: 0.008246641214 | ADG16: 0.003748330918 | ADH16: -0.01831230835 | ADI16: -0.008572456826 | ADJ16: 0.008628970715 | ADK16: 0.008476066147 | ADL16: -0.01926097031 | ADM16: -0.01124930306 | ADN16: -0.0008020874296 | ADO16: 0.007359582724 | ADP16: 0.005345778347 | ADQ16: -0.01301444859 | ADR16: -0.01110119752 | ADS16: 0.002163989862 | ADT16: -0.01242881637 | ADU16: 0.02438617157 | ADV16: 0.005820217557 | ADW16: 0.002281048669 | ADX16: -0.03207773377 | ADY16: -0.00350201156 | ADZ16: -0.012656233 | AEA16: -0.004749720717 | AEB16: 0.01868240962 | AEC16: 0.01185477621 | AED16: -0.008566103897 | AEE16: 0.00180165581 | AEF16: 0.02297828039 | AEG16: 0.002018988836 | AEH16: -0.008806300358 | AEI16: -0.0105846099 | AEJ16: 0.005825153505 | AEK16: -0.01592113311 | AEL16: 0.007149556348 | AEM16: 0.001159455676 | AEN16: 0.005438769601 | AEO16: 0.01543623123 | AEP16: -0.003686514832 | AEQ16: -0.008389895244 | AER16: 0.01032332517 | AES16: -0.007177537446 | AET16: 0.02018909451 | AEU16: 0.0006225050282 | AEV16: 0.02537250376 | AEW16: 0.008585154656 | AEX16: 0.02430519002 | AEY16: 0.01977602609 | AEZ16: -0.007106640041 | AFA16: 0.007525090301 | AFB16: 0.02236839428 | AFC16: 0.003223038538 | AFD16: 0.002525944488 | AFE16: 0.01530498009 | AFF16: 0.0008459918699 | AFG16: -0.01864834081 | AFH16: -0.0128308092 | AFI16: 2.668307953e-05 | AFJ16: 0.01839727268 | AFK16: 0.002170581423 | AFL16: =_xlfn.NORM.INV(AFL15, 0.001, 0.015) -> 0.01634506194 | AFM16: 0.005760848326 | AFN16: 0.01450087366 | AFO16: -0.02279420813 | AFP16: -0.00797593336 | AFQ16: 0.01264274764 | AFR16: -0.001860357389 | AFS16: -0.01623769236 | AFT16: -0.01916686029 | AFU16: -0.008596747866 | AFV16: -0.001850058166 | AFW16: 0.005092362456 | AFX16: 0.0008311872665 | AFY16: -0.01857020942 | AFZ16: 0.01809179083 | AGA16: 0.00806227132 | AGB16: 0.008357649396 | AGC16: -0.01186408697 | AGD16: 0.03212921614 | AGE16: 0.008566783277 | AGF16: 0.0008402724968 | AGG16: -0.003281035589 | AGH16: -0.02842303494 | AGI16: -0.009018325252 | AGJ16: -0.007192418115 | AGK16: 0.01650651181 | AGL16: 0.005844741301 | AGM16: 0.01129177627 | AGN16: -0.005181620138 | AGO16: -0.000402342274 | AGP16: -0.008970973968 | AGQ16: 0.0071889923 | AGR16: -0.02609929265 | AGS16: -0.005144264521 | AGT16: 0.001634121921 | AGU16: 0.01322897632 | AGV16: -0.005804746517 | AGW16: -0.0257341884 | AGX16: -0.0045806006 | AGY16: -0.007094480989 | AGZ16: 0.01889784397 | AHA16: -0.006711812774 | AHB16: -0.01715724901 | AHC16: -0.003665177584 | AHD16: 0.01105637923 | AHE16: 0.008729142848 | AHF16: -0.007031733198 | AHG16: -0.0003592412458 | AHH16: 0.003694440311 | AHI16: 0.02542816289 | AHJ16: 0.0131414324 | AHK16: 0.02977979926 | AHL16: 0.007817015483 | AHM16: -0.001191045942 | AHN16: -0.01166601509 | AHO16: 0.01170554305 | AHP16: 0.002502565984 | AHQ16: -0.01167879796 | AHR16: -0.01569261888 | AHS16: -0.003648883688 | AHT16: -0.01895761118 | AHU16: -0.008607652935 | AHV16: 0.001329135777 | AHW16: 0.04003846533 | AHX16: =_xlfn.NORM.INV(AHX15, 0.001, 0.015) -> -0.0009526037396 | AHY16: -0.02557591201 | AHZ16: 0.02457635984 | AIA16: 0.02664392616 | AIB16: -0.02054470868 | AIC16: 0.01823560624 | AID16: 0.003827371732 | AIE16: -0.036314339 | AIF16: -0.01417816241 | AIG16: -0.0108483094 | AIH16: -0.0006869483862 | AII16: 0.00656503928 | AIJ16: 0.005339197923 | AIK16: 0.01735083093 | AIL16: 0.0013656074 | AIM16: -0.0005813291962 | AIN16: -0.002615504782 | AIO16: 0.007781146957 | AIP16: -0.004983887065 | AIQ16: 0.0175490113 | AIR16: 0.01664589298 | AIS16: 0.009998155092 | AIT16: -0.001392722065 | AIU16: -0.002842052259 | AIV16: -0.004128586596 | AIW16: -0.009259543192 | AIX16: -0.004142815516 | AIY16: -0.007984233466 | AIZ16: 0.01619890305 | AJA16: 0.003801362571 | AJB16: -0.002340883605 | AJC16: 0.0006673365815 | AJD16: -0.01448439951 | AJE16: 0.001636106626 | AJF16: 0.004750548787 | AJG16: -0.0119786135 | AJH16: 0.008516992686 | AJI16: 0.01176087597 | AJJ16: 0.03575908773 | AJK16: 0.005902570938 | AJL16: -0.01955516253 | AJM16: -0.01445881846 | AJN16: -0.006064493747 | AJO16: 0.04117655267 | AJP16: -0.02754598993 | AJQ16: 0.01633829489 | AJR16: -0.002643401104 | AJS16: -0.01328423486 | AJT16: 0.0127630653 | AJU16: 0.003741246301 | AJV16: -0.000521858098 | AJW16: -0.01105968338 | AJX16: 0.005079400742 | AJY16: 0.02434440216 | AJZ16: 0.0211692347 | AKA16: -0.02093595585 | AKB16: -0.009190402147 | AKC16: 0.01520410455 | AKD16: 0.007772821955 | AKE16: -0.03797177269 | AKF16: -0.009811166226 | AKG16: -0.00357520979 | AKH16: 0.008743417294 | AKI16: 0.01001834897 | AKJ16: =_xlfn.NORM.INV(AKJ15, 0.001, 0.015) -> -0.005810661814 | AKK16: -0.01182610871 | AKL16: 0.009060062319 | AKM16: -0.003767559911 | AKN16: -0.0009114752399 | AKO16: 0.01401387737 | AKP16: -0.0005313198035 | AKQ16: 0.01435114475 | AKR16: 0.009221515964 | AKS16: 0.01047480276 | AKT16: -0.01177307259 | AKU16: -0.00849586663 | AKV16: 0.001039772797 | AKW16: 0.0001621157306 | AKX16: -0.002848921002 | AKY16: -0.009550802712 | AKZ16: 0.008440530996 | ALA16: 0.002640131415 | ALB16: 0.01227387016 | ALC16: 0.0151979435 | ALD16: -0.0087952211 | ALE16: 0.01387432689 | ALF16: -0.02630784061 | ALG16: -0.007081895098 | ALH16: -0.00252215271 | ALI16: -0.003049669638 | ALJ16: -0.01175806707 | ALK16: 0.009998651882 | ALL16: -0.0211194369 | ALM16: -0.009156636647 | ALN16: 0.01357740164 | ALO16: -0.02267269145 | ALP16: 0.006722782146 | ALQ16: -0.008766324363 | ALR16: 0.001252181962 | ALS16: 0.01461599889 | ALT16: -0.002216237663 | ALU16: -0.01083405335 | ALV16: 0.01323947353
A17: Cancelled? | H17: Time Series Chart | J17: Cumulative change | K17: =(K16+1)*$H$15 -> 99.00918948 | L17: =(L16+1)*K17 -> 97.79756849 | M17: =(M16+1)*L17 -> 98.56360724 | N17: 98.28035762 | O17: 98.64489816 | P17: 101.3839016 | Q17: 99.60848103 | R17: 100.5744662 | S17: 100.3961957 | T17: 98.48074239 | U17: 95.02577356 | V17: 95.04385973 | W17: 95.06460031 | X17: 94.68585207 | Y17: 99.36109334 | Z17: 99.86037945 | AA17: 99.85554443 | AB17: 98.17423996 | AC17: 97.18167237 | AD17: 94.19217563 | AE17: 91.30667535 | AF17: 90.29240172 | AG17: 89.99698793 | AH17: 92.08167399 | AI17: 92.64457508 | AJ17: 92.83953095 | AK17: 93.22353186 | AL17: 90.99596079 | AM17: 88.89598457 | AN17: 88.71044391 | AO17: 87.24382121 | AP17: 87.74356533 | AQ17: 87.64263744 | AR17: 88.23425772 | AS17: 89.32844674 | AT17: 88.9799907 | AU17: 88.350362 | AV17: 88.30159449 | AW17: 91.03237703 | AX17: 90.19511108 | AY17: 90.1624667 | AZ17: 92.13075561 | BA17: 91.87520838 | BB17: 90.61894186 | BC17: 91.19537029 | BD17: 91.82104798 | BE17: 91.33996 | BF17: 92.8741743 | BG17: 92.52102119 | BH17: 93.64831111 | BI17: 92.08337391 | BJ17: 94.58514724 | BK17: 94.6476461 | BL17: 96.05877604 | BM17: 95.62480065 | BN17: 95.16388204 | BO17: 96.22019162 | BP17: 94.86648187 | BQ17: 95.0190904 | BR17: 93.74994362 | BS17: 92.928944 | BT17: 93.22446377 | BU17: 93.48734046 | BV17: 91.82285239 | BW17: 92.19387598 | BX17: 89.91733519 | BY17: =(BY16+1)*BX17 -> 89.89721739 | BZ17: 89.76076166 | CA17: 89.49697888 | CB17: 91.05575076 | CC17: 89.67827915 | CD17: 92.47912584 | CE17: 93.07983821 | CF17: 93.01387996 | CG17: 94.61929145 | CH17: 94.45930569 | CI17: 94.50151146 | CJ17: 96.56634861 | CK17: 94.69024731 | CL17: 94.25253474 | CM17: 95.28157517 | CN17: 94.2113627 | CO17: 94.28636872 | CP17: 92.7345007 | CQ17: 91.97406641 | CR17: 91.27694863 | CS17: 91.53593175 | CT17: 91.83938832 | CU17: 92.33311781 | CV17: 93.34036302 | CW17: 93.47954505 | CX17: 92.91009746 | CY17: 96.6797833 | CZ17: 95.38376975 | DA17: 97.52136809 | DB17: 100.4639356 | DC17: 100.9240254 | DD17: 100.7525844 | DE17: 102.3026163 | DF17: 100.6513894 | DG17: 102.0463591 | DH17: 102.8504265 | DI17: 102.9592653 | DJ17: 103.6207558 | DK17: 104.4943538 | DL17: 104.1542095 | DM17: 103.2927935 | DN17: 102.9607601 | DO17: 102.4438068 | DP17: 100.5556094 | DQ17: 100.3037369 | DR17: 101.437467 | DS17: 101.1393091 | DT17: 101.9195698 | DU17: 101.5535096 | DV17: 98.28441045 | DW17: 98.48769811 | DX17: 96.91732925 | DY17: 94.31930888 | DZ17: 95.57972272 | EA17: 94.53736427 | EB17: 96.55863299 | EC17: 95.3003239 | ED17: 96.59344703 | EE17: 97.57040975 | EF17: 96.81626767 | EG17: 95.78472723 | EH17: 95.39690729 | EI17: 94.34045683 | EJ17: 93.25146294 | EK17: =(EK16+1)*EJ17 -> 90.77261676 | EL17: 89.7327656 | EM17: 91.26453634 | EN17: 88.66276019 | EO17: 89.19161056 | EP17: 88.44130631 | EQ17: 85.1900605 | ER17: 86.86035946 | ES17: 84.48651147 | ET17: 82.0116249 | EU17: 81.7576042 | EV17: 80.87579776 | EW17: 80.08402599 | EX17: 80.46716073 | EY17: 79.87114527 | EZ17: 78.88000104 | FA17: 76.31743566 | FB17: 77.81878046 | FC17: 77.45566223 | FD17: 77.31112357 | FE17: 78.4222904 | FF17: 78.06941717 | FG17: 76.79564549 | FH17: 77.29274417 | FI17: 75.29023304 | FJ17: 74.70774314 | FK17: 73.29616954 | FL17: 71.05196395 | FM17: 71.31511803 | FN17: 70.66239039 | FO17: 70.67624644 | FP17: 71.23397023 | FQ17: 72.18789029 | FR17: 73.36793343 | FS17: 73.17382592 | FT17: 76.0922074 | FU17: 75.57240976 | FV17: 74.95784543 | FW17: 75.25263337 | FX17: 75.23797432 | FY17: 76.33430838 | FZ17: 75.86243594 | GA17: 75.31744301 | GB17: 76.0258454 | GC17: 76.63658235 | GD17: 75.15375667 | GE17: 75.10932755 | GF17: 75.22395818 | GG17: 74.42533935 | GH17: 75.33683239 | GI17: 75.60283181 | GJ17: 76.67026449 | GK17: 76.17232719 | GL17: 73.8787596 | GM17: 73.67516619 | GN17: 74.34793209 | GO17: 74.4432319 | GP17: 75.65096523 | GQ17: 76.20957317 | GR17: 76.08161642 | GS17: 76.34987742 | GT17: 77.13942442 | GU17: 79.57000803 | GV17: 79.66234416 | GW17: =(GW16+1)*GV17 -> 79.06979913 | GX17: 78.52162072 | GY17: 77.32957591 | GZ17: 76.5042799 | HA17: 76.18275948 | HB17: 76.03754482 | HC17: 75.09080672 | HD17: 73.52240424 | HE17: 74.72031782 | HF17: 74.90469183 | HG17: 72.90714458 | HH17: 71.4827687 | HI17: 71.46356303 | HJ17: 73.11332503 | HK17: 73.9626977 | HL17: 71.70727284 | HM17: 71.54744867 | HN17: 72.67022718 | HO17: 73.91680716 | HP17: 73.65119221 | HQ17: 73.83984904 | HR17: 72.92888299 | HS17: 72.88103972 | HT17: 73.98515271 | HU17: 73.69517099 | HV17: 73.35332482 | HW17: 72.17274038 | HX17: 72.36360378 | HY17: 71.85619179 | HZ17: 72.18980518 | IA17: 70.89326894 | IB17: 73.12360516 | IC17: 74.57023489 | ID17: 74.89898992 | IE17: 74.04240659 | IF17: 74.57207423 | IG17: 73.94836215 | IH17: 72.61378643 | II17: 71.32959084 | IJ17: 71.86628413 | IK17: 72.71641902 | IL17: 74.52626729 | IM17: 75.56168069 | IN17: 76.40536468 | IO17: 75.72088588 | IP17: 76.51163787 | IQ17: 76.54088532 | IR17: 77.71926549 | IS17: 75.98049408 | IT17: 77.31825967 | IU17: 79.11819245 | IV17: 79.02013664 | IW17: 80.10972918 | IX17: 80.2616437 | IY17: 79.91898114 | IZ17: 83.17325223 | JA17: 83.69677029 | JB17: 83.53363551 | JC17: 85.8973938 | JD17: 85.95015545 | JE17: 84.82901084 | JF17: 85.15625845 | JG17: 82.68778447 | JH17: 83.10195195 | JI17: =(JI16+1)*JH17 -> 85.57013881 | JJ17: 84.15104257 | JK17: 84.78418701 | JL17: 86.12072263 | JM17: 85.31261766 | JN17: 85.83130623 | JO17: 85.36386347 | JP17: 86.19014343 | JQ17: 84.41748031 | JR17: 86.36971994 | JS17: 88.37705688 | JT17: 89.18220769 | JU17: 91.95049299 | JV17: 91.3730845 | JW17: 93.90536148 | JX17: 96.2505044 | JY17: 94.90411444 | JZ17: 97.14028418 | KA17: 96.06435307 | KB17: 95.81990406 | KC17: 96.89412066 | KD17: 96.79808331 | KE17: 96.8321484 | KF17: 96.64602685 | KG17: 97.90822143 | KH17: 96.73136837 | KI17: 97.18667042 | KJ17: 95.59851739 | KK17: 92.95542818 | KL17: 92.42365688 | KM17: 92.77569089 | KN17: 89.93060514 | KO17: 89.90476655 | KP17: 90.23322442 | KQ17: 89.39809124 | KR17: 89.58600689 | KS17: 90.34690741 | KT17: 89.33910172 | KU17: 90.86903877 | KV17: 91.31513337 | KW17: 91.71692669 | KX17: 94.81716226 | KY17: 93.85935974 | KZ17: 96.109721 | LA17: 95.34788893 | LB17: 96.37130891 | LC17: 96.28938796 | LD17: 97.15210692 | LE17: 94.55924535 | LF17: 96.33230874 | LG17: 95.14407971 | LH17: 96.60007083 | LI17: 97.96473078 | LJ17: 100.2152566 | LK17: 101.4450994 | LL17: 99.6129612 | LM17: 102.3327261 | LN17: 104.8324501 | LO17: 105.864086 | LP17: 103.6540083 | LQ17: 105.0800426 | LR17: 103.8056825 | LS17: 103.3170834 | LT17: 103.6973123 | LU17: =(LU16+1)*LT17 -> 104.5592673 | LV17: 105.4616005 | LW17: 107.4914841 | LX17: 105.1386429 | LY17: 106.4662988 | LZ17: 105.9869647 | MA17: 107.1268807 | MB17: 102.0912498 | MC17: 101.1847596 | MD17: 97.41667649 | ME17: 99.02601231 | MF17: 98.80137684 | MG17: 93.54755941 | MH17: 92.42698891 | MI17: 92.25554458 | MJ17: 92.69690904 | MK17: 92.9135401 | ML17: 94.62695965 | MM17: 96.99139754 | MN17: 96.4569872 | MO17: 94.82572694 | MP17: 95.21286241 | MQ17: 93.59700837 | MR17: 93.98396294 | MS17: 93.75149504 | MT17: 94.20560437 | MU17: 97.7495193 | MV17: 96.25538624 | MW17: 94.76379701 | MX17: 95.17298978 | MY17: 92.45718322 | MZ17: 90.62278338 | NA17: 88.24786945 | NB17: 88.31146986 | NC17: 86.9463548 | ND17: 87.77715334 | NE17: 89.82081848 | NF17: 88.31199044 | NG17: 87.97183135 | NH17: 87.54256803 | NI17: 86.86477826 | NJ17: 87.36238794 | NK17: 85.75311278 | NL17: 87.24896299 | NM17: 86.62356263 | NN17: 84.36493489 | NO17: 85.25436914 | NP17: 86.0792929 | NQ17: 88.71731571 | NR17: 88.85303728 | NS17: 89.43865774 | NT17: 88.1950835 | NU17: 88.59541478 | NV17: 88.61615701 | NW17: 90.58606002 | NX17: 90.61089258 | NY17: 91.77003141 | NZ17: 90.89453727 | OA17: 90.38034496 | OB17: 91.07039684 | OC17: 90.58342582 | OD17: 91.15421999 | OE17: 90.17702907 | OF17: 88.26664363 | OG17: =(OG16+1)*OF17 -> 89.42027892 | OH17: 92.55587399 | OI17: 93.52033624 | OJ17: 92.54501807 | OK17: 94.26841068 | OL17: 93.12521197 | OM17: 91.30278904 | ON17: 91.57277992 | OO17: 91.18650726 | OP17: 91.27467382 | OQ17: 92.4244831 | OR17: 92.80496527 | OS17: 93.66086625 | OT17: 93.3754908 | OU17: 93.68252625 | OV17: 96.37275634 | OW17: 96.05632556 | OX17: 95.56286922 | OY17: 92.04001646 | OZ17: 92.9902352 | PA17: 92.81145922 | PB17: 94.42861699 | PC17: 94.68041845 | PD17: 93.1580148 | PE17: 91.30309689 | PF17: 92.99377738 | PG17: 93.94722745 | PH17: 96.50885511 | PI17: 94.71987398 | PJ17: 93.32813088 | PK17: 91.66406559 | PL17: 90.55339697 | PM17: 93.28201603 | PN17: 93.37111563 | PO17: 93.76628112 | PP17: 92.6801186 | PQ17: 91.71454337 | PR17: 91.25948539 | PS17: 92.7094984 | PT17: 92.22257395 | PU17: 91.28021464 | PV17: 91.90278025 | PW17: 94.09809 | PX17: 94.56322979 | PY17: 95.40032278 | PZ17: 96.46428861 | QA17: 96.31777197 | QB17: 96.90965707 | QC17: 96.68798723 | QD17: 97.65943576 | QE17: 96.98882151 | QF17: 97.40310454 | QG17: 96.3139831 | QH17: 92.06317061 | QI17: 91.31487641 | QJ17: 90.66854948 | QK17: 90.41031408 | QL17: 91.73360196 | QM17: 90.17912122 | QN17: 87.54808446 | QO17: 86.0728464 | QP17: 86.24505334 | QQ17: 86.33817217 | QR17: 83.96562527 | QS17: =(QS16+1)*QR17 -> 85.65489216 | QT17: 84.30451996 | QU17: 85.47660712 | QV17: 85.01709366 | QW17: 86.01973327 | QX17: 85.72451106 | QY17: 88.37497449 | QZ17: 88.94812485 | RA17: 88.52294376 | RB17: 86.6021801 | RC17: 85.73200623 | RD17: 86.06519854 | RE17: 85.62413061 | RF17: 85.33601872 | RG17: 84.48001305 | RH17: 84.65456992 | RI17: 86.34122939 | RJ17: 84.85407389 | RK17: 83.47755305 | RL17: 84.80658137 | RM17: 85.0707129 | RN17: 86.03601897 | RO17: 84.96073938 | RP17: 83.69651426 | RQ17: 84.36409372 | RR17: 86.23786901 | RS17: 89.10822663 | RT17: 88.70291132 | RU17: 89.08518058 | RV17: 89.45195584 | RW17: 90.52001959 | RX17: 90.44030271 | RY17: 92.43828712 | RZ17: 91.32325037 | SA17: 92.73582844 | SB17: 92.73947201 | SC17: 91.95983163 | SD17: 91.12433452 | SE17: 90.70884506 | SF17: 90.30448645 | SG17: 89.56828307 | SH17: 91.05657923 | SI17: 88.98248099 | SJ17: 88.00429101 | SK17: 86.1790414 | SL17: 87.44976223 | SM17: 88.80358783 | SN17: 89.08994668 | SO17: 89.0677454 | SP17: 89.8723448 | SQ17: 89.94496108 | SR17: 91.55955801 | SS17: 90.12678729 | ST17: 90.09382681 | SU17: 90.2822246 | SV17: 88.45537143 | SW17: 88.59879631 | SX17: 85.64333539 | SY17: 85.13947899 | SZ17: 85.52183436 | TA17: 85.90459672 | TB17: 86.97758668 | TC17: 86.67828629 | TD17: 87.24757178 | TE17: =(TE16+1)*TD17 -> 88.08652691 | TF17: 89.00894147 | TG17: 87.29142091 | TH17: 85.35261318 | TI17: 85.94734784 | TJ17: 86.85756407 | TK17: 86.48474368 | TL17: 85.66258755 | TM17: 87.64854463 | TN17: 87.4643961 | TO17: 88.75761722 | TP17: 89.5678206 | TQ17: 89.45484437 | TR17: 89.03665458 | TS17: 86.7592678 | TT17: 86.2073163 | TU17: 86.23169758 | TV17: 86.65591296 | TW17: 85.02578067 | TX17: 86.87262709 | TY17: 88.97199273 | TZ17: 89.30365799 | UA17: 92.45286043 | UB17: 93.26597294 | UC17: 95.91967784 | UD17: 93.23544936 | UE17: 93.10345748 | UF17: 92.92630217 | UG17: 92.25397351 | UH17: 92.20958662 | UI17: 92.34425749 | UJ17: 91.92574173 | UK17: 90.15048942 | UL17: 89.23855534 | UM17: 90.09425918 | UN17: 91.64384918 | UO17: 94.26209788 | UP17: 94.4763855 | UQ17: 94.47514808 | UR17: 95.31531598 | US17: 95.61830123 | UT17: 97.16765356 | UU17: 96.36801305 | UV17: 98.48817186 | UW17: 100.308892 | UX17: 101.3477254 | UY17: 102.347662 | UZ17: 103.1535698 | VA17: 104.6434802 | VB17: 107.2080042 | VC17: 107.2793726 | VD17: 105.5127215 | VE17: 103.3924247 | VF17: 105.4632639 | VG17: 105.9848947 | VH17: 106.2468828 | VI17: 105.905451 | VJ17: 107.0669564 | VK17: 108.5019442 | VL17: 109.0496414 | VM17: 110.3702215 | VN17: 108.8834539 | VO17: 108.3591614 | VP17: 109.2661422 | VQ17: =(VQ16+1)*VP17 -> 110.3179537 | VR17: 111.097809 | VS17: 111.223856 | VT17: 110.8404613 | VU17: 109.6664785 | VV17: 108.8572514 | VW17: 107.7257878 | VX17: 107.8552932 | VY17: 106.7365779 | VZ17: 108.0710984 | WA17: 109.1031865 | WB17: 109.9697964 | WC17: 110.498229 | WD17: 111.0477316 | WE17: 108.7020672 | WF17: 108.2576541 | WG17: 108.0727353 | WH17: 105.7302673 | WI17: 107.5225816 | WJ17: 108.7133458 | WK17: 110.2622804 | WL17: 112.2513989 | WM17: 115.3218336 | WN17: 115.4950934 | WO17: 114.3936709 | WP17: 117.6540458 | WQ17: 116.8110855 | WR17: 119.5438228 | WS17: 119.0173846 | WT17: 119.1447226 | WU17: 121.8082 | WV17: 121.5892337 | WW17: 123.1583512 | WX17: 122.6404291 | WY17: 121.0098839 | WZ17: 124.3866034 | XA17: 130.5127053 | XB17: 131.1400737 | XC17: 135.083434 | XD17: 135.4146061 | XE17: 138.0832339 | XF17: 137.8308427 | XG17: 138.3359794 | XH17: 135.2018571 | XI17: 139.3537049 | XJ17: 138.5516554 | XK17: 138.1103021 | XL17: 143.2596014 | XM17: 144.1354541 | XN17: 146.7618704 | XO17: 150.346058 | XP17: 152.2347053 | XQ17: 149.6430423 | XR17: 153.0459004 | XS17: 155.6462463 | XT17: 157.2347691 | XU17: 156.5047928 | XV17: 158.9634488 | XW17: 157.4363478 | XX17: 158.8599686 | XY17: 158.0452562 | XZ17: 153.5381182 | YA17: 152.5654037 | YB17: 153.7647934 | YC17: =(YC16+1)*YB17 -> 151.2082648 | YD17: 153.1662949 | YE17: 149.3685245 | YF17: 148.3037842 | YG17: 151.6713329 | YH17: 146.801233 | YI17: 146.278932 | YJ17: 145.6226399 | YK17: 144.8913382 | YL17: 147.1745361 | YM17: 148.4510802 | YN17: 147.2933154 | YO17: 146.840258 | YP17: 148.563347 | YQ17: 149.8915119 | YR17: 152.1577137 | YS17: 154.011755 | YT17: 154.0607718 | YU17: 154.7088807 | YV17: 152.4994468 | YW17: 148.6190422 | YX17: 143.3777896 | YY17: 142.831977 | YZ17: 143.2048602 | ZA17: 147.5660097 | ZB17: 144.0239286 | ZC17: 146.2981223 | ZD17: 150.4536178 | ZE17: 149.8181824 | ZF17: 155.1808122 | ZG17: 157.1734872 | ZH17: 158.3330155 | ZI17: 158.6789951 | ZJ17: 162.1573692 | ZK17: 162.6166132 | ZL17: 161.59162 | ZM17: 161.4794643 | ZN17: 162.2868582 | ZO17: 162.1608471 | ZP17: 163.4152332 | ZQ17: 163.9861089 | ZR17: 162.0802954 | ZS17: 160.1883893 | ZT17: 158.5157194 | ZU17: 157.0394665 | ZV17: 159.1547022 | ZW17: 153.8033588 | ZX17: 147.9470761 | ZY17: 149.4382421 | ZZ17: 150.388298 | AAA17: 147.3908559 | AAB17: 151.6391524 | AAC17: 151.3186775 | AAD17: 150.5648577 | AAE17: 151.8609108 | AAF17: 150.2154911 | AAG17: 153.9601042 | AAH17: 154.0295403 | AAI17: 155.6477657 | AAJ17: 156.9337905 | AAK17: 154.3828151 | AAL17: 153.5287418 | AAM17: 157.5189718 | AAN17: 156.8871225 | AAO17: =(AAO16+1)*AAN17 -> 150.9637672 | AAP17: 148.0923633 | AAQ17: 148.972456 | AAR17: 149.158205 | AAS17: 148.0457135 | AAT17: 150.8621502 | AAU17: 149.1075801 | AAV17: 149.7541273 | AAW17: 151.484624 | AAX17: 154.5556017 | AAY17: 157.7611401 | AAZ17: 154.2655746 | ABA17: 157.6204755 | ABB17: 156.4949809 | ABC17: 158.2288133 | ABD17: 157.2136435 | ABE17: 158.0116919 | ABF17: 157.8649847 | ABG17: 159.070348 | ABH17: 161.2115885 | ABI17: 161.4505456 | ABJ17: 163.3538368 | ABK17: 165.521952 | ABL17: 163.4266201 | ABM17: 161.6356363 | ABN17: 160.9495161 | ABO17: 163.2308044 | ABP17: 161.2739404 | ABQ17: 166.0980452 | ABR17: 165.3340841 | ABS17: 166.6292316 | ABT17: 168.7626236 | ABU17: 169.6085161 | ABV17: 164.8100177 | ABW17: 159.8463566 | ABX17: 161.4623134 | ABY17: 159.4505279 | ABZ17: 159.1456767 | ACA17: 163.3763684 | ACB17: 164.3518114 | ACC17: 161.4189351 | ACD17: 161.0709298 | ACE17: 159.6133222 | ACF17: 160.6783561 | ACG17: 162.0736127 | ACH17: 162.8371076 | ACI17: 165.4522996 | ACJ17: 163.9882274 | ACK17: 161.0730861 | ACL17: 160.9998549 | ACM17: 159.9527983 | ACN17: 159.9660282 | ACO17: 159.2162738 | ACP17: 159.3735798 | ACQ17: 161.9986584 | ACR17: 163.8423721 | ACS17: 163.6682433 | ACT17: 168.5136062 | ACU17: 163.7676871 | ACV17: 163.7708141 | ACW17: 167.8812244 | ACX17: 164.5299606 | ACY17: 168.365984 | ACZ17: 168.7553472 | ADA17: =(ADA16+1)*ACZ17 -> 171.7289142 | ADB17: 172.8240064 | ADC17: 173.0707328 | ADD17: 171.7408271 | ADE17: 170.0680279 | ADF17: 171.4705179 | ADG17: 172.1132462 | ADH17: 168.9614553 | ADI17: 167.5130406 | ADJ17: 168.9585057 | ADK17: 170.3906092 | ADL17: 167.1087207 | ADM17: 165.228864 | ADN17: 165.0963361 | ADO17: 166.3113762 | ADP17: 167.2004399 | ADQ17: 165.0244184 | ADR17: 163.1924498 | ADS17: 163.5455966 | ADT17: 161.5129184 | ADU17: 165.4516001 | ADV17: 166.4145644 | ADW17: 166.7941641 | ADX17: 161.4437853 | ADY17: 160.8784073 | ADZ17: 158.8422927 | AEA17: 158.0878362 | AEB17: 161.0412979 | AEC17: 162.9504065 | AED17: 161.5545564 | AEE17: 161.8456221 | AEF17: 165.5645561 | AEG17: 165.8988291 | AEH17: 164.4378742 | AEI17: 162.6973635 | AEJ17: 163.6451006 | AEK17: 161.0396852 | AEL17: 162.1910475 | AEM17: 162.3791008 | AEN17: 163.2622433 | AEO17: 165.782397 | AEP17: 165.1712378 | AEQ17: 163.7854684 | AER17: 165.476279 | AES17: 164.2885669 | AET17: 167.6054043 | AEU17: 167.7097395 | AEV17: 171.9649555 | AEW17: 173.4413012 | AEX17: 177.656825 | AEY17: 181.170171 | AEZ17: 179.8826598 | AFA17: 181.2362931 | AFB17: 185.2902579 | AFC17: 185.8874556 | AFD17: 186.356997 | AFE17: 189.2091871 | AFF17: 189.3692565 | AFG17: 185.8378341 | AFH17: 183.4533843 | AFI17: 183.4582794 | AFJ17: 186.8334114 | AFK17: 187.2389485 | AFL17: 190.2993807 | AFM17: =(AFM16+1)*AFL17 -> 191.3956666 | AFN17: 194.171071 | AFO17: 189.7450952 | AFP17: 188.2317009 | AFQ17: 190.6114668 | AFR17: 190.2568614 | AFS17: 187.167529 | AFT17: 183.5801151 | AFU17: 182.0019232 | AFV17: 181.665209 | AFW17: 182.5903141 | AFX17: 182.7420808 | AFY17: 179.3485221 | AFZ17: 182.5932581 | AGA17: 184.0653745 | AGB17: 185.6037283 | AGC17: 183.4017096 | AGD17: 189.2942627 | AGE17: 190.9159056 | AGF17: 191.076327 | AGG17: 190.4493988 | AGH17: 185.0362489 | AGI17: 183.3675318 | AGJ17: 182.0486759 | AGK17: 185.0536645 | AGL17: 186.1352553 | AGM17: 188.2370529 | AGN17: 187.26168 | AGO17: 187.1863367 | AGP17: 185.507093 | AGQ17: 186.840702 | AGR17: 181.9642919 | AGS17: 181.0282194 | AGT17: 181.3240416 | AGU17: 183.7227731 | AGV17: 182.6563089 | AGW17: 177.9557971 | AGX17: 177.1406526 | AGY17: 175.8839316 | AGZ17: 179.2077587 | AHA17: 178.0049498 | AHB17: 174.9508746 | AHC17: 174.3096485 | AHD17: 176.2368821 | AHE17: 177.775279 | AHF17: 176.5252107 | AHG17: 176.4617956 | AHH17: 177.1137231 | AHI17: 181.6173997 | AHJ17: 184.0041125 | AHK17: 189.4837181 | AHL17: 190.9649152 | AHM17: 190.7374672 | AHN17: 188.5123211 | AHO17: 190.7189602 | AHP17: 191.1962469 | AHQ17: 188.9633046 | AHR17: 185.9979755 | AHS17: 185.3192905 | AHT17: 181.8060794 | AHU17: 180.2411558 | AHV17: 180.4807208 | AHW17: 187.7068919 | AHX17: 187.5280816 | AHY17: =(AHY16+1)*AHX17 -> 182.7318799 | AHZ17: 187.2227643 | AIA17: 192.2111138 | AIB17: 188.2621925 | AIC17: 191.6952677 | AID17: 192.4289567 | AIE17: 185.4410264 | AIF17: 182.8118134 | AIG17: 180.8286142 | AIH17: 180.7043943 | AII17: 181.8907258 | AIJ17: 182.8618764 | AIK17: 186.0346819 | AIL17: 186.2887322 | AIM17: 186.1804371 | AIN17: 185.6934813 | AIO17: 187.1383896 | AIP17: 186.205713 | AIQ17: 189.4734391 | AIR17: 192.6273937 | AIS17: 194.5533123 | AIT17: 194.2823536 | AIU17: 193.730193 | AIV17: 192.9303611 | AIW17: 191.1439141 | AIX17: 190.3520401 | AIY17: 188.832225 | AIZ17: 191.8910999 | AJA17: 192.6205475 | AJB17: 192.1696453 | AJC17: 192.2978871 | AJD17: 189.5125677 | AJE17: 189.8226304 | AJF17: 190.7243921 | AJG17: 188.4397783 | AJH17: 190.0447185 | AJI17: 192.2798109 | AJJ17: 199.1555615 | AJK17: 200.3310914 | AJL17: 196.4135843 | AJM17: 193.5736759 | AJN17: 192.3997496 | AJO17: 200.322108 | AJP17: 194.8040373 | AJQ17: 197.9868031 | AJR17: 197.4634445 | AJS17: 194.8402938 | AJT17: 197.3270531 | AJU17: 198.0653023 | AJV17: 197.9619403 | AJW17: 195.7725439 | AJX17: 196.7669511 | AJY17: 201.5571249 | AJZ17: 205.823935 | AKA17: 201.5148141 | AKB17: 199.662812 | AKC17: 202.6985062 | AKD17: 204.2740456 | AKE17: 196.517398 | AKF17: 194.5893332 | AKG17: 193.8936355 | AKH17: 195.5889284 | AKI17: 197.5484066 | AKJ17: 196.4005196 | AKK17: =(AKK16+1)*AKJ17 -> 194.0778657 | AKL17: 195.8362232 | AKM17: 195.0983985 | AKN17: 194.9205712 | AKO17: 197.6521642 | AKP17: 197.5471477 | AKQ17: 200.3821754 | AKR17: 202.2300028 | AKS17: 204.3483222 | AKT17: 201.9425146 | AKU17: 200.2268379 | AKV17: 200.4350283 | AKW17: 200.467522 | AKX17: 199.8964058 | AKY17: 197.9872347 | AKZ17: 199.6583521 | ALA17: 200.1854764 | ALB17: 202.6425269 | ALC17: 205.7222766 | ALD17: 203.9129037 | ALE17: 206.742058 | ALF17: 201.3031209 | ALG17: 199.8775133 | ALH17: 199.3733917 | ALI17: 198.7653687 | ALJ17: 196.4282722 | ALK17: 198.3922901 | ALL17: 194.2023566 | ALM17: 192.4241162 | ALN17: 195.0367357 | ALO17: 190.614728 | ALP17: 191.8961893 | ALQ17: 190.213965 | ALR17: 190.4521475 | ALS17: 193.2357959 | ALT17: 192.8075395 | ALU17: 190.7186523 | ALV17: 193.2436668
A18: Benefits
A19: Current labor cost
A20: PRNG (for labor)
A21: Change in labor cost (changes yearly)
A22: Forecasted labor cost (2021-2025)
A23: Reduction in labor cost
A24: Labor savings
A25: Net benefit
A27: Building a Risk Register
E28: Variable IDs --> | F28: 1000 | H28: 2000
A29: Risk # | B29: Risk name | C29: Annual likelihood | D29: Impact per event | F29: Likelihood rand | G29: Simulated number of events | H29: Impact rand | I29: Simulated loss per event (lognormal distribution) | J29: Expected Loss | K29: Total simulated loss
D30: Lower Bound | E30: Upper Bound
A31: 1 | B31: Risk 1 | C31: 0.12 | D31: 5000 | E31: 50000 | J31: =IFERROR(EXP(((LN(E31)+LN(D31))/2)+((LN(E31)-LN(D31))/3.28971)^2/2)*-LN(1-C31), 0) -> 2582.241247 | K31: =I31*G31 -> 0
A32: 2 | B32: Risk 2 | C32: 0.4 | D32: 1000 | E32: 30000 | J32: =IFERROR(EXP(((LN(E32)+LN(D32))/2)+((LN(E32)-LN(D32))/3.28971)^2/2)*-LN(1-C32), 0) -> 4774.721678 | K32: =I32*G32 -> 0
A33: 3 | B33: Risk 3 | C33: 0.05 | D33: 75000 | E33: 150000 | J33: 5562.591174 | K33: =I33*G33 -> 0
H35: Bin | I35: Count greater than or equal to bin / total | K35: Trial ID | L35: 1 | M35: 2 | N35: 3 | O35: 4 | P35: 5 | Q35: 6 | R35: 7 | S35: 8 | T35: 9 | U35: 10 | V35: 11 | W35: 12 | X35: 13 | Y35: 14 | Z35: 15 | AA35: 16 | AB35: 17 | AC35: 18 | AD35: 19 | AE35: 20 | AF35: 21 | AG35: 22 | AH35: 23 | AI35: 24 | AJ35: 25 | AK35: 26 | AL35: 27 | AM35: 28 | AN35: 29 | AO35: 30 | AP35: 31 | AQ35: 32 | AR35: 33 | AS35: 34 | AT35: 35 | AU35: 36 | AV35: 37 | AW35: 38 | AX35: 39 | AY35: 40 | AZ35: 41 | BA35: 42 | BB35: 43 | BC35: 44 | BD35: 45 | BE35: 46 | BF35: 47 | BG35: 48 | BH35: 49 | BI35: 50 | BJ35: 51 | BK35: 52 | BL35: 53 | BM35: 54 | BN35: 55 | BO35: 56 | BP35: 57 | BQ35: 58 | BR35: 59 | BS35: 60 | BT35: 61 | BU35: 62 | BV35: 63 | BW35: 64 | BX35: 65 | BY35: 66 | BZ35: 67 | CA35: 68 | CB35: 69 | CC35: 70 | CD35: 71 | CE35: 72 | CF35: 73 | CG35: 74 | CH35: 75 | CI35: 76 | CJ35: 77 | CK35: 78 | CL35: 79 | CM35: 80 | CN35: 81 | CO35: 82 | CP35: 83 | CQ35: 84 | CR35: 85 | CS35: 86 | CT35: 87 | CU35: 88 | CV35: 89 | CW35: 90 | CX35: 91 | CY35: 92 | CZ35: 93 | DA35: 94 | DB35: 95 | DC35: 96 | DD35: 97 | DE35: 98 | DF35: 99 | DG35: 100 | DH35: 101 | DI35: 102 | DJ35: 103 | DK35: 104 | DL35: 105 | DM35: 106 | DN35: 107 | DO35: 108 | DP35: 109 | DQ35: 110 | DR35: 111 | DS35: 112 | DT35: 113 | DU35: 114 | DV35: 115 | DW35: 116 | DX35: 117 | DY35: 118 | DZ35: 119 | EA35: 120 | EB35: 121 | EC35: 122 | ED35: 123 | EE35: 124 | EF35: 125 | EG35: 126 | EH35: 127 | EI35: 128 | EJ35: 129 | EK35: 130 | EL35: 131 | EM35: 132 | EN35: 133 | EO35: 134 | EP35: 135 | EQ35: 136 | ER35: 137 | ES35: 138 | ET35: 139 | EU35: 140 | EV35: 141 | EW35: 142 | EX35: 143 | EY35: 144 | EZ35: 145 | FA35: 146 | FB35: 147 | FC35: 148 | FD35: 149 | FE35: 150 | FF35: 151 | FG35: 152 | FH35: 153 | FI35: 154 | FJ35: 155 | FK35: 156 | FL35: 157 | FM35: 158 | FN35: 159 | FO35: 160 | FP35: 161 | FQ35: 162 | FR35: 163 | FS35: 164 | FT35: 165 | FU35: 166 | FV35: 167 | FW35: 168 | FX35: 169 | FY35: 170 | FZ35: 171 | GA35: 172 | GB35: 173 | GC35: 174 | GD35: 175 | GE35: 176 | GF35: 177 | GG35: 178 | GH35: 179 | GI35: 180 | GJ35: 181 | GK35: 182 | GL35: 183 | GM35: 184 | GN35: 185 | GO35: 186 | GP35: 187 | GQ35: 188 | GR35: 189 | GS35: 190 | GT35: 191 | GU35: 192 | GV35: 193 | GW35: 194 | GX35: 195 | GY35: 196 | GZ35: 197 | HA35: 198 | HB35: 199 | HC35: 200 | HD35: 201 | HE35: 202 | HF35: 203 | HG35: 204 | HH35: 205 | HI35: 206 | HJ35: 207 | HK35: 208 | HL35: 209 | HM35: 210 | HN35: 211 | HO35: 212 | HP35: 213 | HQ35: 214 | HR35: 215 | HS35: 216 | HT35: 217 | HU35: 218 | HV35: 219 | HW35: 220 | HX35: 221 | HY35: 222 | HZ35: 223 | IA35: 224 | IB35: 225 | IC35: 226 | ID35: 227 | IE35: 228 | IF35: 229 | IG35: 230 | IH35: 231 | II35: 232 | IJ35: 233 | IK35: 234 | IL35: 235 | IM35: 236 | IN35: 237 | IO35: 238 | IP35: 239 | IQ35: 240 | IR35: 241 | IS35: 242 | IT35: 243 | IU35: 244 | IV35: 245 | IW35: 246 | IX35: 247 | IY35: 248 | IZ35: 249 | JA35: 250 | JB35: 251 | JC35: 252 | JD35: 253 | JE35: 254 | JF35: 255 | JG35: 256 | JH35: 257 | JI35: 258 | JJ35: 259 | JK35: 260 | JL35: 261 | JM35: 262 | JN35: 263 | JO35: 264 | JP35: 265 | JQ35: 266 | JR35: 267 | JS35: 268 | JT35: 269 | JU35: 270 | JV35: 271 | JW35: 272 | JX35: 273 | JY35: 274 | JZ35: 275 | KA35: 276 | KB35: 277 | KC35: 278 | KD35: 279 | KE35: 280 | KF35: 281 | KG35: 282 | KH35: 283 | KI35: 284 | KJ35: 285 | KK35: 286 | KL35: 287 | KM35: 288 | KN35: 289 | KO35: 290 | KP35: 291 | KQ35: 292 | KR35: 293 | KS35: 294 | KT35: 295 | KU35: 296 | KV35: 297 | KW35: 298 | KX35: 299 | KY35: 300 | KZ35: 301 | LA35: 302 | LB35: 303 | LC35: 304 | LD35: 305 | LE35: 306 | LF35: 307 | LG35: 308 | LH35: 309 | LI35: 310 | LJ35: 311 | LK35: 312 | LL35: 313 | LM35: 314 | LN35: 315 | LO35: 316 | LP35: 317 | LQ35: 318 | LR35: 319 | LS35: 320 | LT35: 321 | LU35: 322 | LV35: 323 | LW35: 324 | LX35: 325 | LY35: 326 | LZ35: 327 | MA35: 328 | MB35: 329 | MC35: 330 | MD35: 331 | ME35: 332 | MF35: 333 | MG35: 334 | MH35: 335 | MI35: 336 | MJ35: 337 | MK35: 338 | ML35: 339 | MM35: 340 | MN35: 341 | MO35: 342 | MP35: 343 | MQ35: 344 | MR35: 345 | MS35: 346 | MT35: 347 | MU35: 348 | MV35: 349 | MW35: 350 | MX35: 351 | MY35: 352 | MZ35: 353 | NA35: 354 | NB35: 355 | NC35: 356 | ND35: 357 | NE35: 358 | NF35: 359 | NG35: 360 | NH35: 361 | NI35: 362 | NJ35: 363 | NK35: 364 | NL35: 365 | NM35: 366 | NN35: 367 | NO35: 368 | NP35: 369 | NQ35: 370 | NR35: 371 | NS35: 372 | NT35: 373 | NU35: 374 | NV35: 375 | NW35: 376 | NX35: 377 | NY35: 378 | NZ35: 379 | OA35: 380 | OB35: 381 | OC35: 382 | OD35: 383 | OE35: 384 | OF35: 385 | OG35: 386 | OH35: 387 | OI35: 388 | OJ35: 389 | OK35: 390 | OL35: 391 | OM35: 392 | ON35: 393 | OO35: 394 | OP35: 395 | OQ35: 396 | OR35: 397 | OS35: 398 | OT35: 399 | OU35: 400 | OV35: 401 | OW35: 402 | OX35: 403 | OY35: 404 | OZ35: 405 | PA35: 406 | PB35: 407 | PC35: 408 | PD35: 409 | PE35: 410 | PF35: 411 | PG35: 412 | PH35: 413 | PI35: 414 | PJ35: 415 | PK35: 416 | PL35: 417 | PM35: 418 | PN35: 419 | PO35: 420 | PP35: 421 | PQ35: 422 | PR35: 423 | PS35: 424 | PT35: 425 | PU35: 426 | PV35: 427 | PW35: 428 | PX35: 429 | PY35: 430 | PZ35: 431 | QA35: 432 | QB35: 433 | QC35: 434 | QD35: 435 | QE35: 436 | QF35: 437 | QG35: 438 | QH35: 439 | QI35: 440 | QJ35: 441 | QK35: 442 | QL35: 443 | QM35: 444 | QN35: 445 | QO35: 446 | QP35: 447 | QQ35: 448 | QR35: 449 | QS35: 450 | QT35: 451 | QU35: 452 | QV35: 453 | QW35: 454 | QX35: 455 | QY35: 456 | QZ35: 457 | RA35: 458 | RB35: 459 | RC35: 460 | RD35: 461 | RE35: 462 | RF35: 463 | RG35: 464 | RH35: 465 | RI35: 466 | RJ35: 467 | RK35: 468 | RL35: 469 | RM35: 470 | RN35: 471 | RO35: 472 | RP35: 473 | RQ35: 474 | RR35: 475 | RS35: 476 | RT35: 477 | RU35: 478 | RV35: 479 | RW35: 480 | RX35: 481 | RY35: 482 | RZ35: 483 | SA35: 484 | SB35: 485 | SC35: 486 | SD35: 487 | SE35: 488 | SF35: 489 | SG35: 490 | SH35: 491 | SI35: 492 | SJ35: 493 | SK35: 494 | SL35: 495 | SM35: 496 | SN35: 497 | SO35: 498 | SP35: 499 | SQ35: 500 | SR35: 501 | SS35: 502 | ST35: 503 | SU35: 504 | SV35: 505 | SW35: 506 | SX35: 507 | SY35: 508 | SZ35: 509 | TA35: 510 | TB35: 511 | TC35: 512 | TD35: 513 | TE35: 514 | TF35: 515 | TG35: 516 | TH35: 517 | TI35: 518 | TJ35: 519 | TK35: 520 | TL35: 521 | TM35: 522 | TN35: 523 | TO35: 524 | TP35: 525 | TQ35: 526 | TR35: 527 | TS35: 528 | TT35: 529 | TU35: 530 | TV35: 531 | TW35: 532 | TX35: 533 | TY35: 534 | TZ35: 535 | UA35: 536 | UB35: 537 | UC35: 538 | UD35: 539 | UE35: 540 | UF35: 541 | UG35: 542 | UH35: 543 | UI35: 544 | UJ35: 545 | UK35: 546 | UL35: 547 | UM35: 548 | UN35: 549 | UO35: 550 | UP35: 551 | UQ35: 552 | UR35: 553 | US35: 554 | UT35: 555 | UU35: 556 | UV35: 557 | UW35: 558 | UX35: 559 | UY35: 560 | UZ35: 561 | VA35: 562 | VB35: 563 | VC35: 564 | VD35: 565 | VE35: 566 | VF35: 567 | VG35: 568 | VH35: 569 | VI35: 570 | VJ35: 571 | VK35: 572 | VL35: 573 | VM35: 574 | VN35: 575 | VO35: 576 | VP35: 577 | VQ35: 578 | VR35: 579 | VS35: 580 | VT35: 581 | VU35: 582 | VV35: 583 | VW35: 584 | VX35: 585 | VY35: 586 | VZ35: 587 | WA35: 588 | WB35: 589 | WC35: 590 | WD35: 591 | WE35: 592 | WF35: 593 | WG35: 594 | WH35: 595 | WI35: 596 | WJ35: 597 | WK35: 598 | WL35: 599 | WM35: 600 | WN35: 601 | WO35: 602 | WP35: 603 | WQ35: 604 | WR35: 605 | WS35: 606 | WT35: 607 | WU35: 608 | WV35: 609 | WW35: 610 | WX35: 611 | WY35: 612 | WZ35: 613 | XA35: 614 | XB35: 615 | XC35: 616 | XD35: 617 | XE35: 618 | XF35: 619 | XG35: 620 | XH35: 621 | XI35: 622 | XJ35: 623 | XK35: 624 | XL35: 625 | XM35: 626 | XN35: 627 | XO35: 628 | XP35: 629 | XQ35: 630 | XR35: 631 | XS35: 632 | XT35: 633 | XU35: 634 | XV35: 635 | XW35: 636 | XX35: 637 | XY35: 638 | XZ35: 639 | YA35: 640 | YB35: 641 | YC35: 642 | YD35: 643 | YE35: 644 | YF35: 645 | YG35: 646 | YH35: 647 | YI35: 648 | YJ35: 649 | YK35: 650 | YL35: 651 | YM35: 652 | YN35: 653 | YO35: 654 | YP35: 655 | YQ35: 656 | YR35: 657 | YS35: 658 | YT35: 659 | YU35: 660 | YV35: 661 | YW35: 662 | YX35: 663 | YY35: 664 | YZ35: 665 | ZA35: 666 | ZB35: 667 | ZC35: 668 | ZD35: 669 | ZE35: 670 | ZF35: 671 | ZG35: 672 | ZH35: 673 | ZI35: 674 | ZJ35: 675 | ZK35: 676 | ZL35: 677 | ZM35: 678 | ZN35: 679 | ZO35: 680 | ZP35: 681 | ZQ35: 682 | ZR35: 683 | ZS35: 684 | ZT35: 685 | ZU35: 686 | ZV35: 687 | ZW35: 688 | ZX35: 689 | ZY35: 690 | ZZ35: 691 | AAA35: 692 | AAB35: 693 | AAC35: 694 | AAD35: 695 | AAE35: 696 | AAF35: 697 | AAG35: 698 | AAH35: 699 | AAI35: 700 | AAJ35: 701 | AAK35: 702 | AAL35: 703 | AAM35: 704 | AAN35: 705 | AAO35: 706 | AAP35: 707 | AAQ35: 708 | AAR35: 709 | AAS35: 710 | AAT35: 711 | AAU35: 712 | AAV35: 713 | AAW35: 714 | AAX35: 715 | AAY35: 716 | AAZ35: 717 | ABA35: 718 | ABB35: 719 | ABC35: 720 | ABD35: 721 | ABE35: 722 | ABF35: 723 | ABG35: 724 | ABH35: 725 | ABI35: 726 | ABJ35: 727 | ABK35: 728 | ABL35: 729 | ABM35: 730 | ABN35: 731 | ABO35: 732 | ABP35: 733 | ABQ35: 734 | ABR35: 735 | ABS35: 736 | ABT35: 737 | ABU35: 738 | ABV35: 739 | ABW35: 740 | ABX35: 741 | ABY35: 742 | ABZ35: 743 | ACA35: 744 | ACB35: 745 | ACC35: 746 | ACD35: 747 | ACE35: 748 | ACF35: 749 | ACG35: 750 | ACH35: 751 | ACI35: 752 | ACJ35: 753 | ACK35: 754 | ACL35: 755 | ACM35: 756 | ACN35: 757 | ACO35: 758 | ACP35: 759 | ACQ35: 760 | ACR35: 761 | ACS35: 762 | ACT35: 763 | ACU35: 764 | ACV35: 765 | ACW35: 766 | ACX35: 767 | ACY35: 768 | ACZ35: 769 | ADA35: 770 | ADB35: 771 | ADC35: 772 | ADD35: 773 | ADE35: 774 | ADF35: 775 | ADG35: 776 | ADH35: 777 | ADI35: 778 | ADJ35: 779 | ADK35: 780 | ADL35: 781 | ADM35: 782 | ADN35: 783 | ADO35: 784 | ADP35: 785 | ADQ35: 786 | ADR35: 787 | ADS35: 788 | ADT35: 789 | ADU35: 790 | ADV35: 791 | ADW35: 792 | ADX35: 793 | ADY35: 794 | ADZ35: 795 | AEA35: 796 | AEB35: 797 | AEC35: 798 | AED35: 799 | AEE35: 800 | AEF35: 801 | AEG35: 802 | AEH35: 803 | AEI35: 804 | AEJ35: 805 | AEK35: 806 | AEL35: 807 | AEM35: 808 | AEN35: 809 | AEO35: 810 | AEP35: 811 | AEQ35: 812 | AER35: 813 | AES35: 814 | AET35: 815 | AEU35: 816 | AEV35: 817 | AEW35: 818 | AEX35: 819 | AEY35: 820 | AEZ35: 821 | AFA35: 822 | AFB35: 823 | AFC35: 824 | AFD35: 825 | AFE35: 826 | AFF35: 827 | AFG35: 828 | AFH35: 829 | AFI35: 830 | AFJ35: 831 | AFK35: 832 | AFL35: 833 | AFM35: 834 | AFN35: 835 | AFO35: 836 | AFP35: 837 | AFQ35: 838 | AFR35: 839 | AFS35: 840 | AFT35: 841 | AFU35: 842 | AFV35: 843 | AFW35: 844 | AFX35: 845 | AFY35: 846 | AFZ35: 847 | AGA35: 848 | AGB35: 849 | AGC35: 850 | AGD35: 851 | AGE35: 852 | AGF35: 853 | AGG35: 854 | AGH35: 855 | AGI35: 856 | AGJ35: 857 | AGK35: 858 | AGL35: 859 | AGM35: 860 | AGN35: 861 | AGO35: 862 | AGP35: 863 | AGQ35: 864 | AGR35: 865 | AGS35: 866 | AGT35: 867 | AGU35: 868 | AGV35: 869 | AGW35: 870 | AGX35: 871 | AGY35: 872 | AGZ35: 873 | AHA35: 874 | AHB35: 875 | AHC35: 876 | AHD35: 877 | AHE35: 878 | AHF35: 879 | AHG35: 880 | AHH35: 881 | AHI35: 882 | AHJ35: 883 | AHK35: 884 | AHL35: 885 | AHM35: 886 | AHN35: 887 | AHO35: 888 | AHP35: 889 | AHQ35: 890 | AHR35: 891 | AHS35: 892 | AHT35: 893 | AHU35: 894 | AHV35: 895 | AHW35: 896 | AHX35: 897 | AHY35: 898 | AHZ35: 899 | AIA35: 900 | AIB35: 901 | AIC35: 902 | AID35: 903 | AIE35: 904 | AIF35: 905 | AIG35: 906 | AIH35: 907 | AII35: 908 | AIJ35: 909 | AIK35: 910 | AIL35: 911 | AIM35: 912 | AIN35: 913 | AIO35: 914 | AIP35: 915 | AIQ35: 916 | AIR35: 917 | AIS35: 918 | AIT35: 919 | AIU35: 920 | AIV35: 921 | AIW35: 922 | AIX35: 923 | AIY35: 924 | AIZ35: 925 | AJA35: 926 | AJB35: 927 | AJC35: 928 | AJD35: 929 | AJE35: 930 | AJF35: 931 | AJG35: 932 | AJH35: 933 | AJI35: 934 | AJJ35: 935 | AJK35: 936 | AJL35: 937 | AJM35: 938 | AJN35: 939 | AJO35: 940 | AJP35: 941 | AJQ35: 942 | AJR35: 943 | AJS35: 944 | AJT35: 945 | AJU35: 946 | AJV35: 947 | AJW35: 948 | AJX35: 949 | AJY35: 950 | AJZ35: 951 | AKA35: 952 | AKB35: 953 | AKC35: 954 | AKD35: 955 | AKE35: 956 | AKF35: 957 | AKG35: 958 | AKH35: 959 | AKI35: 960 | AKJ35: 961 | AKK35: 962 | AKL35: 963 | AKM35: 964 | AKN35: 965 | AKO35: 966 | AKP35: 967 | AKQ35: 968 | AKR35: 969 | AKS35: 970 | AKT35: 971 | AKU35: 972 | AKV35: 973 | AKW35: 974 | AKX35: 975 | AKY35: 976 | AKZ35: 977 | ALA35: 978 | ALB35: 979 | ALC35: 980 | ALD35: 981 | ALE35: 982 | ALF35: 983 | ALG35: 984 | ALH35: 985 | ALI35: 986 | ALJ35: 987 | ALK35: 988 | ALL35: 989 | ALM35: 990 | ALN35: 991 | ALO35: 992 | ALP35: 993 | ALQ35: 994 | ALR35: 995 | ALS35: 996 | ALT35: 997 | ALU35: 998 | ALV35: 999 | ALW35: 1000
H36: 0.001 | I36: =COUNTIF($L$36:$ALW$36, ">="&H36)/COUNT($L$36:$ALW$36) -> 0 | K36: =SUM(K31:K33) -> 0 | L36: 0 | M36: 0 | N36: 0 | O36: 0 | P36: 0 | Q36: 0 | R36: 0 | S36: 0 | T36: 0 | U36: 0 | V36: 0 | W36: 0 | X36: 0 | Y36: 0 | Z36: 0 | AA36: 0 | AB36: 0 | AC36: 0 | AD36: 0 | AE36: 0 | AF36: 0 | AG36: 0 | AH36: 0 | AI36: 0 | AJ36: 0 | AK36: 0 | AL36: 0 | AM36: 0 | AN36: 0 | AO36: 0 | AP36: 0 | AQ36: 0 | AR36: 0 | AS36: 0 | AT36: 0 | AU36: 0 | AV36: 0 | AW36: 0 | AX36: 0 | AY36: 0 | AZ36: 0 | BA36: 0 | BB36: 0 | BC36: 0 | BD36: 0 | BE36: 0 | BF36: 0 | BG36: 0 | BH36: 0 | BI36: 0 | BJ36: 0 | BK36: 0 | BL36: 0 | BM36: 0 | BN36: 0 | BO36: 0 | BP36: 0 | BQ36: 0 | BR36: 0 | BS36: 0 | BT36: 0 | BU36: 0 | BV36: 0 | BW36: 0 | BX36: 0 | BY36: 0 | BZ36: 0 | CA36: 0 | CB36: 0 | CC36: 0 | CD36: 0 | CE36: 0 | CF36: 0 | CG36: 0 | CH36: 0 | CI36: 0 | CJ36: 0 | CK36: 0 | CL36: 0 | CM36: 0 | CN36: 0 | CO36: 0 | CP36: 0 | CQ36: 0 | CR36: 0 | CS36: 0 | CT36: 0 | CU36: 0 | CV36: 0 | CW36: 0 | CX36: 0 | CY36: 0 | CZ36: 0 | DA36: 0 | DB36: 0 | DC36: 0 | DD36: 0 | DE36: 0 | DF36: 0 | DG36: 0 | DH36: 0 | DI36: 0 | DJ36: 0 | DK36: 0 | DL36: 0 | DM36: 0 | DN36: 0 | DO36: 0 | DP36: 0 | DQ36: 0 | DR36: 0 | DS36: 0 | DT36: 0 | DU36: 0 | DV36: 0 | DW36: 0 | DX36: 0 | DY36: 0 | DZ36: 0 | EA36: 0 | EB36: 0 | EC36: 0 | ED36: 0 | EE36: 0 | EF36: 0 | EG36: 0 | EH36: 0 | EI36: 0 | EJ36: 0 | EK36: 0 | EL36: 0 | EM36: 0 | EN36: 0 | EO36: 0 | EP36: 0 | EQ36: 0 | ER36: 0 | ES36: 0 | ET36: 0 | EU36: 0 | EV36: 0 | EW36: 0 | EX36: 0 | EY36: 0 | EZ36: 0 | FA36: 0 | FB36: 0 | FC36: 0 | FD36: 0 | FE36: 0 | FF36: 0 | FG36: 0 | FH36: 0 | FI36: 0 | FJ36: 0 | FK36: 0 | FL36: 0 | FM36: 0 | FN36: 0 | FO36: 0 | FP36: 0 | FQ36: 0 | FR36: 0 | FS36: 0 | FT36: 0 | FU36: 0 | FV36: 0 | FW36: 0 | FX36: 0 | FY36: 0 | FZ36: 0 | GA36: 0 | GB36: 0 | GC36: 0 | GD36: 0 | GE36: 0 | GF36: 0 | GG36: 0 | GH36: 0 | GI36: 0 | GJ36: 0 | GK36: 0 | GL36: 0 | GM36: 0 | GN36: 0 | GO36: 0 | GP36: 0 | GQ36: 0 | GR36: 0 | GS36: 0 | GT36: 0 | GU36: 0 | GV36: 0 | GW36: 0 | GX36: 0 | GY36: 0 | GZ36: 0 | HA36: 0 | HB36: 0 | HC36: 0 | HD36: 0 | HE36: 0 | HF36: 0 | HG36: 0 | HH36: 0 | HI36: 0 | HJ36: 0 | HK36: 0 | HL36: 0 | HM36: 0 | HN36: 0 | HO36: 0 | HP36: 0 | HQ36: 0 | HR36: 0 | HS36: 0 | HT36: 0 | HU36: 0 | HV36: 0 | HW36: 0 | HX36: 0 | HY36: 0 | HZ36: 0 | IA36: 0 | IB36: 0 | IC36: 0 | ID36: 0 | IE36: 0 | IF36: 0 | IG36: 0 | IH36: 0 | II36: 0 | IJ36: 0 | IK36: 0 | IL36: 0 | IM36: 0 | IN36: 0 | IO36: 0 | IP36: 0 | IQ36: 0 | IR36: 0 | IS36: 0 | IT36: 0 | IU36: 0 | IV36: 0 | IW36: 0 | IX36: 0 | IY36: 0 | IZ36: 0 | JA36: 0 | JB36: 0 | JC36: 0 | JD36: 0 | JE36: 0 | JF36: 0 | JG36: 0 | JH36: 0 | JI36: 0 | JJ36: 0 | JK36: 0 | JL36: 0 | JM36: 0 | JN36: 0 | JO36: 0 | JP36: 0 | JQ36: 0 | JR36: 0 | JS36: 0 | JT36: 0 | JU36: 0 | JV36: 0 | JW36: 0 | JX36: 0 | JY36: 0 | JZ36: 0 | KA36: 0 | KB36: 0 | KC36: 0 | KD36: 0 | KE36: 0 | KF36: 0 | KG36: 0 | KH36: 0 | KI36: 0 | KJ36: 0 | KK36: 0 | KL36: 0 | KM36: 0 | KN36: 0 | KO36: 0 | KP36: 0 | KQ36: 0 | KR36: 0 | KS36: 0 | KT36: 0 | KU36: 0 | KV36: 0 | KW36: 0 | KX36: 0 | KY36: 0 | KZ36: 0 | LA36: 0 | LB36: 0 | LC36: 0 | LD36: 0 | LE36: 0 | LF36: 0 | LG36: 0 | LH36: 0 | LI36: 0 | LJ36: 0 | LK36: 0 | LL36: 0 | LM36: 0 | LN36: 0 | LO36: 0 | LP36: 0 | LQ36: 0 | LR36: 0 | LS36: 0 | LT36: 0 | LU36: 0 | LV36: 0 | LW36: 0 | LX36: 0 | LY36: 0 | LZ36: 0 | MA36: 0 | MB36: 0 | MC36: 0 | MD36: 0 | ME36: 0 | MF36: 0 | MG36: 0 | MH36: 0 | MI36: 0 | MJ36: 0 | MK36: 0 | ML36: 0 | MM36: 0 | MN36: 0 | MO36: 0 | MP36: 0 | MQ36: 0 | MR36: 0 | MS36: 0 | MT36: 0 | MU36: 0 | MV36: 0 | MW36: 0 | MX36: 0 | MY36: 0 | MZ36: 0 | NA36: 0 | NB36: 0 | NC36: 0 | ND36: 0 | NE36: 0 | NF36: 0 | NG36: 0 | NH36: 0 | NI36: 0 | NJ36: 0 | NK36: 0 | NL36: 0 | NM36: 0 | NN36: 0 | NO36: 0 | NP36: 0 | NQ36: 0 | NR36: 0 | NS36: 0 | NT36: 0 | NU36: 0 | NV36: 0 | NW36: 0 | NX36: 0 | NY36: 0 | NZ36: 0 | OA36: 0 | OB36: 0 | OC36: 0 | OD36: 0 | OE36: 0 | OF36: 0 | OG36: 0 | OH36: 0 | OI36: 0 | OJ36: 0 | OK36: 0 | OL36: 0 | OM36: 0 | ON36: 0 | OO36: 0 | OP36: 0 | OQ36: 0 | OR36: 0 | OS36: 0 | OT36: 0 | OU36: 0 | OV36: 0 | OW36: 0 | OX36: 0 | OY36: 0 | OZ36: 0 | PA36: 0 | PB36: 0 | PC36: 0 | PD36: 0 | PE36: 0 | PF36: 0 | PG36: 0 | PH36: 0 | PI36: 0 | PJ36: 0 | PK36: 0 | PL36: 0 | PM36: 0 | PN36: 0 | PO36: 0 | PP36: 0 | PQ36: 0 | PR36: 0 | PS36: 0 | PT36: 0 | PU36: 0 | PV36: 0 | PW36: 0 | PX36: 0 | PY36: 0 | PZ36: 0 | QA36: 0 | QB36: 0 | QC36: 0 | QD36: 0 | QE36: 0 | QF36: 0 | QG36: 0 | QH36: 0 | QI36: 0 | QJ36: 0 | QK36: 0 | QL36: 0 | QM36: 0 | QN36: 0 | QO36: 0 | QP36: 0 | QQ36: 0 | QR36: 0 | QS36: 0 | QT36: 0 | QU36: 0 | QV36: 0 | QW36: 0 | QX36: 0 | QY36: 0 | QZ36: 0 | RA36: 0 | RB36: 0 | RC36: 0 | RD36: 0 | RE36: 0 | RF36: 0 | RG36: 0 | RH36: 0 | RI36: 0 | RJ36: 0 | RK36: 0 | RL36: 0 | RM36: 0 | RN36: 0 | RO36: 0 | RP36: 0 | RQ36: 0 | RR36: 0 | RS36: 0 | RT36: 0 | RU36: 0 | RV36: 0 | RW36: 0 | RX36: 0 | RY36: 0 | RZ36: 0 | SA36: 0 | SB36: 0 | SC36: 0 | SD36: 0 | SE36: 0 | SF36: 0 | SG36: 0 | SH36: 0 | SI36: 0 | SJ36: 0 | SK36: 0 | SL36: 0 | SM36: 0 | SN36: 0 | SO36: 0 | SP36: 0 | SQ36: 0 | SR36: 0 | SS36: 0 | ST36: 0 | SU36: 0 | SV36: 0 | SW36: 0 | SX36: 0 | SY36: 0 | SZ36: 0 | TA36: 0 | TB36: 0 | TC36: 0 | TD36: 0 | TE36: 0 | TF36: 0 | TG36: 0 | TH36: 0 | TI36: 0 | TJ36: 0 | TK36: 0 | TL36: 0 | TM36: 0 | TN36: 0 | TO36: 0 | TP36: 0 | TQ36: 0 | TR36: 0 | TS36: 0 | TT36: 0 | TU36: 0 | TV36: 0 | TW36: 0 | TX36: 0 | TY36: 0 | TZ36: 0 | UA36: 0 | UB36: 0 | UC36: 0 | UD36: 0 | UE36: 0 | UF36: 0 | UG36: 0 | UH36: 0 | UI36: 0 | UJ36: 0 | UK36: 0 | UL36: 0 | UM36: 0 | UN36: 0 | UO36: 0 | UP36: 0 | UQ36: 0 | UR36: 0 | US36: 0 | UT36: 0 | UU36: 0 | UV36: 0 | UW36: 0 | UX36: 0 | UY36: 0 | UZ36: 0 | VA36: 0 | VB36: 0 | VC36: 0 | VD36: 0 | VE36: 0 | VF36: 0 | VG36: 0 | VH36: 0 | VI36: 0 | VJ36: 0 | VK36: 0 | VL36: 0 | VM36: 0 | VN36: 0 | VO36: 0 | VP36: 0 | VQ36: 0 | VR36: 0 | VS36: 0 | VT36: 0 | VU36: 0 | VV36: 0 | VW36: 0 | VX36: 0 | VY36: 0 | VZ36: 0 | WA36: 0 | WB36: 0 | WC36: 0 | WD36: 0 | WE36: 0 | WF36: 0 | WG36: 0 | WH36: 0 | WI36: 0 | WJ36: 0 | WK36: 0 | WL36: 0 | WM36: 0 | WN36: 0 | WO36: 0 | WP36: 0 | WQ36: 0 | WR36: 0 | WS36: 0 | WT36: 0 | WU36: 0 | WV36: 0 | WW36: 0 | WX36: 0 | WY36: 0 | WZ36: 0 | XA36: 0 | XB36: 0 | XC36: 0 | XD36: 0 | XE36: 0 | XF36: 0 | XG36: 0 | XH36: 0 | XI36: 0 | XJ36: 0 | XK36: 0 | XL36: 0 | XM36: 0 | XN36: 0 | XO36: 0 | XP36: 0 | XQ36: 0 | XR36: 0 | XS36: 0 | XT36: 0 | XU36: 0 | XV36: 0 | XW36: 0 | XX36: 0 | XY36: 0 | XZ36: 0 | YA36: 0 | YB36: 0 | YC36: 0 | YD36: 0 | YE36: 0 | YF36: 0 | YG36: 0 | YH36: 0 | YI36: 0 | YJ36: 0 | YK36: 0 | YL36: 0 | YM36: 0 | YN36: 0 | YO36: 0 | YP36: 0 | YQ36: 0 | YR36: 0 | YS36: 0 | YT36: 0 | YU36: 0 | YV36: 0 | YW36: 0 | YX36: 0 | YY36: 0 | YZ36: 0 | ZA36: 0 | ZB36: 0 | ZC36: 0 | ZD36: 0 | ZE36: 0 | ZF36: 0 | ZG36: 0 | ZH36: 0 | ZI36: 0 | ZJ36: 0 | ZK36: 0 | ZL36: 0 | ZM36: 0 | ZN36: 0 | ZO36: 0 | ZP36: 0 | ZQ36: 0 | ZR36: 0 | ZS36: 0 | ZT36: 0 | ZU36: 0 | ZV36: 0 | ZW36: 0 | ZX36: 0 | ZY36: 0 | ZZ36: 0 | AAA36: 0 | AAB36: 0 | AAC36: 0 | AAD36: 0 | AAE36: 0 | AAF36: 0 | AAG36: 0 | AAH36: 0 | AAI36: 0 | AAJ36: 0 | AAK36: 0 | AAL36: 0 | AAM36: 0 | AAN36: 0 | AAO36: 0 | AAP36: 0 | AAQ36: 0 | AAR36: 0 | AAS36: 0 | AAT36: 0 | AAU36: 0 | AAV36: 0 | AAW36: 0 | AAX36: 0 | AAY36: 0 | AAZ36: 0 | ABA36: 0 | ABB36: 0 | ABC36: 0 | ABD36: 0 | ABE36: 0 | ABF36: 0 | ABG36: 0 | ABH36: 0 | ABI36: 0 | ABJ36: 0 | ABK36: 0 | ABL36: 0 | ABM36: 0 | ABN36: 0 | ABO36: 0 | ABP36: 0 | ABQ36: 0 | ABR36: 0 | ABS36: 0 | ABT36: 0 | ABU36: 0 | ABV36: 0 | ABW36: 0 | ABX36: 0 | ABY36: 0 | ABZ36: 0 | ACA36: 0 | ACB36: 0 | ACC36: 0 | ACD36: 0 | ACE36: 0 | ACF36: 0 | ACG36: 0 | ACH36: 0 | ACI36: 0 | ACJ36: 0 | ACK36: 0 | ACL36: 0 | ACM36: 0 | ACN36: 0 | ACO36: 0 | ACP36: 0 | ACQ36: 0 | ACR36: 0 | ACS36: 0 | ACT36: 0 | ACU36: 0 | ACV36: 0 | ACW36: 0 | ACX36: 0 | ACY36: 0 | ACZ36: 0 | ADA36: 0 | ADB36: 0 | ADC36: 0 | ADD36: 0 | ADE36: 0 | ADF36: 0 | ADG36: 0 | ADH36: 0 | ADI36: 0 | ADJ36: 0 | ADK36: 0 | ADL36: 0 | ADM36: 0 | ADN36: 0 | ADO36: 0 | ADP36: 0 | ADQ36: 0 | ADR36: 0 | ADS36: 0 | ADT36: 0 | ADU36: 0 | ADV36: 0 | ADW36: 0 | ADX36: 0 | ADY36: 0 | ADZ36: 0 | AEA36: 0 | AEB36: 0 | AEC36: 0 | AED36: 0 | AEE36: 0 | AEF36: 0 | AEG36: 0 | AEH36: 0 | AEI36: 0 | AEJ36: 0 | AEK36: 0 | AEL36: 0 | AEM36: 0 | AEN36: 0 | AEO36: 0 | AEP36: 0 | AEQ36: 0 | AER36: 0 | AES36: 0 | AET36: 0 | AEU36: 0 | AEV36: 0 | AEW36: 0 | AEX36: 0 | AEY36: 0 | AEZ36: 0 | AFA36: 0 | AFB36: 0 | AFC36: 0 | AFD36: 0 | AFE36: 0 | AFF36: 0 | AFG36: 0 | AFH36: 0 | AFI36: 0 | AFJ36: 0 | AFK36: 0 | AFL36: 0 | AFM36: 0 | AFN36: 0 | AFO36: 0 | AFP36: 0 | AFQ36: 0 | AFR36: 0 | AFS36: 0 | AFT36: 0 | AFU36: 0 | AFV36: 0 | AFW36: 0 | AFX36: 0 | AFY36: 0 | AFZ36: 0 | AGA36: 0 | AGB36: 0 | AGC36: 0 | AGD36: 0 | AGE36: 0 | AGF36: 0 | AGG36: 0 | AGH36: 0 | AGI36: 0 | AGJ36: 0 | AGK36: 0 | AGL36: 0 | AGM36: 0 | AGN36: 0 | AGO36: 0 | AGP36: 0 | AGQ36: 0 | AGR36: 0 | AGS36: 0 | AGT36: 0 | AGU36: 0 | AGV36: 0 | AGW36: 0 | AGX36: 0 | AGY36: 0 | AGZ36: 0 | AHA36: 0 | AHB36: 0 | AHC36: 0 | AHD36: 0 | AHE36: 0 | AHF36: 0 | AHG36: 0 | AHH36: 0 | AHI36: 0 | AHJ36: 0 | AHK36: 0 | AHL36: 0 | AHM36: 0 | AHN36: 0 | AHO36: 0 | AHP36: 0 | AHQ36: 0 | AHR36: 0 | AHS36: 0 | AHT36: 0 | AHU36: 0 | AHV36: 0 | AHW36: 0 | AHX36: 0 | AHY36: 0 | AHZ36: 0 | AIA36: 0 | AIB36: 0 | AIC36: 0 | AID36: 0 | AIE36: 0 | AIF36: 0 | AIG36: 0 | AIH36: 0 | AII36: 0 | AIJ36: 0 | AIK36: 0 | AIL36: 0 | AIM36: 0 | AIN36: 0 | AIO36: 0 | AIP36: 0 | AIQ36: 0 | AIR36: 0 | AIS36: 0 | AIT36: 0 | AIU36: 0 | AIV36: 0 | AIW36: 0 | AIX36: 0 | AIY36: 0 | AIZ36: 0 | AJA36: 0 | AJB36: 0 | AJC36: 0 | AJD36: 0 | AJE36: 0 | AJF36: 0 | AJG36: 0 | AJH36: 0 | AJI36: 0 | AJJ36: 0 | AJK36: 0 | AJL36: 0 | AJM36: 0 | AJN36: 0 | AJO36: 0 | AJP36: 0 | AJQ36: 0 | AJR36: 0 | AJS36: 0 | AJT36: 0 | AJU36: 0 | AJV36: 0 | AJW36: 0 | AJX36: 0 | AJY36: 0 | AJZ36: 0 | AKA36: 0 | AKB36: 0 | AKC36: 0 | AKD36: 0 | AKE36: 0 | AKF36: 0 | AKG36: 0 | AKH36: 0 | AKI36: 0 | AKJ36: 0 | AKK36: 0 | AKL36: 0 | AKM36: 0 | AKN36: 0 | AKO36: 0 | AKP36: 0 | AKQ36: 0 | AKR36: 0 | AKS36: 0 | AKT36: 0 | AKU36: 0 | AKV36: 0 | AKW36: 0 | AKX36: 0 | AKY36: 0 | AKZ36: 0 | ALA36: 0 | ALB36: 0 | ALC36: 0 | ALD36: 0 | ALE36: 0 | ALF36: 0 | ALG36: 0 | ALH36: 0 | ALI36: 0 | ALJ36: 0 | ALK36: 0 | ALL36: 0 | ALM36: 0 | ALN36: 0 | ALO36: 0 | ALP36: 0 | ALQ36: 0 | ALR36: 0 | ALS36: 0 | ALT36: 0 | ALU36: 0 | ALV36: 0 | ALW36: 0
H37: =H36+15000 -> 15000.001 | I37: 0
H38: =H37+15000 -> 30000.001 | I38: 0
H39: 45000.001 | I39: 0
H40: 60000.001 | I40: 0
H41: 75000.001 | I41: 0
H42: 90000.001 | I42: 0
H43: 105000.001 | I43: 0
H44: 120000.001 | I44: 0
H45: 135000.001 | I45: 0
H46: 150000.001 | I46: 0
H47: 165000.001 | I47: 0
H48: 180000.001 | I48: 0
H49: 195000.001 | I49: 0
H50: 210000.001 | I50: 0
H51: 225000.001 | I51: 0
A53: Using more advanced data table techniques
B54: Trial ID | C54: 1 | D54: 2 | E54: 3 | F54: 4 | G54: 5 | H54: 6 | I54: 7 | J54: 8 | K54: 9 | L54: 10 | M54: 11 | N54: 12 | O54: 13 | P54: 14 | Q54: 15 | R54: 16 | S54: 17 | T54: 18 | U54: 19 | V54: 20 | W54: 21 | X54: 22 | Y54: 23 | Z54: 24 | AA54: 25 | AB54: 26 | AC54: 27 | AD54: 28 | AE54: 29 | AF54: 30 | AG54: 31 | AH54: 32 | AI54: 33 | AJ54: 34 | AK54: 35 | AL54: 36 | AM54: 37 | AN54: 38 | AO54: 39 | AP54: 40 | AQ54: 41 | AR54: 42 | AS54: 43 | AT54: 44 | AU54: 45 | AV54: 46 | AW54: 47 | AX54: 48 | AY54: 49 | AZ54: 50 | BA54: 51 | BB54: 52 | BC54: 53 | BD54: 54 | BE54: 55 | BF54: 56 | BG54: 57 | BH54: 58 | BI54: 59 | BJ54: 60 | BK54: 61 | BL54: 62 | BM54: 63 | BN54: 64 | BO54: 65 | BP54: 66 | BQ54: 67 | BR54: 68 | BS54: 69 | BT54: 70 | BU54: 71 | BV54: 72 | BW54: 73 | BX54: 74 | BY54: 75 | BZ54: 76 | CA54: 77 | CB54: 78 | CC54: 79 | CD54: 80 | CE54: 81 | CF54: 82 | CG54: 83 | CH54: 84 | CI54: 85 | CJ54: 86 | CK54: 87 | CL54: 88 | CM54: 89 | CN54: 90 | CO54: 91 | CP54: 92 | CQ54: 93 | CR54: 94 | CS54: 95 | CT54: 96 | CU54: 97 | CV54: 98 | CW54: 99 | CX54: 100 | CY54: 101 | CZ54: 102 | DA54: 103 | DB54: 104 | DC54: 105 | DD54: 106 | DE54: 107 | DF54: 108 | DG54: 109 | DH54: 110 | DI54: 111 | DJ54: 112 | DK54: 113 | DL54: 114 | DM54: 115 | DN54: 116 | DO54: 117 | DP54: 118 | DQ54: 119 | DR54: 120 | DS54: 121 | DT54: 122 | DU54: 123 | DV54: 124 | DW54: 125 | DX54: 126 | DY54: 127 | DZ54: 128 | EA54: 129 | EB54: 130 | EC54: 131 | ED54: 132 | EE54: 133 | EF54: 134 | EG54: 135 | EH54: 136 | EI54: 137 | EJ54: 138 | EK54: 139 | EL54: 140 | EM54: 141 | EN54: 142 | EO54: 143 | EP54: 144 | EQ54: 145 | ER54: 146 | ES54: 147 | ET54: 148 | EU54: 149 | EV54: 150 | EW54: 151 | EX54: 152 | EY54: 153 | EZ54: 154 | FA54: 155 | FB54: 156 | FC54: 157 | FD54: 158 | FE54: 159 | FF54: 160 | FG54: 161 | FH54: 162 | FI54: 163 | FJ54: 164 | FK54: 165 | FL54: 166 | FM54: 167 | FN54: 168 | FO54: 169 | FP54: 170 | FQ54: 171 | FR54: 172 | FS54: 173 | FT54: 174 | FU54: 175 | FV54: 176 | FW54: 177 | FX54: 178 | FY54: 179 | FZ54: 180 | GA54: 181 | GB54: 182 | GC54: 183 | GD54: 184 | GE54: 185 | GF54: 186 | GG54: 187 | GH54: 188 | GI54: 189 | GJ54: 190 | GK54: 191 | GL54: 192 | GM54: 193 | GN54: 194 | GO54: 195 | GP54: 196 | GQ54: 197 | GR54: 198 | GS54: 199 | GT54: 200 | GU54: 201 | GV54: 202 | GW54: 203 | GX54: 204 | GY54: 205 | GZ54: 206 | HA54: 207 | HB54: 208 | HC54: 209 | HD54: 210 | HE54: 211 | HF54: 212 | HG54: 213 | HH54: 214 | HI54: 215 | HJ54: 216 | HK54: 217 | HL54: 218 | HM54: 219 | HN54: 220 | HO54: 221 | HP54: 222 | HQ54: 223 | HR54: 224 | HS54: 225 | HT54: 226 | HU54: 227 | HV54: 228 | HW54: 229 | HX54: 230 | HY54: 231 | HZ54: 232 | IA54: 233 | IB54: 234 | IC54: 235 | ID54: 236 | IE54: 237 | IF54: 238 | IG54: 239 | IH54: 240 | II54: 241 | IJ54: 242 | IK54: 243 | IL54: 244 | IM54: 245 | IN54: 246 | IO54: 247 | IP54: 248 | IQ54: 249 | IR54: 250 | IS54: 251 | IT54: 252 | IU54: 253 | IV54: 254 | IW54: 255 | IX54: 256 | IY54: 257 | IZ54: 258 | JA54: 259 | JB54: 260 | JC54: 261 | JD54: 262 | JE54: 263 | JF54: 264 | JG54: 265 | JH54: 266 | JI54: 267 | JJ54: 268 | JK54: 269 | JL54: 270 | JM54: 271 | JN54: 272 | JO54: 273 | JP54: 274 | JQ54: 275 | JR54: 276 | JS54: 277 | JT54: 278 | JU54: 279 | JV54: 280 | JW54: 281 | JX54: 282 | JY54: 283 | JZ54: 284 | KA54: 285 | KB54: 286 | KC54: 287 | KD54: 288 | KE54: 289 | KF54: 290 | KG54: 291 | KH54: 292 | KI54: 293 | KJ54: 294 | KK54: 295 | KL54: 296 | KM54: 297 | KN54: 298 | KO54: 299 | KP54: 300 | KQ54: 301 | KR54: 302 | KS54: 303 | KT54: 304 | KU54: 305 | KV54: 306 | KW54: 307 | KX54: 308 | KY54: 309 | KZ54: 310 | LA54: 311 | LB54: 312 | LC54: 313 | LD54: 314 | LE54: 315 | LF54: 316 | LG54: 317 | LH54: 318 | LI54: 319 | LJ54: 320 | LK54: 321 | LL54: 322 | LM54: 323 | LN54: 324 | LO54: 325 | LP54: 326 | LQ54: 327 | LR54: 328 | LS54: 329 | LT54: 330 | LU54: 331 | LV54: 332 | LW54: 333 | LX54: 334 | LY54: 335 | LZ54: 336 | MA54: 337 | MB54: 338 | MC54: 339 | MD54: 340 | ME54: 341 | MF54: 342 | MG54: 343 | MH54: 344 | MI54: 345 | MJ54: 346 | MK54: 347 | ML54: 348 | MM54: 349 | MN54: 350 | MO54: 351 | MP54: 352 | MQ54: 353 | MR54: 354 | MS54: 355 | MT54: 356 | MU54: 357 | MV54: 358 | MW54: 359 | MX54: 360 | MY54: 361 | MZ54: 362 | NA54: 363 | NB54: 364 | NC54: 365 | ND54: 366 | NE54: 367 | NF54: 368 | NG54: 369 | NH54: 370 | NI54: 371 | NJ54: 372 | NK54: 373 | NL54: 374 | NM54: 375 | NN54: 376 | NO54: 377 | NP54: 378 | NQ54: 379 | NR54: 380 | NS54: 381 | NT54: 382 | NU54: 383 | NV54: 384 | NW54: 385 | NX54: 386 | NY54: 387 | NZ54: 388 | OA54: 389 | OB54: 390 | OC54: 391 | OD54: 392 | OE54: 393 | OF54: 394 | OG54: 395 | OH54: 396 | OI54: 397 | OJ54: 398 | OK54: 399 | OL54: 400 | OM54: 401 | ON54: 402 | OO54: 403 | OP54: 404 | OQ54: 405 | OR54: 406 | OS54: 407 | OT54: 408 | OU54: 409 | OV54: 410 | OW54: 411 | OX54: 412 | OY54: 413 | OZ54: 414 | PA54: 415 | PB54: 416 | PC54: 417 | PD54: 418 | PE54: 419 | PF54: 420 | PG54: 421 | PH54: 422 | PI54: 423 | PJ54: 424 | PK54: 425 | PL54: 426 | PM54: 427 | PN54: 428 | PO54: 429 | PP54: 430 | PQ54: 431 | PR54: 432 | PS54: 433 | PT54: 434 | PU54: 435 | PV54: 436 | PW54: 437 | PX54: 438 | PY54: 439 | PZ54: 440 | QA54: 441 | QB54: 442 | QC54: 443 | QD54: 444 | QE54: 445 | QF54: 446 | QG54: 447 | QH54: 448 | QI54: 449 | QJ54: 450 | QK54: 451 | QL54: 452 | QM54: 453 | QN54: 454 | QO54: 455 | QP54: 456 | QQ54: 457 | QR54: 458 | QS54: 459 | QT54: 460 | QU54: 461 | QV54: 462 | QW54: 463 | QX54: 464 | QY54: 465 | QZ54: 466 | RA54: 467 | RB54: 468 | RC54: 469 | RD54: 470 | RE54: 471 | RF54: 472 | RG54: 473 | RH54: 474 | RI54: 475 | RJ54: 476 | RK54: 477 | RL54: 478 | RM54: 479 | RN54: 480 | RO54: 481 | RP54: 482 | RQ54: 483 | RR54: 484 | RS54: 485 | RT54: 486 | RU54: 487 | RV54: 488 | RW54: 489 | RX54: 490 | RY54: 491 | RZ54: 492 | SA54: 493 | SB54: 494 | SC54: 495 | SD54: 496 | SE54: 497 | SF54: 498 | SG54: 499 | SH54: 500 | SI54: 501 | SJ54: 502 | SK54: 503 | SL54: 504 | SM54: 505 | SN54: 506 | SO54: 507 | SP54: 508 | SQ54: 509 | SR54: 510 | SS54: 511 | ST54: 512 | SU54: 513 | SV54: 514 | SW54: 515 | SX54: 516 | SY54: 517 | SZ54: 518 | TA54: 519 | TB54: 520 | TC54: 521 | TD54: 522 | TE54: 523 | TF54: 524 | TG54: 525 | TH54: 526 | TI54: 527 | TJ54: 528 | TK54: 529 | TL54: 530 | TM54: 531 | TN54: 532 | TO54: 533 | TP54: 534 | TQ54: 535 | TR54: 536 | TS54: 537 | TT54: 538 | TU54: 539 | TV54: 540 | TW54: 541 | TX54: 542 | TY54: 543 | TZ54: 544 | UA54: 545 | UB54: 546 | UC54: 547 | UD54: 548 | UE54: 549 | UF54: 550 | UG54: 551 | UH54: 552 | UI54: 553 | UJ54: 554 | UK54: 555 | UL54: 556 | UM54: 557 | UN54: 558 | UO54: 559 | UP54: 560 | UQ54: 561 | UR54: 562 | US54: 563 | UT54: 564 | UU54: 565 | UV54: 566 | UW54: 567 | UX54: 568 | UY54: 569 | UZ54: 570 | VA54: 571 | VB54: 572 | VC54: 573 | VD54: 574 | VE54: 575 | VF54: 576 | VG54: 577 | VH54: 578 | VI54: 579 | VJ54: 580 | VK54: 581 | VL54: 582 | VM54: 583 | VN54: 584 | VO54: 585 | VP54: 586 | VQ54: 587 | VR54: 588 | VS54: 589 | VT54: 590 | VU54: 591 | VV54: 592 | VW54: 593 | VX54: 594 | VY54: 595 | VZ54: 596 | WA54: 597 | WB54: 598 | WC54: 599 | WD54: 600 | WE54: 601 | WF54: 602 | WG54: 603 | WH54: 604 | WI54: 605 | WJ54: 606 | WK54: 607 | WL54: 608 | WM54: 609 | WN54: 610 | WO54: 611 | WP54: 612 | WQ54: 613 | WR54: 614 | WS54: 615 | WT54: 616 | WU54: 617 | WV54: 618 | WW54: 619 | WX54: 620 | WY54: 621 | WZ54: 622 | XA54: 623 | XB54: 624 | XC54: 625 | XD54: 626 | XE54: 627 | XF54: 628 | XG54: 629 | XH54: 630 | XI54: 631 | XJ54: 632 | XK54: 633 | XL54: 634 | XM54: 635 | XN54: 636 | XO54: 637 | XP54: 638 | XQ54: 639 | XR54: 640 | XS54: 641 | XT54: 642 | XU54: 643 | XV54: 644 | XW54: 645 | XX54: 646 | XY54: 647 | XZ54: 648 | YA54: 649 | YB54: 650 | YC54: 651 | YD54: 652 | YE54: 653 | YF54: 654 | YG54: 655 | YH54: 656 | YI54: 657 | YJ54: 658 | YK54: 659 | YL54: 660 | YM54: 661 | YN54: 662 | YO54: 663 | YP54: 664 | YQ54: 665 | YR54: 666 | YS54: 667 | YT54: 668 | YU54: 669 | YV54: 670 | YW54: 671 | YX54: 672 | YY54: 673 | YZ54: 674 | ZA54: 675 | ZB54: 676 | ZC54: 677 | ZD54: 678 | ZE54: 679 | ZF54: 680 | ZG54: 681 | ZH54: 682 | ZI54: 683 | ZJ54: 684 | ZK54: 685 | ZL54: 686 | ZM54: 687 | ZN54: 688 | ZO54: 689 | ZP54: 690 | ZQ54: 691 | ZR54: 692 | ZS54: 693 | ZT54: 694 | ZU54: 695 | ZV54: 696 | ZW54: 697 | ZX54: 698 | ZY54: 699 | ZZ54: 700 | AAA54: 701 | AAB54: 702 | AAC54: 703 | AAD54: 704 | AAE54: 705 | AAF54: 706 | AAG54: 707 | AAH54: 708 | AAI54: 709 | AAJ54: 710 | AAK54: 711 | AAL54: 712 | AAM54: 713 | AAN54: 714 | AAO54: 715 | AAP54: 716 | AAQ54: 717 | AAR54: 718 | AAS54: 719 | AAT54: 720 | AAU54: 721 | AAV54: 722 | AAW54: 723 | AAX54: 724 | AAY54: 725 | AAZ54: 726 | ABA54: 727 | ABB54: 728 | ABC54: 729 | ABD54: 730 | ABE54: 731 | ABF54: 732 | ABG54: 733 | ABH54: 734 | ABI54: 735 | ABJ54: 736 | ABK54: 737 | ABL54: 738 | ABM54: 739 | ABN54: 740 | ABO54: 741 | ABP54: 742 | ABQ54: 743 | ABR54: 744 | ABS54: 745 | ABT54: 746 | ABU54: 747 | ABV54: 748 | ABW54: 749 | ABX54: 750 | ABY54: 751 | ABZ54: 752 | ACA54: 753 | ACB54: 754 | ACC54: 755 | ACD54: 756 | ACE54: 757 | ACF54: 758 | ACG54: 759 | ACH54: 760 | ACI54: 761 | ACJ54: 762 | ACK54: 763 | ACL54: 764 | ACM54: 765 | ACN54: 766 | ACO54: 767 | ACP54: 768 | ACQ54: 769 | ACR54: 770 | ACS54: 771 | ACT54: 772 | ACU54: 773 | ACV54: 774 | ACW54: 775 | ACX54: 776 | ACY54: 777 | ACZ54: 778 | ADA54: 779 | ADB54: 780 | ADC54: 781 | ADD54: 782 | ADE54: 783 | ADF54: 784 | ADG54: 785 | ADH54: 786 | ADI54: 787 | ADJ54: 788 | ADK54: 789 | ADL54: 790 | ADM54: 791 | ADN54: 792 | ADO54: 793 | ADP54: 794 | ADQ54: 795 | ADR54: 796 | ADS54: 797 | ADT54: 798 | ADU54: 799 | ADV54: 800 | ADW54: 801 | ADX54: 802 | ADY54: 803 | ADZ54: 804 | AEA54: 805 | AEB54: 806 | AEC54: 807 | AED54: 808 | AEE54: 809 | AEF54: 810 | AEG54: 811 | AEH54: 812 | AEI54: 813 | AEJ54: 814 | AEK54: 815 | AEL54: 816 | AEM54: 817 | AEN54: 818 | AEO54: 819 | AEP54: 820 | AEQ54: 821 | AER54: 822 | AES54: 823 | AET54: 824 | AEU54: 825 | AEV54: 826 | AEW54: 827 | AEX54: 828 | AEY54: 829 | AEZ54: 830 | AFA54: 831 | AFB54: 832 | AFC54: 833 | AFD54: 834 | AFE54: 835 | AFF54: 836 | AFG54: 837 | AFH54: 838 | AFI54: 839 | AFJ54: 840 | AFK54: 841 | AFL54: 842 | AFM54: 843 | AFN54: 844 | AFO54: 845 | AFP54: 846 | AFQ54: 847 | AFR54: 848 | AFS54: 849 | AFT54: 850 | AFU54: 851 | AFV54: 852 | AFW54: 853 | AFX54: 854 | AFY54: 855 | AFZ54: 856 | AGA54: 857 | AGB54: 858 | AGC54: 859 | AGD54: 860 | AGE54: 861 | AGF54: 862 | AGG54: 863 | AGH54: 864 | AGI54: 865 | AGJ54: 866 | AGK54: 867 | AGL54: 868 | AGM54: 869 | AGN54: 870 | AGO54: 871 | AGP54: 872 | AGQ54: 873 | AGR54: 874 | AGS54: 875 | AGT54: 876 | AGU54: 877 | AGV54: 878 | AGW54: 879 | AGX54: 880 | AGY54: 881 | AGZ54: 882 | AHA54: 883 | AHB54: 884 | AHC54: 885 | AHD54: 886 | AHE54: 887 | AHF54: 888 | AHG54: 889 | AHH54: 890 | AHI54: 891 | AHJ54: 892 | AHK54: 893 | AHL54: 894 | AHM54: 895 | AHN54: 896 | AHO54: 897 | AHP54: 898 | AHQ54: 899 | AHR54: 900 | AHS54: 901 | AHT54: 902 | AHU54: 903 | AHV54: 904 | AHW54: 905 | AHX54: 906 | AHY54: 907 | AHZ54: 908 | AIA54: 909 | AIB54: 910 | AIC54: 911 | AID54: 912 | AIE54: 913 | AIF54: 914 | AIG54: 915 | AIH54: 916 | AII54: 917 | AIJ54: 918 | AIK54: 919 | AIL54: 920 | AIM54: 921 | AIN54: 922 | AIO54: 923 | AIP54: 924 | AIQ54: 925 | AIR54: 926 | AIS54: 927 | AIT54: 928 | AIU54: 929 | AIV54: 930 | AIW54: 931 | AIX54: 932 | AIY54: 933 | AIZ54: 934 | AJA54: 935 | AJB54: 936 | AJC54: 937 | AJD54: 938 | AJE54: 939 | AJF54: 940 | AJG54: 941 | AJH54: 942 | AJI54: 943 | AJJ54: 944 | AJK54: 945 | AJL54: 946 | AJM54: 947 | AJN54: 948 | AJO54: 949 | AJP54: 950 | AJQ54: 951 | AJR54: 952 | AJS54: 953 | AJT54: 954 | AJU54: 955 | AJV54: 956 | AJW54: 957 | AJX54: 958 | AJY54: 959 | AJZ54: 960 | AKA54: 961 | AKB54: 962 | AKC54: 963 | AKD54: 964 | AKE54: 965 | AKF54: 966 | AKG54: 967 | AKH54: 968 | AKI54: 969 | AKJ54: 970 | AKK54: 971 | AKL54: 972 | AKM54: 973 | AKN54: 974 | AKO54: 975 | AKP54: 976 | AKQ54: 977 | AKR54: 978 | AKS54: 979 | AKT54: 980 | AKU54: 981 | AKV54: 982 | AKW54: 983 | AKX54: 984 | AKY54: 985 | AKZ54: 986 | ALA54: 987 | ALB54: 988 | ALC54: 989 | ALD54: 990 | ALE54: 991 | ALF54: 992 | ALG54: 993 | ALH54: 994 | ALI54: 995 | ALJ54: 996 | ALK54: 997 | ALL54: 998 | ALM54: 999 | ALN54: 1000
A55: NPV
A56: Percent reduction in labor cost
A57: Current total labor cost
A58: Change in labor cost
A59: Initial development costs (2020)
A60: Cost of money
A61: Project cancellation
A63: Computing information value for your decision
A64: Average NPV | B64: =IFERROR(AVERAGE(C55:ALN55), "") ->  | C64: Cost of being wrong | D64: =IFERROR(IF(B65="Approve", AVERAGEIF(C55:ALN55, "<0"), AVERAGEIF(C55:ALN55, ">0")), "") -> 
A65: Default Decision | B65: =IF(B64="", "", IF(B64>0, "Approve", "Deny")) ->  | C65: Chance of being wrong | D65: =IF(B65="", "", IF(B65="Approve", COUNTIF(C55:ALN55, "<0"), COUNTIF(C55:ALN55, ">0"))/1000) -> 
A66: Expected Opportunity Loss | B66: =IFERROR(ABS(D64*D65), "") -> 
B68: Avg NPV, given X in bottom 10% | C68: Avg NPV, given X in top 10%
A69: Percent reduction in labor cost | B69: =IFERROR(AVERAGEIFS($C$55:$ALN$55, $C56:$ALN56, "<"&PERCENTILE($C56:$ALN56, 0.1)), "") ->  | C69: =IFERROR(AVERAGEIFS($C$55:$ALN$55, $C56:$ALN56, ">"&PERCENTILE($C56:$ALN56, 0.9)), "") -> 
A70: Current total labor cost | B70: =IFERROR(AVERAGEIFS($C$55:$ALN$55, $C57:$ALN57, "<"&PERCENTILE($C57:$ALN57, 0.1)), "") ->  | C70: =IFERROR(AVERAGEIFS($C$55:$ALN$55, $C57:$ALN57, ">"&PERCENTILE($C57:$ALN57, 0.9)), "") -> 
A71: Change in labor cost | B71: =IFERROR(AVERAGEIFS($C$55:$ALN$55, $C58:$ALN58, "<"&PERCENTILE($C58:$ALN58, 0.1)), "") ->  | C71: =IFERROR(AVERAGEIFS($C$55:$ALN$55, $C58:$ALN58, ">"&PERCENTILE($C58:$ALN58, 0.9)), "") -> 
A72: Initial development costs (2020) | B72: =IFERROR(AVERAGEIFS($C$55:$ALN$55, $C59:$ALN59, "<"&PERCENTILE($C59:$ALN59, 0.1)), "") ->  | C72: =IFERROR(AVERAGEIFS($C$55:$ALN$55, $C59:$ALN59, ">"&PERCENTILE($C59:$ALN59, 0.9)), "") -> 
A73: Cost of money | B73: =IFERROR(AVERAGEIFS($C$55:$ALN$55, $C60:$ALN60, "<"&PERCENTILE($C60:$ALN60, 0.1)), "") ->  | C73: =IFERROR(AVERAGEIFS($C$55:$ALN$55, $C60:$ALN60, ">"&PERCENTILE($C60:$ALN60, 0.9)), "") -> 
A74: Project cancellation | B74: =IFERROR(AVERAGEIFS($C$55:$ALN$55, $C61:$ALN61, "=0"), "") ->  | C74: =IFERROR(AVERAGEIFS($C$55:$ALN$55, $C61:$ALN61, "=1"), "") -> 

Sheet Distributions
A1: Selected Distributions
A2: Trial ID | B2: 1
A4: Uniform
A5: One of the simplest distributions you can use is the uniform distribution. There is no chance of a value being above the maximum or below the minimum, and every value between the min and max are equally likely. ■ When to use: When you know the minimum and maximum values, but any value in between is equally likely. ■ Examples: The proportion of people that would buy a product, number of employees that do some activity. ■ Mean = (min + max)/2 ■ Simulated value = rand * (max - min) + min
A6: Simulated Value | B6: Minimum | D6: Maximum | E6: Variable ID | F6: HDR PRNG
A7: =F7*(D7-B7)+B7 -> 0.1965513584 | B7: 0 | D7: 1 | E7: 1 | F7: =((MOD((MOD(MOD(999999999999989,MOD($B$2*2499997+E7*1800451,7450589)*4658+7450581)*383,99991)*7440893+MOD(MOD(999999999999989,MOD($B$2*2246527+E7*2399993,7450987)*7580+7560584)*17669,7440893))*1343,4294967296))+0.5)/2^32 -> 0.1965513584
A9: Triangular
A10: For a triangular distribution, the UB and LB represent absolute limits. There is no chance that a value could be generated outside of these bounds. In addition to the UB and LB, this distribution also has a mode that can vary to any value between the UB and LB. This is sometimes useful as a substitute for a lognormal, when you want to set absolute limits on what the values can be but you want to skew the output in a way similar to the lognormal. It is useful in any situation where you know of absolute limits but the most likely value might not be in the middle, like the normal distribution. ■When to Use: When you want control over where the most likely value is compared to the range, and when the range has absolute limits. ■ Examples: Number of records lost if you think the most likely number is near the top of the range and yet you have a finite number of records you know cannot be exceeded. ■ Mean: =(min+mode+max)/3 ■ Simulated value = IF(rand<(mode-min)/(max-min), 1, 0) * (min + SQRT(rand*(max-min)*(mode-min))) + IF(rand>= (mode-min)/(max-min), 1, 0) * (max - SQRT((1-rand) * (max - min) * (max - mode)))
A11: Simulated Value | B11: Minimum | C11: Mode | D11: Maximum | E11: Variable ID | F11: HDR PRNG | K11: Introduced in Basic Simulations Course
A12: =IF(F12<(C12-B12)/(D12-B12), 1, 0) * (B12 + SQRT(F12*(D12-B12)*(C12-B12))) + IF(F12>= (C12-B12)/(D12-B12), 1, 0) * (D12 - SQRT((1-F12) * (D12 - B12) * (D12 - C12))) -> 1.080919183 | B12: 1 | C12: 1 | D12: 4 | E12: 2 | F12: =((MOD((MOD(MOD(999999999999989,MOD($B$2*2499997+E12*1800451,7450589)*4658+7450581)*383,99991)*7440893+MOD(MOD(999999999999989,MOD($B$2*2246527+E12*2399993,7450987)*7580+7560584)*17669,7440893))*1343,4294967296))+0.5)/2^32 -> 0.05321857578
A14: Binary
A15: Unlike the other distributions mentioned here, a discrete binary distribution (also known as a Bernoulli distribution) generates just two possible outcomes: success or failure. The probability of success is p and the probability of failure is q = (1 – p). For example, if success means to flip a fair coin heads‐up, the probability of success is p = .5, and the probability of failure is q = (1 – .5) = .5. ■ When to use: This is used in either/or situations—something either happens or it doesn’t. ■ Example: The occurrence of a data breach in a given period of time. ■ Mean: =P ■ Simulated value = if(rand<probability, 1, 0)
A16: Simulated Value | C16: Probability | E16: Variable ID | F16: HDR PRNG
A17: =IF(F17<C17,1,0) -> 1 | C17: 0.3 | E17: 3 | F17: =((MOD((MOD(MOD(999999999999989,MOD($B$2*2499997+E17*1800451,7450589)*4658+7450581)*383,99991)*7440893+MOD(MOD(999999999999989,MOD($B$2*2246527+E17*2399993,7450987)*7580+7560584)*17669,7440893))*1343,4294967296))+0.5)/2^32 -> 0.2250414131
A19: Normal
A20: A normal (or Gaussian) distribution is a bell‐shaped curve that is symmetrically distributed about the mean. Many natural phenomenon follow this distribution but in some applications it will underestimate the probability of extreme events. ■ When to Use: When there is equal probability of observing a result above or below the mean. ■ Examples: Test scores, travel time. ■ Mean: =(UB + LB)/2
A21: Simulated Value | B21: Lower Bound | D21: Upper Bound | E21: Variable ID | F21: HDR PRNG
A22: =_xlfn.NORM.INV(F22, (D22+B22)/2, (D22-B22)/3.29) -> 1871.882908 | B22: 1000 | D22: 2000 | E22: 4 | F22: =((MOD((MOD(MOD(999999999999989,MOD($B$2*2499997+E22*1800451,7450589)*4658+7450581)*383,99991)*7440893+MOD(MOD(999999999999989,MOD($B$2*2246527+E22*2399993,7450987)*7580+7560584)*17669,7440893))*1343,4294967296))+0.5)/2^32 -> 0.8894285603
A24: Lognormal
A25: The lognormal distribution is an often preferred alternative to the normal distribution when a sample can only take positive values. It also allows for the possibility of extreme values on the upper end and, therefore, may fit some phenomena better than a normal. ■ When to Use: To model positive values that are primarily moderate in scope but have potential for rare extreme events. ■ Examples: Losses incurred by a cyberattack, the cost of a project. ■ Excel Formula: =lognorm.inv(rand(),(ln(UB) + ln(LB))/2, (ln(UB)‐ln(LB))/3.29) ■ Mean: = ((ln(UB)+ln(LB))/2)
A26: Simulated Value | B26: Lower Bound | D26: Upper Bound | E26: Variable ID | F26: HDR PRNG
A27: =_xlfn.LOGNORM.INV(F27, (LN(D27)+LN(B27))/2, (LN(D27)-LN(B27))/3.29) -> 1715.448598 | B27: 1000 | D27: 2000 | E27: 5 | F27: =((MOD((MOD(MOD(999999999999989,MOD($B$2*2499997+E27*1800451,7450589)*4658+7450581)*383,99991)*7440893+MOD(MOD(999999999999989,MOD($B$2*2246527+E27*2399993,7450987)*7580+7560584)*17669,7440893))*1343,4294967296))+0.5)/2^32 -> 0.8203101241
A29: Poisson/Binomial
A30: The poisson distribution is a discrete probability distribution that expresses the probability of a given number of events occurring in some period of time if these events occur with a constant mean rate and independently of the time since the last event. For example, if the likelihood of some event ocurring at least once in a year is 40%, then the poisson distribution tells us the probability of that event occuring two, three, four, etc., times. Note that the events must be independent, meaning that the probability of the second event in a year is not affected by when the first event occurs. Excel does not have a "POISSON.INV()", so we approximate it using an inverse binomial distribution with a large number of trials. ■ When to Use: To model the number of times an event occurs in a given time period when the mean frequency is known or estimated. ■ Examples: Number of cybersecurity events in a year, number of project cancellations over 10 years. ■ Excel Formula: =binom.inv(1000000, -ln(1-P)/1000000, rand()) ■ Mean: = -ln(1-P)
A31: Simulated Value | C31: Probability | E31: Variable ID | F31: HDR PRNG
A32: =_xlfn.BINOM.INV(1000000, -LN(1-C32)/1000000, F32) -> 1 | C32: 0.4 | E32: 5 | F32: =((MOD((MOD(MOD(999999999999989,MOD($B$2*2499997+E32*1800451,7450589)*4658+7450581)*383,99991)*7440893+MOD(MOD(999999999999989,MOD($B$2*2246527+E32*2399993,7450987)*7580+7560584)*17669,7440893))*1343,4294967296))+0.5)/2^32 -> 0.8203101241
A34: Beta
A35: Beta distributions are extremely versatile. They can be used to generate values between 0 and 1 but where some values are more likely than others. This result can also be used in other formulas to generate any range of values you like. They are particularly useful when modeling the frequency of an event, especially when the frequency is estimated based on random samples of a population or historical observations. In this distribution it is not quite as easy as in other distributions to determine the parameters based only on upper and lower bounds. The only solution is iteratively trying different “alpha” and “beta” values until you get the 90% CI you want. If alpha and beta are each greater than 1 and equal to each other, then it will be symmetrical, where values near .5 are the most likely and less likely further away from .5. The larger you make both alpha and beta, the narrower the distribution. If you make alpha larger than beta, the distribution will skew to the left, and if you make beta larger, it skews to the right. ■ When to Use: Any situation that can be characterized as a set of “hits” and “misses.” For each hit, increase alpha by 1. For each miss, increase beta by 1. ■ Examples: Frequency of an event (such as a data breach) when the frequency is less than 1 per time unit (e.g., year), the proportion of employees following a security procedure correctly.
A36: Simulated Value | B36: Alpha | C36: Beta | D36: Computed 5th Percentile | E36: Computed 95th Percentile | F36: Variable ID | G36: HDR PRNG
A37: =_xlfn.BETA.INV(G37, B37, C37) -> 0.4351250785 | B37: 4 | C37: 3 | D37: =_xlfn.BETA.INV(0.05, B37, C37) -> 0.2713383725 | E37: =_xlfn.BETA.INV(0.95, B37, C37) -> 0.846838882 | F37: 6 | G37: =((MOD((MOD(MOD(999999999999989,MOD($B$2*2499997+F37*1800451,7450589)*4658+7450581)*383,99991)*7440893+MOD(MOD(999999999999989,MOD($B$2*2246527+F37*2399993,7450987)*7580+7560584)*17669,7440893))*1343,4294967296))+0.5)/2^32 -> 0.2312271503
A39: Power Law
A40: The power law is a useful distribution for describing phenomena with extreme, catastrophic possibilities - even more than lognormal. The “fat tail” of the power law distribution allows us to acknowledge the common small event, while still accounting for more extreme possibilities. In fact, sometimes this type of distribution may not always have a defined-mean because the tails goes out so far. Be careful of producing unintended extreme results. To keep this from producing unrealistic results, you might prefer to use the Truncated Power Law Below. We show this distribution in a simple form which requires that you enter "alpha" and "theta" iteratively until you get the 90% Confidence Interval you want. ■ When to Use: When you want to make sure that catastrophic events, while rare, will be given nontrivial probabilities. ■ Examples: Phenomena like earthquakes, power outages, epidemics, and other types of “cascade failures” have this property.
A41: Simulated Value | B41: Alpha | C41: Theta (scale) | D41: Computed 5th Percentile | E41: Computed 95th Percentile | F41: Computed 99.99th Percentile | G41: Variable ID | H41: HDR PRNG
A42: =(C42/H42)^B42 -> 1.69764567 | B42: 0.5 | C42: 0.5 | D42: =(C42/(1-0.05))^B42 -> 0.7254762501 | E42: =(C42/(1-0.95))^B42 -> 3.16227766 | F42: =(C42/(1-0.9999))^B42 -> 70.71067812 | G42: 7 | H42: =((MOD((MOD(MOD(999999999999989,MOD($B$2*2499997+G42*1800451,7450589)*4658+7450581)*383,99991)*7440893+MOD(MOD(999999999999989,MOD($B$2*2246527+G42*2399993,7450987)*7580+7560584)*17669,7440893))*1343,4294967296))+0.5)/2^32 -> 0.1734905822 | N42: Aspirational
A44: Truncated Power Law
A45: The truncated power law distribution is simply the power law distribution, but with an upper limit that is imposed by the user. While the heavy tail of the power law distribution allows us to account for the rare catastrophic event, there may be a theoretical bound to the size of such an event. If this upper limit is not factored into the model, we may produce a misleading and unnecessarily grim forecast. As above, you need to enter values for alpha, theta and truncated percentile until you see 5 percentile, 95 percentile, and truncated value (the upper limit) that agrees with how you want to model this quantity. ■ When to Use: The power law distribution should be truncated if an upper bound on the severity of an event is known. ■ Example: Losses of records may follow a power law but you know you only have a finite number of records to lose.
A46: Simulated Value | B46: Alpha | C46: Theta (scale) | D46: Truncated Percentile | E46: Computed 5th Percentile | F46: Computed 95th Percentile | G46: Truncated Value | H46: Variable ID | I46: HDR PRNG
A47: =(C47/(I47*D47+1-D47))^B47 -> 2.023054796 | B47: 0.5 | C47: 4 | D47: 0.95 | E47: =(C47/((1-0.05)*D47+1-D47))^B47 -> 2.049262078 | F47: =(C47/((1-0.95)*D47+1-D47))^B47 -> 6.405126152 | G47: =(C47/(1-D47))^B47 -> 8.94427191 | H47: 8 | I47: =((MOD((MOD(MOD(999999999999989,MOD($B$2*2499997+H47*1800451,7450589)*4658+7450581)*383,99991)*7440893+MOD(MOD(999999999999989,MOD($B$2*2246527+H47*2399993,7450987)*7580+7560584)*17669,7440893))*1343,4294967296))+0.5)/2^32 -> 0.9761450595

Sheet HDR PRNG
A1: Hubbard Decision Research PRNG
A2: Trial ID | B2: 724 | H2: Formula Text | I2: rand = ((mod((mod(mod(999999999999989,mod(trialID*2499997+varID*1800451+ID3*2000371+ID4*1796777+ID5*2299603,7450589)*4658+7450581)*383,99991)*7440893+mod(mod(999999999999989,mod(trialID*2246527+varID*2399993+ID3*2100869+ID4*1918303+ID5*1624729,7450987)*7580+7560584)*17669,7440893))*1343,4294967296))+0.5)/2^32
B4: ID5 | C4: ID4 | D4: ID3 | E4: Variable ID | F4: HDR PRNG
B5: 1000 | C5: 2100869 | D5: 1918303 | E5: 212 | F5: =((MOD((MOD(MOD(999999999999989,MOD($B$2*2499997+E5*1800451+D5*2000371+C5*1796777+B5*2299603,7450589)*4658+7450581)*383,99991)*7440893+MOD(MOD(999999999999989,MOD($B$2*2246527+E5*2399993+D5*2100869+C5*1918303+B5*1624729,7450987)*7580+7560584)*17669,7440893))*1343,4294967296))+0.5)/2^32 -> 0.09627498977
C6: 2100869 | D6: 1918303 | E6: 212 | F6: =((MOD((MOD(MOD(999999999999989,MOD($B$2*2499997+E6*1800451+D6*2000371+C6*1796777,7450589)*4658+7450581)*383,99991)*7440893+MOD(MOD(999999999999989,MOD($B$2*2246527+E6*2399993+D6*2100869+C6*1918303,7450987)*7580+7560584)*17669,7440893))*1343,4294967296))+0.5)/2^32 -> 0.6177572036
D7: 1918303 | E7: 212 | F7: =((MOD((MOD(MOD(999999999999989,MOD($B$2*2499997+E7*1800451+D7*2000371,7450589)*4658+7450581)*383,99991)*7440893+MOD(MOD(999999999999989,MOD($B$2*2246527+E7*2399993+D7*2100869,7450987)*7580+7560584)*17669,7440893))*1343,4294967296))+0.5)/2^32 -> 0.8415604451
E8: 212 | F8: =((MOD((MOD(MOD(999999999999989,MOD($B$2*2499997+E8*1800451,7450589)*4658+7450581)*383,99991)*7440893+MOD(MOD(999999999999989,MOD($B$2*2246527+E8*2399993,7450987)*7580+7560584)*17669,7440893))*1343,4294967296))+0.5)/2^32 -> 0.2920767096
B10: Dimension | C10: 1st Term | D10: 2nd Term | E10: Description
B11: Trial | C11: 2499997 | D11: 2246527 | E11: This represents a unique identifier for a given scenario in a simulation. This 8 decimal digit identifier allows for up to 100 million unique trials for each variable in a model.
B12: Variable | C12: 1800451 | D12: 2399993 | E12: This is a unique identifier for a variable. It would be an 8-digit variable ID allowing for up to 100 million unique variables. For example, if “Monthly Demand for Product X” and “average time spent in activity Y” were variables in a model, they would each be given unique variable IDs. Organizations may structure their Variables IDs so that related variables are in groups. For example, perhaps all marketing and sales related variables have “11” for the first two digits and all cybersecurity related variables have “73” for the first two digits, and so on. Variable IDs could be assigned on an ad hoc basis but a large organization making many models with a lot of shared variables would want to develop an internal library of assigned variable IDs similar to an accountant’s “chart of accounts.”
B13: Entity | C13: 2000371 | D13: 2100869 | E13: This identifies an organization or some other category of users. A corporation or government agency may be assigned a unique 8 decimal digit Entity ID. Since this provides for 100 million potential entities, that should be enough for every business, not for profit and government agency that wants one on the planet. This is useful if there are models using random variables from many organizations do not have variables that produce the same random sequences. For example, many banks may use variables defined by the FDIC for “stress testing” to ensure banks are financially stable even during times of economic stress. The bank would want to ensure that internally defined variables with the same Variable ID are not correlated to the shared variables. The FDIC would supply the variable ID along with the Entity ID of the FDIC so that every bank using those variables produces the same sequence while avoiding duplicating the sequence of internally defined variables. A default Entity ID of 0 can be used by anyone as long as sharing variables would not be an issue.
B14: Time | C14: 1796777 | D14: 1918303 | E14: This identifies a particular time unit for a given variable/trial/entity combination. This allows one scenario for a given variable to contain an entire unique time series. A 7digit time series ID would allow for time series containing 115 days of seconds, 19 years of minutes, or 27,397 years of days. This is an optional dimension. Variables that do not represent a time series use the default Time ID of 0.
B15: Agent | C15: 2299603 | D15: 1624729 | E15: This provides a fifth optional dimension for the counter-based PRNG. One possible use is as an identify for agents in agent-based modeling. If this ID is not used, the default value is 0.
B18: Sampling Error Around Dieharder Tests Results
H19: Figure 1: Sampling error around Dieharder tests results. This uses a Beta Distribution to with a prior of alpha=1 and beta=1 to compute a 90% confidence interval for estimate of mean weak/fails out Dieharder test suite. The top row of brackets are estimates of WEAK result rates and the bottom row are estimates of FAIL rates.
B21: • | C21: This uses a Beta Distribution with a prior of alpha=1 and beta=1 to compute a 90% confidence interval for the estimate of mean weak/fail rates in the Dieharder test suite.
H24: The top row of brackets are estimates of WEAK result rates and the bottom row are estimates of FAIL rates.
G25: •

Sheet Risk Tolerance
A1: Quantifying Risk Tolerance
A3: Loss Exceedance Tolerance | L3: Constant Absolute Risk Aversion
B4: Loss Threshold | C4: Acceptable Probability for Loss Exceeded | M4: X | O4: Award | P4: Probability | Q4: Utility | R4: Certain Monetary Equivalent
B5: 100000 | C5: 0.8 | M5: 850000 | O5: 1500000 | P5: 0.25 | Q5: =1-EXP(-O5/M5) -> 0.8287628571 | R5: =-M5*LN(1-Q5*P5) -> 197346.6959
B6: 1000000 | C6: 0.2
B7: 5000000 | C7: 0.05 | N7: Flip a coin…
B8: 10000000 | C8: 0.01
B10: Example Histogram for Loss Exceedance Curve
B11: Loss | C11: Prob. of Inherent Loss or Greater
B12: 0.0001 | C12: 0.758
B13: 500000.0001 | C13: 0.573
B14: 1000000 | C14: 0.513 | N14: Win $X | P14: Lose $X/2
B15: 1070000 | C15: 0.502
B16: 1144900 | C16: 0.489
B17: 1225043 | C17: 0.476
B18: 1310796.01 | C18: 0.47
B19: 1402551.731 | C19: 0.463
B20: 1500730.352 | C20: 0.451
B21: 1605781.477 | C21: 0.441
B22: 1718186.18 | C22: 0.43
B23: 1838459.213 | C23: 0.423
B24: 1967151.357 | C24: 0.409
B25: 2104851.953 | C25: 0.4
B26: 2252191.589 | C26: 0.385
B27: 2409845 | C27: 0.374
B28: 2578534.15 | C28: 0.351
B29: 2759031.541 | C29: 0.331
B30: 2952163.749 | C30: 0.307
B31: 3158815.211 | C31: 0.288
B32: 3379932.276 | C32: 0.268
B33: 3616527.535 | C33: 0.246
B34: 3869684.463 | C34: 0.218
B35: 4140562.375 | C35: 0.207
B36: 4430401.742 | C36: 0.193
B37: 4740529.863 | C37: 0.178
B38: 5072366.954 | C38: 0.167
B39: 5427432.641 | C39: 0.152
B40: 5807352.926 | C40: 0.134
B41: 6213867.63 | C41: 0.11
B42: 6648838.364 | C42: 0.103
B43: 7114257.05 | C43: 0.084
B44: 7612255.043 | C44: 0.071
B45: 8145112.896 | C45: 0.061
B46: 8715270.799 | C46: 0.052
B47: 9325339.755 | C47: 0.045
B48: 9978113.538 | C48: 0.041
B49: 10676581.49 | C49: 0.036
B50: 11423942.19 | C50: 0.026
B51: 12223618.14 | C51: 0.021
B52: 13079271.41 | C52: 0.02
B53: 13994820.41 | C53: 0.019
B54: 14974457.84 | C54: 0.014
B55: 16022669.89 | C55: 0.01
B56: 17144256.78 | C56: 0.01
B57: 18344354.76 | C57: 0.008
B58: 19628459.59 | C58: 0.008
B59: 21002451.76 | C59: 0.007
B60: 22472623.38 | C60: 0.006
B61: 24045707.02 | C61: 0.006
B62: 25728906.51 | C62: 0.006
B63: 27529929.97 | C63: 0.006
B64: 29457025.07 | C64: 0.004
B65: 31519016.82 | C65: 0.003
B66: 33725348 | C66: 0.002

Sheet 2D Data Table
A1: Detailed Probabalistic Cash Flow Example from Workspace | L1: Data Table | R1: Histogram
A2: Trial ID: | B2: 30 | C2: Insert scroll bar. | L2: Build a 2D data table with 2000 rows (Trial ID) and 4 columns (Percent reduction). Make the column values 10%, 12%, 14%, and 16%. Trial IDs have already been entered for you. | S2: Percent reduction = 10% | U2: Percent reduction = 12% | W2: Percent reduction = 14% | Y2: Percent reduction = 16%
B4: Variable | D4: Simulated value | E4: Lower bound | F4: Mode or P | G4: Upper bound | H4: Variable ID | I4: HDR PRNG | R4: Bin | S4: Cumulative | T4: Frequency | U4: Cumulative | V4: Frequency | W4: Cumulative | X4: Frequency | Y4: Cumulative | Z4: Frequency
B5: Percent reduction in labor cost | D5: =IF(I5<(F5-E5)/(G5-E5), 1, 0) * (E5 + SQRT(I5*(G5-E5)*(F5-E5))) + IF(I5>= (F5-E5)/(G5-E5), 1, 0) * (G5 - SQRT((1-I5) * (G5 - E5) * (G5 - F5))) -> 0.06046832814 | E5: 0.05 | F5: 0.1 | G5: 0.3 | H5: 1 | I5: =((MOD((MOD(MOD(999999999999989,MOD($B$2*2499997+H5*1800451,7450589)*4658+7450581)*383,99991)*7440893+MOD(MOD(999999999999989,MOD($B$2*2246527+H5*2399993,7450987)*7580+7560584)*17669,7440893))*1343,4294967296))+0.5)/2^32 -> 0.008766871528 | R5: -16000000 | S5: =COUNTIF($M$6:$M$2005, "<"&$R5) -> 0 | T5: =S5/2000 -> 0 | U5: =COUNTIF($N$6:$N$2005, "<"&$R5) -> 0 | V5: =U5/2000 -> 0 | W5: =COUNTIF($O$6:$O$2005, "<"&$R5) -> 0 | X5: =W5/2000 -> 0 | Y5: =COUNTIF($P$6:$P$2005, "<"&$R5) -> 0 | Z5: =Y5/2000 -> 0
B6: Current total labor cost | D6: =_xlfn.NORM.INV(I6, (G6+E6)/2, (G6-E6)/3.29) -> 17831555.39 | E6: 10000000 | G6: 20000000 | H6: 2 | I6: =((MOD((MOD(MOD(999999999999989,MOD($B$2*2499997+H6*1800451,7450589)*4658+7450581)*383,99991)*7440893+MOD(MOD(999999999999989,MOD($B$2*2246527+H6*2399993,7450987)*7580+7560584)*17669,7440893))*1343,4294967296))+0.5)/2^32 -> 0.8242236342 | L6: 1 | R6: =R5+1500000 -> -14500000 | S6: 0 | T6: =(S6-S5)/2000 -> 0 | U6: 0 | V6: =(U6-U5)/2000 -> 0 | W6: 0 | X6: =(W6-W5)/2000 -> 0 | Y6: 0 | Z6: =(Y6-Y5)/2000 -> 0
B7: Change in labor cost | D7: =_xlfn.NORM.INV(I7, (G7+E7)/2, (G7-E7)/3.29) -> 0.02710981809 | E7: -0.02 | G7: 0.05 | H7: 3 | I7: 0.7153767104 | L7: 2 | R7: =R6+1500000 -> -13000000 | S7: 0 | T7: =(S7-S6)/2000 -> 0 | U7: 0 | V7: =(U7-U6)/2000 -> 0 | W7: 0 | X7: 0 | Y7: 0 | Z7: =(Y7-Y6)/2000 -> 0 | AD7: Insert histogram here.
B8: Initial development costs (2020) | D8: =_xlfn.LOGNORM.INV(I8, (LN(G8)+LN(E8))/2, (LN(G8)-LN(E8))/3.29) -> 4682327.051 | E8: 3000000 | G8: 10000000 | H8: 4 | I8: 0.3341492879 | L8: 3 | R8: -11500000 | S8: 0 | T8: 0 | U8: 0 | V8: =(U8-U7)/2000 -> 0 | W8: 0 | X8: 0 | Y8: 0 | Z8: =(Y8-Y7)/2000 -> 0
B9: Cost of money | D9: =_xlfn.NORM.INV(I9, (G9+E9)/2, (G9-E9)/3.29) -> 0.05140442441 | E9: 0.03 | G9: 0.05 | H9: 5 | I9: =((MOD((MOD(MOD(999999999999989,MOD($B$2*2499997+H9*1800451,7450589)*4658+7450581)*383,99991)*7440893+MOD(MOD(999999999999989,MOD($B$2*2246527+H9*2399993,7450987)*7580+7560584)*17669,7440893))*1343,4294967296))+0.5)/2^32 -> 0.9696742698 | L9: 4 | R9: -10000000 | S9: 0 | T9: 0 | U9: 0 | V9: =(U9-U8)/2000 -> 0 | W9: 0 | X9: 0 | Y9: 0 | Z9: =(Y9-Y8)/2000 -> 0
B10: Project cancellation | D10: =IF(I10<F10,1,0) -> 1 | F10: 0.1 | H10: 6 | I10: 0.08813812339 | L10: 5 | R10: -8500000 | S10: 0 | T10: 0 | U10: 0 | V10: =(U10-U9)/2000 -> 0 | W10: 0 | X10: 0 | Y10: 0 | Z10: =(Y10-Y9)/2000 -> 0
L11: 6 | R11: -7000000 | S11: 0 | T11: 0 | U11: 0 | V11: =(U11-U10)/2000 -> 0 | W11: 0 | X11: 0 | Y11: 0 | Z11: =(Y11-Y10)/2000 -> 0
B12: Cash Flow | L12: 7 | R12: -5500000 | S12: 0 | T12: 0 | U12: 0 | V12: =(U12-U11)/2000 -> 0 | W12: 0 | X12: 0 | Y12: 0 | Z12: =(Y12-Y11)/2000 -> 0
D13: 2021 | E13: 2022 | F13: 2023 | G13: 2024 | H13: 2025 | L13: 8 | R13: -4000000 | S13: 0 | T13: 0 | U13: 0 | V13: =(U13-U12)/2000 -> 0 | W13: 0 | X13: 0 | Y13: 0 | Z13: =(Y13-Y12)/2000 -> 0
B14: Costs | L14: 9 | R14: -2500000 | S14: 0 | T14: 0 | U14: 0 | V14: =(U14-U13)/2000 -> 0 | W14: 0 | X14: =(W14-W13)/2000 -> 0 | Y14: 0 | Z14: =(Y14-Y13)/2000 -> 0
B15: Initial dev costs | D15: =D8 -> 4682327.051 | L15: 10 | R15: -1000000 | S15: 0 | T15: 0 | U15: 0 | V15: =(U15-U14)/2000 -> 0 | W15: 0 | X15: 0 | Y15: 0 | Z15: =(Y15-Y14)/2000 -> 0
B16: Cancelled? | D16: =D10 -> 1 | L16: 11 | R16: 500000 | S16: 0 | T16: 0 | U16: 0 | V16: =(U16-U15)/2000 -> 0 | W16: 0 | X16: 0 | Y16: 0 | Z16: =(Y16-Y15)/2000 -> 0 | AC16: Percent reduction | AD16: 0.1 | AE16: 0.12 | AF16: 0.14 | AG16: 0.16
B17: Benefits | L17: 12 | R17: 2000000 | S17: 0 | T17: 0 | U17: 0 | V17: =(U17-U16)/2000 -> 0 | W17: 0 | X17: 0 | Y17: 0 | Z17: =(Y17-Y16)/2000 -> 0 | AC17: Average NPV | AD17: =IFERROR(AVERAGE(M6:M2005), "") ->  | AE17: =IFERROR(AVERAGE(N6:N2005), "") -> 
B18: Current labor cost | D18: =D6 -> 17831555.39 | L18: 13 | R18: 3500000 | S18: 0 | T18: 0 | U18: 0 | V18: =(U18-U17)/2000 -> 0 | W18: 0 | X18: 0 | Y18: 0 | Z18: =(Y18-Y17)/2000 -> 0 | AC18: P(NPV<0) | AD18: =COUNTIF(M6:M2005, "<0")/2000 -> 0 | AE18: =COUNTIF(N6:N2005, "<0")/2000 -> 0 | AF18: 0 | AG18: =COUNTIF(P6:P2005, "<0")/2000 -> 0
B19: PRNG (for labor) | D19: =((MOD((MOD(MOD(999999999999989,MOD($B$2*2499997+$H8*1800451+D13*2000371,7450589)*4658+7450581)*383,99991)*7440893+MOD(MOD(999999999999989,MOD($B$2*2246527+$H8*2399993+D13*2100869,7450987)*7580+7560584)*17669,7440893))*1343,4294967296))+0.5)/2^32 -> 0.6851092734 | E19: =((MOD((MOD(MOD(999999999999989,MOD($B$2*2499997+$H8*1800451+E13*2000371,7450589)*4658+7450581)*383,99991)*7440893+MOD(MOD(999999999999989,MOD($B$2*2246527+$H8*2399993+E13*2100869,7450987)*7580+7560584)*17669,7440893))*1343,4294967296))+0.5)/2^32 -> 0.8408996043 | F19: 0.5523971013 | G19: =((MOD((MOD(MOD(999999999999989,MOD($B$2*2499997+$H8*1800451+G13*2000371,7450589)*4658+7450581)*383,99991)*7440893+MOD(MOD(999999999999989,MOD($B$2*2246527+$H8*2399993+G13*2100869,7450987)*7580+7560584)*17669,7440893))*1343,4294967296))+0.5)/2^32 -> 0.2227395239 | H19: 0.9687124089 | L19: 14 | R19: 5000000 | S19: 0 | T19: 0 | U19: 0 | V19: =(U19-U18)/2000 -> 0 | W19: 0 | X19: 0 | Y19: 0 | Z19: =(Y19-Y18)/2000 -> 0
B20: Change in labor cost (changes yearly) | D20: =_xlfn.NORM.INV(D19, ($G$7+$E$7)/2, ($G$7-$E$7)/3.29) -> 0.02525605275 | E20: =_xlfn.NORM.INV(E19, ($G$7+$E$7)/2, ($G$7-$E$7)/3.29) -> 0.03623749016 | F20: 0.01780255234 | G20: -0.00123348416 | H20: 0.05462123466 | L20: 15 | R20: 6500000 | S20: 0 | T20: 0 | U20: 0 | V20: =(U20-U19)/2000 -> 0 | W20: 0 | X20: 0 | Y20: 0 | Z20: =(Y20-Y19)/2000 -> 0
B21: Forecasted labor cost (2021-2025) | D21: =D18*(1+D20) -> 18281910.1 | E21: =D21*(1+E20) -> 18944400.63 | F21: =E21*(1+F20) -> 19281659.32 | G21: 19257875.7 | H21: 20309764.64 | L21: 16 | R21: 8000000 | S21: 0 | T21: 0 | U21: 0 | V21: =(U21-U20)/2000 -> 0 | W21: 0 | X21: 0 | Y21: 0 | Z21: =(Y21-Y20)/2000 -> 0
B22: Reduction in labor cost | E22: =$D5 -> 0.06046832814 | F22: =$D5 -> 0.06046832814 | G22: 0.06046832814 | H22: 0.06046832814 | L22: 17 | R22: 9500000 | S22: 0 | T22: 0 | U22: 0 | V22: =(U22-U21)/2000 -> 0 | W22: 0 | X22: 0 | Y22: 0 | Z22: =(Y22-Y21)/2000 -> 0
B23: Labor savings | E23: =E21*E22 -> 1145536.234 | F23: =F21*F22 -> 1165929.703 | G23: =G21*G22 -> 1164491.547 | H23: 1228097.513 | L23: 18 | R23: 11000000 | S23: 0 | T23: 0 | U23: 0 | V23: =(U23-U22)/2000 -> 0 | W23: 0 | X23: 0 | Y23: 0 | Z23: =(Y23-Y22)/2000 -> 0
B24: Net benefit | D24: =D23-D15 -> -4682327.051 | E24: =IF($D16, 0, E23-E15) -> 0 | F24: =IF($D16, 0, F23-F15) -> 0 | G24: 0 | H24: 0 | L24: 19 | R24: 12500000 | S24: 0 | T24: 0 | U24: 0 | V24: =(U24-U23)/2000 -> 0 | W24: 0 | X24: 0 | Y24: 0 | Z24: =(Y24-Y23)/2000 -> 0
L25: 20
B26: Results | L26: 21
B27: Net Present Value | C27: =NPV(D9, D24:H24) -> -4453402.461 | L27: 22
L28: 23
L29: 24
L30: 25
L31: 26
L32: 27
L33: 28
L34: 29
L35: 30
L36: 31
L37: 32
L38: 33
L39: 34
L40: 35
L41: 36
L42: 37
L43: 38
L44: 39
L45: 40
L46: 41
L47: 42
L48: 43
L49: 44
L50: 45
L51: 46
L52: 47
L53: 48
L54: 49
L55: 50
L56: 51
L57: 52
L58: 53
L59: 54
L60: 55
L61: 56
L62: 57
L63: 58
L64: 59
L65: 60
L66: 61
L67: 62
L68: 63
L69: 64
L70: 65
L71: 66
L72: 67
L73: 68
L74: 69
L75: 70
L76: 71
L77: 72
L78: 73
L79: 74
L80: 75
L81: 76
L82: 77
L83: 78
L84: 79
L85: 80
L86: 81
L87: 82
L88: 83
L89: 84
L90: 85
L91: 86
L92: 87
L93: 88
L94: 89
L95: 90
L96: 91
L97: 92
L98: 93
L99: 94
L100: 95
L101: 96
L102: 97
L103: 98
L104: 99
L105: 100
L106: 101
L107: 102
L108: 103
L109: 104
L110: 105
L111: 106
L112: 107
L113: 108
L114: 109
L115: 110
L116: 111
L117: 112
L118: 113
L119: 114
L120: 115
L121: 116
L122: 117
L123: 118
L124: 119
L125: 120
L126: 121
L127: 122
L128: 123
L129: 124
L130: 125
L131: 126
L132: 127
L133: 128
L134: 129
L135: 130
L136: 131
L137: 132
L138: 133
L139: 134
L140: 135
L141: 136
L142: 137
L143: 138
L144: 139
L145: 140
L146: 141
L147: 142
L148: 143
L149: 144
L150: 145
L151: 146
L152: 147
L153: 148
L154: 149
L155: 150
L156: 151
L157: 152
L158: 153
L159: 154
L160: 155
L161: 156
L162: 157
L163: 158
L164: 159
L165: 160
L166: 161
L167: 162
L168: 163
L169: 164
L170: 165
L171: 166
L172: 167
L173: 168
L174: 169
L175: 170
L176: 171
L177: 172
L178: 173
L179: 174
L180: 175
L181: 176
L182: 177
L183: 178
L184: 179
L185: 180
L186: 181
L187: 182
L188: 183
L189: 184
L190: 185
L191: 186
L192: 187
L193: 188
L194: 189
L195: 190
L196: 191
L197: 192
L198: 193
L199: 194
L200: 195
L201: 196
... 1804 more rows

Sheet MarkovSimulation
A1: HTMA 3ed Chapter 6: Air-To-Air Combat Markov Simulation Example
A2: Trial ID | B2: 5234
A3: This is an example of a Markov chain used to simulate aerial combat between two fighter planes, A and B. Combat is divided into rounds and in each round, either plane can be on the other's tail, they can be disengaged, or one of the planes can win. A given plane can shoot down another only if it is on the other plane's tail. The combat ends when one plane shoots down the other. The "State Probabilities" table shows the chance that in a given state of the "system" (i.e., in this case, the aerial combat) will occur given a previous state. When one fighter is on the other's tail, the most likely outcome in the next time increment is that the same state will persist and the same fighter will still be on the other's tail. There is also a chance that the other fighter could disengage, that the tailing fighter becomes the tailed fighter, or that the tailed fighter is shot down. Note that there is no chance of a fighter that is being tailed to shoot down the tailing fighter unless it first manages to reverse postions and tail the other fighter. In the probabilities initially set for this combat simulation, Fighter A has an advantage. Fighter A is slightly more likely to get on B's tail and stay there and when it is on B's tail, A is slightly more likely to shoot B down.
A12: State Probabilities | K12: Simulation
C13: State on Round N+1 | K13: State Code | L13: State Description | M13: Round
A14: State on Round N | B14: State Code | C14: A on tail | D14: B on tail | E14: Disengaged | F14: A victory | G14: B victory | H14: Sum Check | N14: HDR PRNG
A15: A on tail | B15: 1 | C15: 0.6 | D15: 0.1 | E15: 0.15 | F15: 0.15 | G15: 0 | H15: =SUM(C15:G15) -> 1 | J15: Initial State=> | K15: 1 | L15: =CHOOSE(K15,C$26,D$26,E$26,F$26,G$26) -> A on tail | M15: 1 | N15: =((MOD((MOD(MOD(999999999999989,MOD($B$2*2499997+M15*1800451,7450589)*4658+7450581)*383,99991)*7440893+MOD(MOD(999999999999989,MOD($B$2*2246527+M15*2399993,7450987)*7580+7560584)*17669,7440893))*1343,4294967296))+0.5)/2^32 -> 0.3269565942
A16: B on tail | B16: 2 | C16: 0.1 | D16: 0.5 | E16: 0.3 | F16: 0 | G16: 0.1 | H16: =SUM(C16:G16) -> 1 | K16: =IF(K15>3,"",HLOOKUP(N15,OFFSET($C$22,K15-1,0):$G$25,4-K15+1)) -> 1 | L16: =IF(K15>3,"",CHOOSE(K16,C$26,D$26,E$26,F$26,G$26)) -> A on tail | M16: 2 | N16: =((MOD((MOD(MOD(999999999999989,MOD($B$2*2499997+M16*1800451,7450589)*4658+7450581)*383,99991)*7440893+MOD(MOD(999999999999989,MOD($B$2*2246527+M16*2399993,7450987)*7580+7560584)*17669,7440893))*1343,4294967296))+0.5)/2^32 -> 0.0005027389852
A17: Disengaged | B17: 3 | C17: 0.55 | D17: 0.45 | E17: 0 | F17: 0 | G17: 0 | H17: 1 | K17: =IF(K16>3,"",HLOOKUP(N16,OFFSET($C$22,K16-1,0):$G$25,4-K16+1)) -> 1 | L17: =IF(K16>3,"",CHOOSE(K17,C$26,D$26,E$26,F$26,G$26)) -> A on tail | M17: 3 | N17: 0.66620063
K18: =IF(K17>3,"",HLOOKUP(N17,OFFSET($C$22,K17-1,0):$G$25,4-K17+1)) -> 2 | L18: B on tail | M18: 4 | N18: 0.5824252589
A19: Cumulative Probability-Lookup Table | K19: =IF(K18>3,"",HLOOKUP(N18,OFFSET($C$22,K18-1,0):$G$25,4-K18+1)) -> 2 | L19: B on tail | M19: 5 | N19: 0.8122989315
A20: This table uses cumulative probabilities of the states in the table above so that the states can be found with the Excel hlookup function | K20: =IF(K19>3,"",HLOOKUP(N19,OFFSET($C$22,K19-1,0):$G$25,4-K19+1)) -> 3 | L20: Disengaged | M20: 6 | N20: 0.1476116771
K21: =IF(K20>3,"",HLOOKUP(N20,OFFSET($C$22,K20-1,0):$G$25,4-K20+1)) -> 1 | L21: A on tail | M21: 7 | N21: 0.1260468805
A22: =A15 -> A on tail | C22: 0 | D22: =SUM($C15:C15) -> 0.6 | E22: =SUM($C15:D15) -> 0.7 | F22: =SUM($C15:E15) -> 0.85 | G22: =SUM($C15:F15) -> 1 | K22: =IF(K21>3,"",HLOOKUP(N21,OFFSET($C$22,K21-1,0):$G$25,4-K21+1)) -> 1 | L22: A on tail | M22: 8 | N22: 0.8019555489
A23: =A16 -> B on tail | C23: 0 | D23: =SUM($C16:C16) -> 0.1 | E23: =SUM($C16:D16) -> 0.6 | F23: =SUM($C16:E16) -> 0.9 | G23: =SUM($C16:F16) -> 0.9 | K23: =IF(K22>3,"",HLOOKUP(N22,OFFSET($C$22,K22-1,0):$G$25,4-K22+1)) -> 3 | L23: Disengaged | M23: 9 | N23: 0.9486751076
A24: =A17 -> Disengaged | C24: 0 | D24: =SUM($C17:C17) -> 0.55 | E24: =SUM($C17:D17) -> 1 | F24: =SUM($C17:E17) -> 1 | G24: =SUM($C17:F17) -> 1 | K24: =IF(K23>3,"",HLOOKUP(N23,OFFSET($C$22,K23-1,0):$G$25,4-K23+1)) -> 2 | L24: B on tail | M24: 10 | N24: 0.2858017633
A25: State Code | C25: 1 | D25: 2 | E25: 3 | F25: 4 | G25: 5 | K25: =IF(K24>3,"",HLOOKUP(N24,OFFSET($C$22,K24-1,0):$G$25,4-K24+1)) -> 2 | L25: B on tail | M25: 11 | N25: 0.886561979
A26: State Description | C26: A on tail | D26: B on tail | E26: Disengaged | F26: A victory! | G26: B victory! | K26: =IF(K25>3,"",HLOOKUP(N25,OFFSET($C$22,K25-1,0):$G$25,4-K25+1)) -> 3 | L26: Disengaged | M26: 12 | N26: 0.02898961573
K27: =IF(K26>3,"",HLOOKUP(N26,OFFSET($C$22,K26-1,0):$G$25,4-K26+1)) -> 1 | L27: A on tail | M27: 13 | N27: 0.03155318799
K28: =IF(K27>3,"",HLOOKUP(N27,OFFSET($C$22,K27-1,0):$G$25,4-K27+1)) -> 1 | L28: A on tail | M28: 14 | N28: 0.844766759
K29: =IF(K28>3,"",HLOOKUP(N28,OFFSET($C$22,K28-1,0):$G$25,4-K28+1)) -> 3 | L29: Disengaged | M29: 15 | N29: 0.883568714
K30: =IF(K29>3,"",HLOOKUP(N29,OFFSET($C$22,K29-1,0):$G$25,4-K29+1)) -> 2 | L30: B on tail | M30: 16 | N30: 0.9540103626
K31: =IF(K30>3,"",HLOOKUP(N30,OFFSET($C$22,K30-1,0):$G$25,4-K30+1)) -> 5 | L31: B victory! | M31: 17 | N31: 0.9659031123
K32: =IF(K31>3,"",HLOOKUP(N31,OFFSET($C$22,K31-1,0):$G$25,4-K31+1)) ->  | M32: 18 | N32: 0.5772144889
K33: =IF(K32>3,"",HLOOKUP(N32,OFFSET($C$22,K32-1,0):$G$25,4-K32+1)) ->  | M33: 19 | N33: 0.2704608886
K34: =IF(K33>3,"",HLOOKUP(N33,OFFSET($C$22,K33-1,0):$G$25,4-K33+1)) ->  | M34: 20 | N34: 0.3656453966
K35: =IF(K34>3,"",HLOOKUP(N34,OFFSET($C$22,K34-1,0):$G$25,4-K34+1)) ->  | M35: 21 | N35: 0.9449306411
K36: =IF(K35>3,"",HLOOKUP(N35,OFFSET($C$22,K35-1,0):$G$25,4-K35+1)) ->  | M36: 22 | N36: 0.9682705541
K37: =IF(K36>3,"",HLOOKUP(N36,OFFSET($C$22,K36-1,0):$G$25,4-K36+1)) ->  | M37: 23 | N37: 0.9888847728
K38: =IF(K37>3,"",HLOOKUP(N37,OFFSET($C$22,K37-1,0):$G$25,4-K37+1)) ->  | M38: 24 | N38: 0.08524990815
K39: =IF(K38>3,"",HLOOKUP(N38,OFFSET($C$22,K38-1,0):$G$25,4-K38+1)) ->  | M39: 25 | N39: 0.2348097562
K40: =IF(K39>3,"",HLOOKUP(N39,OFFSET($C$22,K39-1,0):$G$25,4-K39+1)) ->  | M40: 26 | N40: 0.1816033047
K41: =IF(K40>3,"",HLOOKUP(N40,OFFSET($C$22,K40-1,0):$G$25,4-K40+1)) ->  | M41: 27 | N41: 0.9293582627
K42: =IF(K41>3,"",HLOOKUP(N41,OFFSET($C$22,K41-1,0):$G$25,4-K41+1)) ->  | M42: 28 | N42: 0.02601217257
K43: =IF(K42>3,"",HLOOKUP(N42,OFFSET($C$22,K42-1,0):$G$25,4-K42+1)) ->  | M43: 29 | N43: 0.5316778583
K44: =IF(K43>3,"",HLOOKUP(N43,OFFSET($C$22,K43-1,0):$G$25,4-K43+1)) ->  | M44: 30 | N44: 0.8603540297
K45: =IF(K44>3,"",HLOOKUP(N44,OFFSET($C$22,K44-1,0):$G$25,4-K44+1)) ->  | M45: 31 | N45: 0.3347957077
K46: =IF(K45>3,"",HLOOKUP(N45,OFFSET($C$22,K45-1,0):$G$25,4-K45+1)) ->  | M46: 32 | N46: 0.3626184369
K47: =IF(K46>3,"",HLOOKUP(N46,OFFSET($C$22,K46-1,0):$G$25,4-K46+1)) ->  | M47: 33 | N47: 0.8985360119
K48: =IF(K47>3,"",HLOOKUP(N47,OFFSET($C$22,K47-1,0):$G$25,4-K47+1)) ->  | M48: 34 | N48: 0.4512684642
K49: =IF(K48>3,"",HLOOKUP(N48,OFFSET($C$22,K48-1,0):$G$25,4-K48+1)) ->  | M49: 35 | N49: 0.2188194761
K50: =IF(K49>3,"",HLOOKUP(N49,OFFSET($C$22,K49-1,0):$G$25,4-K49+1)) ->  | M50: 36 | N50: 0.6131223059
K51: =IF(K50>3,"",HLOOKUP(N50,OFFSET($C$22,K50-1,0):$G$25,4-K50+1)) ->  | M51: 37 | N51: 0.7011189194
K52: =IF(K51>3,"",HLOOKUP(N51,OFFSET($C$22,K51-1,0):$G$25,4-K51+1)) ->  | M52: 38 | N52: 0.8539179872
K53: =IF(K52>3,"",HLOOKUP(N52,OFFSET($C$22,K52-1,0):$G$25,4-K52+1)) ->  | M53: 39 | N53: 0.5130013503
K54: =IF(K53>3,"",HLOOKUP(N53,OFFSET($C$22,K53-1,0):$G$25,4-K53+1)) ->  | M54: 40 | N54: 0.2706626524

Sheet Contact
B2: What's Next?
C6: Keep an eye on our newsletter for the Advanced Simulations in Excel launch date.
C8: Topics covered will include things like:
D9: Applying more advanced methods for risk tolerance
D10: Building more advanced simulations, like Markov and agent based models
D11: Computing more advanced information values
D12: Using distributions based on observed data
B21: Contact
C25: Doug Hubbard
C26: dwhubbard@hubbardresearch.com
C27: 630 858 2788
C29: Jon Murphy
C30: jmurphy@hubbardresearch.com
C31: 704 773 3464
C33: Visit www.hubbardresearch.com for more information on training and consulting.
C35: Visit www.howtomeasureanything.com for information about Doug's books and accompanying free downloads.
